Workbook

Sheet Main
B10: 2020-02-04
B12: Sheet No. | C12: Template Name | D12: Summary
B13: 1 | C13: Future Intra | D13: For Intraday trading in F&O segment
B14: 2 | C14: Cash Intra | D14: For Intraday trading in cash market segment
B15: 3 | C15: Mid-cap Intra | D15: For Intraday trading in Mid-cap stocks
B16: 4 | C16: Bulk Deals | D16: Reveals Bulk Deals carried on NSE & BSE
B17: 5 | C17: Call Tracker
K27: `

Sheet Future Intra
M5: Back to Main Page
A6: FOR INTRA DAY TRADING | L6: =Main!B10 -> 2020-02-04
A9: Sr.no | B9: Sector | C9: Scrip | D9: CLOSE RATE | E9: Pivot Point | F9: Supports | I9: Resistances
B10: Sector | D10: Point | E10: Point | F10: S1 | G10: S2 | H10: S3 | I10: R1 | J10: R2 | K10: R3 | L10: HIGH | M10: LOW | N10: OI | O10: % Change in OI
A11: 1 | B11: Index | C11: BANKNIFTY | D11: 30032.15 | E11: 29890.72 | F11: 29671.43 | G11: 29310.72 | H11: 29091.43 | I11: 30251.43 | J11: 30470.72 | K11: 30831.43 | L11: 30110 | M11: 29530 | N11: 1389700 | O11: -3.84%
A12: 2 | B12: Index | C12: NIFTY | D12: 11703.15 | E12: 11682.72 | F12: 11618.43 | G12: 11533.72 | H12: 11469.43 | I12: 11767.43 | J12: 11831.72 | K12: 11916.43 | L12: 11747 | M12: 11598 | N12: 14660325 | O12: -0.40%
A13: 3 | B13: Index | C13: NIFTYIT | D13: 16018.00 | E13: 16094.00 | F13: 15888.00 | G13: 15758.00 | H13: 15552.00 | I13: 16224.00 | J13: 16430.00 | K13: 16560.00 | L13: 16300 | M13: 15964 | N13: 5300 | O13: -1.85%
A14: 4 | B14: Cement | C14: ACC | D14: 1455.45 | E14: 1453.40 | F14: 1435.85 | G14: 1416.25 | H14: 1398.70 | I14: 1473.00 | J14: 1490.55 | K14: 1510.15 | L14: 1470.95 | M14: 1433.8 | N14: 3950000 | O14: -3.19%
A15: 5 | B15: Others | C15: ADANIENT | D15: 221.50 | E15: 220.62 | F15: 216.48 | G15: 211.47 | H15: 207.33 | I15: 225.63 | J15: 229.77 | K15: 234.78 | L15: 224.75 | M15: 215.6 | N15: 30160000 | O15: 3.81%
A16: 6 | B16: Others | C16: ADANIPORTS | D16: 367.65 | E16: 362.22 | F16: 354.93 | G16: 342.22 | H16: 334.93 | I16: 374.93 | J16: 382.22 | K16: 394.93 | L16: 369.5 | M16: 349.5 | N16: 25972500 | O16: -0.45%
A17: 7 | B17: Power | C17: ADANIPOWER | D17: 59.20 | E17: 59.17 | F17: 58.33 | G17: 57.47 | H17: 56.63 | I17: 60.03 | J17: 60.87 | K17: 61.73 | L17: 60 | M17: 58.3 | N17: 73640000 | O17: 1.74%
A18: 8 | B18: Automobile | C18: AMARAJABAT | D18: 783.85 | E18: 776.27 | F18: 761.28 | G18: 738.72 | H18: 723.73 | I18: 798.83 | J18: 813.82 | K18: 836.38 | L18: 791.25 | M18: 753.7 | N18: 1604800 | O18: 1.11%
A19: 9 | B19: Cement | C19: AMBUJACEM | D19: 199.75 | E19: 199.07 | F19: 196.38 | G19: 193.02 | H19: 190.33 | I19: 202.43 | J19: 205.12 | K19: 208.48 | L19: 201.75 | M19: 195.7 | N19: 18915000 | O19: 1.11%
A20: 10 | B20: Others | C20: APOLLOHOSP | D20: 1702.50 | E20: 1683.47 | F20: 1641.93 | G20: 1581.37 | H20: 1539.83 | I20: 1744.03 | J20: 1785.57 | K20: 1846.13 | L20: 1725 | M20: 1622.9 | N20: 1565500 | O20: 0.51%
A21: 11 | B21: Automobile | C21: APOLLOTYRE | D21: 161.75 | E21: 164.45 | F21: 157.70 | G21: 153.65 | H21: 146.90 | I21: 168.50 | J21: 175.25 | K21: 179.30 | L21: 171.2 | M21: 160.4 | N21: 10938000 | O21: 6.86%
A22: 12 | B22: Automobile | C22: ASHOKLEY | D22: 78.30 | E22: 77.35 | F22: 75.55 | G22: 72.80 | H22: 71.00 | I22: 80.10 | J22: 81.90 | K22: 84.65 | L22: 79.15 | M22: 74.6 | N22: 62608000 | O22: 2.62%
A23: 13 | B23: FMCG | C23: ASIANPAINT | D23: 1868.40 | E23: 1837.47 | F23: 1802.93 | G23: 1737.47 | H23: 1702.93 | I23: 1902.93 | J23: 1937.47 | K23: 2002.93 | L23: 1872 | M23: 1772 | N23: 7727400 | O23: 5.68%
A24: 14 | B24: Pharma | C24: AUROPHARMA | D24: 473.35 | E24: 472.58 | F24: 466.42 | G24: 459.48 | H24: 453.32 | I24: 479.52 | J24: 485.68 | K24: 492.62 | L24: 478.75 | M24: 465.65 | N24: 14843000 | O24: -0.33%
A25: 15 | B25: Banking | C25: AXISBANK | D25: 709.25 | E25: 706.60 | F25: 700.10 | G25: 690.95 | H25: 684.45 | I25: 715.75 | J25: 722.25 | K25: 731.40 | L25: 713.1 | M25: 697.45 | N25: 49521600 | O25: 0.27%
A26: 16 | B26: Automobile | C26: BAJAJ-AUTO | D26: 3285.70 | E26: 3239.65 | F26: 3169.20 | G26: 3052.70 | H26: 2982.25 | I26: 3356.15 | J26: 3426.60 | K26: 3543.10 | L26: 3310.1 | M26: 3123.15 | N26: 1835000 | O26: 14.01%
A27: 17 | B27: Finance | C27: BAJAJFINSV | D27: 9129.35 | E27: 9099.50 | F27: 8940.00 | G27: 8750.65 | H27: 8591.15 | I27: 9288.85 | J27: 9448.35 | K27: 9637.70 | L27: 9259 | M27: 8910.15 | N27: 1122375 | O27: -0.20%
A28: 18 | B28: Finance | C28: BAJFINANCE | D28: 4363.95 | E28: 4339.65 | F28: 4299.30 | G28: 4234.65 | H28: 4194.30 | I28: 4404.30 | J28: 4444.65 | K28: 4509.30 | L28: 4380 | M28: 4275 | N28: 6107000 | O28: 1.20%
A29: 19 | B29: Automobile | C29: BALKRISIND | D29: 1084.60 | E29: 1065.22 | F29: 1041.43 | G29: 998.27 | H29: 974.48 | I29: 1108.38 | J29: 1132.17 | K29: 1175.33 | L29: 1089 | M29: 1022.05 | N29: 1226400 | O29: 3.51%
A30: 20 | B30: Banking | C30: BANKBARODA | D30: 86.00 | E30: 86.93 | F30: 84.37 | G30: 82.73 | H30: 80.17 | I30: 88.57 | J30: 91.13 | K30: 92.77 | L30: 89.5 | M30: 85.3 | N30: 74185200 | O30: 4.37%
A31: 21 | B31: FMCG | C31: BATAINDIA | D31: 1857.75 | E31: 1839.77 | F31: 1808.98 | G31: 1760.22 | H31: 1729.43 | I31: 1888.53 | J31: 1919.32 | K31: 1968.08 | L31: 1870.55 | M31: 1791 | N31: 2163150 | O31: 5.36%
A32: 22 | B32: Capital_Goods | C32: BEL | D32: 82.25 | E32: 82.47 | F32: 79.38 | G32: 76.52 | H32: 73.43 | I32: 85.33 | J32: 88.42 | K32: 91.28 | L32: 85.55 | M32: 79.6 | N32: 56484000 | O32: 0.07%
A33: 23 | B33: FMCG | C33: BERGEPAINT | D33: 572.65 | E33: 565.18 | F33: 554.57 | G33: 536.48 | H33: 525.87 | I33: 583.27 | J33: 593.88 | K33: 611.97 | L33: 575.8 | M33: 547.1 | N33: 7990400 | O33: 3.12%
A34: 24 | B34: Automobile | C34: BHARATFORG | D34: 488.45 | E34: 483.42 | F34: 472.33 | G34: 456.22 | H34: 445.13 | I34: 499.53 | J34: 510.62 | K34: 526.73 | L34: 494.5 | M34: 467.3 | N34: 7741500 | O34: 1.34%
A35: 25 | B35: Telecom | C35: BHARTIARTL | D35: 510.35 | E35: 507.20 | F35: 501.15 | G35: 491.95 | H35: 485.90 | I35: 516.40 | J35: 522.45 | K35: 531.65 | L35: 513.25 | M35: 498 | N35: 50641509 | O35: 1.00%
A36: 26 | B36: Capital_Goods | C36: BHEL | D36: 39.00 | E36: 39.17 | F36: 38.18 | G36: 37.37 | H36: 36.38 | I36: 39.98 | J36: 40.97 | K36: 41.78 | L36: 40.15 | M36: 38.35 | N36: 83460000 | O36: 0.44%
A37: 27 | B37: Pharma | C37: BIOCON | D37: 298.65 | E37: 297.23 | F37: 287.92 | G37: 277.18 | H37: 267.87 | I37: 307.97 | J37: 317.28 | K37: 328.02 | L37: 306.55 | M37: 286.5 | N37: 11799000 | O37: 0.63%
A38: 28 | B38: Automobile | C38: BOSCHLTD | D38: 13684.10 | E38: 13729.38 | F38: 13518.82 | G38: 13353.53 | H38: 13142.97 | I38: 13894.67 | J38: 14105.23 | K38: 14270.52 | L38: 13939.95 | M38: 13564.1 | N38: 139800 | O38: 1.39%
A39: 29 | B39: Oil_Gas | C39: BPCL | D39: 454.10 | E39: 449.07 | F39: 441.78 | G39: 429.47 | H39: 422.18 | I39: 461.38 | J39: 468.67 | K39: 480.98 | L39: 456.35 | M39: 436.75 | N39: 29253600 | O39: -2.21%
A40: 30 | B40: FMCG | C40: BRITANNIA | D40: 3242.70 | E40: 3199.42 | F40: 3139.83 | G40: 3036.97 | H40: 2977.38 | I40: 3302.28 | J40: 3361.87 | K40: 3464.73 | L40: 3259 | M40: 3096.55 | N40: 2263000 | O40: 0.96%
A41: 31 | B41: Pharma | C41: CADILAHC | D41: 257.50 | E41: 257.38 | F41: 253.67 | G41: 249.83 | H41: 246.12 | I41: 261.22 | J41: 264.93 | K41: 268.77 | L41: 261.1 | M41: 253.55 | N41: 7559200 | O41: -0.06%
A42: 32 | B42: Banking | C42: CANBK | D42: 187.85 | E42: 189.52 | F42: 185.13 | G42: 182.42 | H42: 178.03 | I42: 192.23 | J42: 196.62 | K42: 199.33 | L42: 193.9 | M42: 186.8 | N42: 16250000 | O42: 5.13%
A43: 33 | B43: Textile | C43: CENTURYTEX | D43: 562.35 | E43: 575.62 | F43: 544.23 | G43: 526.12 | H43: 494.73 | I43: 593.73 | J43: 625.12 | K43: 643.23 | L43: 607 | M43: 557.5 | N43: 4051200 | O43: 24.14%
A44: 34 | B44: Power | C44: CESC | D44: 692.80 | E44: 691.45 | F44: 682.95 | G44: 673.10 | H44: 664.60 | I44: 701.30 | J44: 709.80 | K44: 719.65 | L44: 699.95 | M44: 681.6 | N44: 1527200 | O44: 1.38%
A45: 35 | B45: Finance | C45: CHOLAFIN | D45: 325.55 | E45: 324.23 | F45: 316.82 | G45: 308.08 | H45: 300.67 | I45: 332.97 | J45: 340.38 | K45: 349.12 | L45: 331.65 | M45: 315.5 | N45: 4470000 | O45: 3.89%
A46: 36 | B46: Pharma | C46: CIPLA | D46: 443.80 | E46: 444.67 | F46: 438.23 | G46: 432.67 | H46: 426.23 | I46: 450.23 | J46: 456.67 | K46: 462.23 | L46: 451.1 | M46: 439.1 | N46: 14754500 | O46: -0.50%
A47: 37 | B47: Others | C47: COALINDIA | D47: 171.80 | E47: 170.85 | F47: 167.35 | G47: 162.90 | H47: 159.40 | I47: 175.30 | J47: 178.80 | K47: 183.25 | L47: 174.35 | M47: 166.4 | N47: 68685300 | O47: 6.22%
A48: 38 | B48: FMCG | C48: COLPAL | D48: 1354.55 | E48: 1343.02 | F48: 1320.13 | G48: 1285.72 | H48: 1262.83 | I48: 1377.43 | J48: 1400.32 | K48: 1434.73 | L48: 1365.9 | M48: 1308.6 | N48: 3121300 | O48: -2.13%
A49: 39 | B49: Others | C49: CONCOR | D49: 543.05 | E49: 543.77 | F49: 537.53 | G49: 532.02 | H49: 525.78 | I49: 549.28 | J49: 555.52 | K49: 561.03 | L49: 550 | M49: 538.25 | N49: 5554902 | O49: -2.04%
A50: 40 | B50: Capital_Goods | C50: CUMMINSIND | D50: 555.70 | E50: 553.90 | F50: 547.90 | G50: 540.10 | H50: 534.10 | I50: 561.70 | J50: 567.70 | K50: 575.50 | L50: 559.9 | M50: 546.1 | N50: 1625400 | O50: -6.62%
A51: 41 | B51: FMCG | C51: DABUR | D51: 499.20 | E51: 495.27 | F51: 487.58 | G51: 475.97 | H51: 468.28 | I51: 506.88 | J51: 514.57 | K51: 526.18 | L51: 502.95 | M51: 483.65 | N51: 13181250 | O51: 2.71%
A52: 42 | B52: Pharma | C52: DIVISLAB | D52: 1975.25 | E52: 1987.98 | F52: 1952.67 | G52: 1930.08 | H52: 1894.77 | I52: 2010.57 | J52: 2045.88 | K52: 2068.47 | L52: 2023.3 | M52: 1965.4 | N52: 1568800 | O52: -0.66%
A53: 43 | B53: Realty | C53: DLF | D53: 228.85 | E53: 226.00 | F53: 219.50 | G53: 210.15 | H53: 203.65 | I53: 235.35 | J53: 241.85 | K53: 251.20 | L53: 232.5 | M53: 216.65 | N53: 33719400 | O53: 7.85%
A54: 44 | B54: Pharma | C54: DRREDDY | D54: 3145.10 | E54: 3148.42 | F54: 3118.98 | G54: 3092.87 | H54: 3063.43 | I54: 3174.53 | J54: 3203.97 | K54: 3230.08 | L54: 3177.85 | M54: 3122.3 | N54: 2655000 | O54: -1.05%
A55: 45 | B55: Automobile | C55: EICHERMOT | D55: 19784.20 | E55: 19897.70 | F55: 19445.50 | G55: 19106.80 | H55: 18654.60 | I55: 20236.40 | J55: 20688.60 | K55: 21027.30 | L55: 20349.9 | M55: 19559 | N55: 226020 | O55: 3.46%
A56: 46 | B56: Finance | C56: EQUITAS | D56: 104.65 | E56: 104.35 | F56: 102.70 | G56: 100.75 | H56: 99.10 | I56: 106.30 | J56: 107.95 | K56: 109.90 | L56: 106 | M56: 102.4 | N56: 19889100 | O56: -0.12%
A57: 47 | B57: Automobile | C57: ESCORTS | D57: 846.90 | E57: 821.68 | F57: 791.67 | G57: 736.43 | H57: 706.42 | I57: 876.92 | J57: 906.93 | K57: 962.17 | L57: 851.7 | M57: 766.45 | N57: 4942300 | O57: 23.81%
A58: 48 | B58: Automobile | C58: EXIDEIND | D58: 196.30 | E58: 194.18 | F58: 191.37 | G58: 186.43 | H58: 183.62 | I58: 199.12 | J58: 201.93 | K58: 206.87 | L58: 197 | M58: 189.25 | N58: 10547300 | O58: 1.65%
A59: 49 | B59: Banking | C59: FEDERALBNK | D59: 88.75 | E59: 88.58 | F59: 87.22 | G59: 85.68 | H59: 84.32 | I59: 90.12 | J59: 91.48 | K59: 93.02 | L59: 89.95 | M59: 87.05 | N59: 50995000 | O59: 0.90%
A60: 50 | B60: Oil_Gas | C60: GAIL | D60: 112.25 | E60: 113.68 | F60: 110.37 | G60: 108.48 | H60: 105.17 | I60: 115.57 | J60: 118.88 | K60: 120.77 | L60: 117 | M60: 111.8 | N60: 48971454 | O60: -2.12%
A61: 51 | B61: Pharma | C61: GLENMARK | D61: 300.85 | E61: 301.70 | F61: 296.45 | G61: 292.05 | H61: 286.80 | I61: 306.10 | J61: 311.35 | K61: 315.75 | L61: 306.95 | M61: 297.3 | N61: 8250200 | O61: 0.14%
A62: 52 | B62: Infrastructure | C62: GMRINFRA | D62: 21.65 | E62: 21.57 | F62: 21.23 | G62: 20.82 | H62: 20.48 | I62: 21.98 | J62: 22.32 | K62: 22.73 | L62: 21.9 | M62: 21.15 | N62: 177480000 | O62: 3.14%
A63: 53 | B63: FMCG | C63: GODREJCP | D63: 668.45 | E63: 667.45 | F63: 658.10 | G63: 647.75 | H63: 638.40 | I63: 677.80 | J63: 687.15 | K63: 697.50 | L63: 676.8 | M63: 657.1 | N63: 5073600 | O63: 6.53%
A64: 54 | B64: Cement | C64: GRASIM | D64: 781.70 | E64: 772.50 | F64: 761.15 | G64: 740.60 | H64: 729.25 | I64: 793.05 | J64: 804.40 | K64: 824.95 | L64: 783.85 | M64: 751.95 | N64: 23246250 | O64: -1.20%
A65: 55 | B65: Others | C65: HAVELLS | D65: 596.75 | E65: 597.35 | F65: 588.35 | G65: 579.95 | H65: 570.95 | I65: 605.75 | J65: 614.75 | K65: 623.15 | L65: 606.35 | M65: 588.95 | N65: 6719000 | O65: -0.62%
A66: 56 | B66: Technology | C66: HCLTECH | D66: 581.40 | E66: 585.18 | F66: 574.27 | G66: 567.13 | H66: 556.22 | I66: 592.32 | J66: 603.23 | K66: 610.37 | L66: 596.1 | M66: 578.05 | N66: 22521800 | O66: 0.49%
A67: 57 | B67: Finance | C67: HDFC | D67: 2268.50 | E67: 2267.87 | F67: 2232.03 | G67: 2195.57 | H67: 2159.73 | I67: 2304.33 | J67: 2340.17 | K67: 2376.63 | L67: 2303.7 | M67: 2231.4 | N67: 31212250 | O67: 2.38%
A68: 58 | B68: Banking | C68: HDFCBANK | D68: 1195.50 | E68: 1193.12 | F68: 1182.58 | G68: 1169.67 | H68: 1159.13 | I68: 1206.03 | J68: 1216.57 | K68: 1229.48 | L68: 1203.65 | M68: 1180.2 | N68: 34297500 | O68: 2.32%
A69: 59 | B69: Automobile | C69: HEROMOTOCO | D69: 2354.15 | E69: 2375.72 | F69: 2313.43 | G69: 2272.72 | H69: 2210.43 | I69: 2416.43 | J69: 2478.72 | K69: 2519.43 | L69: 2438 | M69: 2335 | N69: 2316400 | O69: 15.46%
A70: 60 | B70: Metals | C70: HINDALCO | D70: 182.75 | E70: 183.52 | F70: 180.33 | G70: 177.92 | H70: 174.73 | I70: 185.93 | J70: 189.12 | K70: 191.53 | L70: 186.7 | M70: 181.1 | N70: 47120500 | O70: 5.29%
A71: 61 | B71: Oil_Gas | C71: HINDPETRO | D71: 220.30 | E71: 221.73 | F71: 216.77 | G71: 213.23 | H71: 208.27 | I71: 225.27 | J71: 230.23 | K71: 233.77 | L71: 226.7 | M71: 218.2 | N71: 18303600 | O71: -1.88%
A72: 62 | B72: FMCG | C72: HINDUNILVR | D72: 2185.60 | E72: 2155.52 | F72: 2112.18 | G72: 2038.77 | H72: 1995.43 | I72: 2228.93 | J72: 2272.27 | K72: 2345.68 | L72: 2198.85 | M72: 2082.1 | N72: 10095600 | O72: 5.64%
A73: 63 | B73: Finance | C73: IBULHSGFIN | D73: 244.80 | E73: 254.48 | F73: 231.57 | G73: 218.33 | H73: 195.42 | I73: 267.72 | J73: 290.63 | K73: 303.87 | L73: 277.4 | M73: 241.25 | N73: 24766800 | O73: 11.12%
A74: 64 | B74: Banking | C74: ICICIBANK | D74: 517.05 | E74: 513.78 | F74: 507.62 | G74: 498.18 | H74: 492.02 | I74: 523.22 | J74: 529.38 | K74: 538.82 | L74: 519.95 | M74: 504.35 | N74: 98634250 | O74: -1.03%
A75: 65 | B75: Finance | C75: ICICIPRULI | D75: 447.80 | E75: 450.30 | F75: 435.90 | G75: 424.00 | H75: 409.60 | I75: 462.20 | J75: 476.60 | K75: 488.50 | L75: 464.7 | M75: 438.4 | N75: 9889500 | O75: -0.71%
A76: 66 | B76: Telecom | C76: IDEA | D76: 5.40 | E76: 5.33 | F76: 5.17 | G76: 4.93 | H76: 4.77 | I76: 5.57 | J76: 5.73 | K76: 5.97 | L76: 5.5 | M76: 5.1 | N76: 440706000 | O76: 0.18%
A77: 67 | B77: Banking | C77: IDFCFIRSTB | D77: 39.35 | E77: 39.20 | F77: 38.75 | G77: 38.15 | H77: 37.70 | I77: 39.80 | J77: 40.25 | K77: 40.85 | L77: 39.65 | M77: 38.6 | N77: 235464000 | O77: 1.41%
A78: 68 | B78: Oil_Gas | C78: IGL | D78: 509.80 | E78: 507.15 | F78: 502.65 | G78: 495.50 | H78: 491.00 | I78: 514.30 | J78: 518.80 | K78: 525.95 | L78: 511.65 | M78: 500 | N78: 8742250 | O78: 1.37%
A79: 69 | B79: Others | C79: INDIGO | D79: 1395.75 | E79: 1381.30 | F79: 1360.60 | G79: 1325.45 | H79: 1304.75 | I79: 1416.45 | J79: 1437.15 | K79: 1472.30 | L79: 1402 | M79: 1346.15 | N79: 3529500 | O79: -1.33%
A80: 70 | B80: Banking | C80: INDUSINDBK | D80: 1262.65 | E80: 1250.22 | F80: 1232.43 | G80: 1202.22 | H80: 1184.43 | I80: 1280.43 | J80: 1298.22 | K80: 1328.43 | L80: 1268 | M80: 1220 | N80: 13474400 | O80: -9.85%
A81: 71 | B81: Telecom | C81: INFRATEL | D81: 228.90 | E81: 232.42 | F81: 220.58 | G81: 212.27 | H81: 200.43 | I81: 240.73 | J81: 252.57 | K81: 260.88 | L81: 244.25 | M81: 224.1 | N81: 11514000 | O81: 5.05%
A82: 72 | B82: Technology | C82: INFY | D82: 770.65 | E82: 777.50 | F82: 760.50 | G82: 750.35 | H82: 733.35 | I82: 787.65 | J82: 804.65 | K82: 814.80 | L82: 794.5 | M82: 767.35 | N82: 28647600 | O82: 7.84%
A83: 73 | B83: Oil_Gas | C83: IOC | D83: 107.50 | E83: 107.97 | F83: 106.43 | G83: 105.37 | H83: 103.83 | I83: 109.03 | J83: 110.57 | K83: 111.63 | L83: 109.5 | M83: 106.9 | N83: 72852000 | O83: -1.10%
A84: 74 | B84: FMCG | C84: ITC | D84: 208.30 | E84: 210.28 | F84: 203.47 | G84: 198.63 | H84: 191.82 | I84: 215.12 | J84: 221.93 | K84: 226.77 | L84: 217.1 | M84: 205.45 | N84: 139773600 | O84: 3.62%
A85: 75 | B85: Metals | C85: JINDALSTEL | D85: 175.50 | E85: 171.40 | F85: 166.35 | G85: 157.20 | H85: 152.15 | I85: 180.55 | J85: 185.60 | K85: 194.75 | L85: 176.45 | M85: 162.25 | N85: 32815000 | O85: 2.32%
A86: 76 | B86: Metals | C86: JSWSTEEL | D86: 252.40 | E86: 250.17 | F86: 246.43 | G86: 240.47 | H86: 236.73 | I86: 256.13 | J86: 259.87 | K86: 265.83 | L86: 253.9 | M86: 244.2 | N86: 59820700 | O86: 1.40%
A87: 77 | B87: Others | C87: JUBLFOOD | D87: 1960.10 | E87: 1931.90 | F87: 1891.35 | G87: 1822.60 | H87: 1782.05 | I87: 2000.65 | J87: 2041.20 | K87: 2109.95 | L87: 1972.45 | M87: 1863.15 | N87: 2733000 | O87: -5.64%
A88: 78 | B88: Others | C88: JUSTDIAL | D88: 516.60 | E88: 523.35 | F88: 494.25 | G88: 471.90 | H88: 442.80 | I88: 545.70 | J88: 574.80 | K88: 597.15 | L88: 552.45 | M88: 501 | N88: 2109800 | O88: 4.58%
A89: 79 | B89: Banking | C89: KOTAKBANK | D89: 1674.15 | E89: 1662.38 | F89: 1646.87 | G89: 1619.58 | H89: 1604.07 | I89: 1689.67 | J89: 1705.18 | K89: 1732.47 | L89: 1677.9 | M89: 1635.1 | N89: 8067200 | O89: 1.34%
A90: 80 | B90: Finance | C90: L&TFH | D90: 109.80 | E90: 109.88 | F90: 107.12 | G90: 104.43 | H90: 101.67 | I90: 112.57 | J90: 115.33 | K90: 118.02 | L90: 112.65 | M90: 107.2 | N90: 32743200 | O90: -1.27%
A91: 81 | B91: Finance | C91: LICHSGFIN | D91: 393.10 | E91: 396.83 | F91: 380.12 | G91: 367.13 | H91: 350.42 | I91: 409.82 | J91: 426.53 | K91: 439.52 | L91: 413.55 | M91: 383.85 | N91: 11143600 | O91: 4.72%
A92: 82 | B92: Capital_Goods | C92: LT | D92: 1287.80 | E92: 1289.03 | F92: 1271.37 | G92: 1254.93 | H92: 1237.27 | I92: 1305.47 | J92: 1323.13 | K92: 1339.57 | L92: 1306.7 | M92: 1272.6 | N92: 20164500 | O92: 3.36%
A93: 83 | B93: Pharma | C93: LUPIN | D93: 710.30 | E93: 710.65 | F93: 697.90 | G93: 685.50 | H93: 672.75 | I93: 723.05 | J93: 735.80 | K93: 748.20 | L93: 723.4 | M93: 698.25 | N93: 8504300 | O93: -1.23%
A94: 84 | B94: Automobile | C94: M&M | D94: 560.95 | E94: 555.23 | F94: 543.17 | G94: 525.38 | H94: 513.32 | I94: 573.02 | J94: 585.08 | K94: 602.87 | L94: 567.3 | M94: 537.45 | N94: 22345000 | O94: -0.15%
A95: 85 | B95: Finance | C95: M&MFIN | D95: 350.85 | E95: 354.28 | F95: 344.57 | G95: 338.28 | H95: 328.57 | I95: 360.57 | J95: 370.28 | K95: 376.57 | L95: 364 | M95: 348 | N95: 15168000 | O95: 0.22%
A96: 86 | B96: Finance | C96: MANAPPURAM | D96: 184.05 | E96: 184.72 | F96: 181.43 | G96: 178.82 | H96: 175.53 | I96: 187.33 | J96: 190.62 | K96: 193.23 | L96: 188 | M96: 182.1 | N96: 19542000 | O96: 9.59%
A97: 87 | B97: FMCG | C97: MARICO | D97: 304.45 | E97: 305.17 | F97: 300.98 | G97: 297.52 | H97: 293.33 | I97: 308.63 | J97: 312.82 | K97: 316.28 | L97: 309.35 | M97: 301.7 | N97: 13040300 | O97: 2.44%
A98: 88 | B98: Automobile | C98: MARUTI | D98: 7034.15 | E98: 6963.98 | F98: 6862.97 | G98: 6691.78 | H98: 6590.77 | I98: 7135.17 | J98: 7236.18 | K98: 7407.37 | L98: 7065 | M98: 6792.8 | N98: 2896400 | O98: 0.14%
A99: 89 | B99: FMCG | C99: MCDOWELL-N | D99: 624.40 | E99: 622.03 | F99: 616.37 | G99: 608.33 | H99: 602.67 | I99: 630.07 | J99: 635.73 | K99: 643.77 | L99: 627.7 | M99: 614 | N99: 13416250 | O99: 3.88%
A100: 90 | B100: Finance | C100: MFSL | D100: 475.75 | E100: 467.35 | F100: 449.15 | G100: 422.55 | H100: 404.35 | I100: 493.95 | J100: 512.15 | K100: 538.75 | L100: 485.55 | M100: 440.75 | N100: 6123000 | O100: -17.28%
A101: 91 | B101: Oil_Gas | C101: MGL | D101: 1162.30 | E101: 1162.15 | F101: 1147.80 | G101: 1133.30 | H101: 1118.95 | I101: 1176.65 | J101: 1191.00 | K101: 1205.50 | L101: 1176.5 | M101: 1147.65 | N101: 2356800 | O101: 2.21%
A102: 92 | B102: Technology | C102: MINDTREE | D102: 900.35 | E102: 890.62 | F102: 870.78 | G102: 841.22 | H102: 821.38 | I102: 920.18 | J102: 940.02 | K102: 969.58 | L102: 910.45 | M102: 861.05 | N102: 879200 | O102: -3.60%
A103: 93 | B103: Automobile | C103: MOTHERSUMI | D103: 125.60 | E103: 126.90 | F103: 123.50 | G103: 121.40 | H103: 118.00 | I103: 129.00 | J103: 132.40 | K103: 134.50 | L103: 130.3 | M103: 124.8 | N103: 21285000 | O103: -3.03%
A104: 94 | B104: Automobile | C104: MRF | D104: 69761.60 | E104: 69344.43 | F104: 68517.97 | G104: 67274.33 | H104: 66447.87 | I104: 70588.07 | J104: 71414.53 | K104: 72658.17 | L104: 70170.9 | M104: 68100.8 | N104: 16350 | O104: 3.48%
A105: 95 | B105: Finance | C105: MUTHOOTFIN | D105: 750.05 | E105: 746.40 | F105: 738.60 | G105: 727.15 | H105: 719.35 | I105: 757.85 | J105: 765.65 | K105: 777.10 | L105: 754.2 | M105: 734.95 | N105: 4966500 | O105: -0.45%
A106: 96 | B106: Metals | C106: NATIONALUM | D106: 41.80 | E106: 41.72 | F106: 41.18 | G106: 40.57 | H106: 40.03 | I106: 42.33 | J106: 42.87 | K106: 43.48 | L106: 42.25 | M106: 41.1 | N106: 40809600 | O106: 3.75%
A107: 97 | B107: Infrastructure | C107: NCC | D107: 49.05 | E107: 49.63 | F107: 47.87 | G107: 46.68 | H107: 44.92 | I107: 50.82 | J107: 52.58 | K107: 53.77 | L107: 51.4 | M107: 48.45 | N107: 46422000 | O107: 1.30%
A108: 98 | B108: FMCG | C108: NESTLEIND | D108: 16306.00 | E108: 16119.37 | F108: 15726.68 | G108: 15147.37 | H108: 14754.68 | I108: 16698.68 | J108: 17091.37 | K108: 17670.68 | L108: 16512.05 | M108: 15540.05 | N108: 481200 | O108: 7.94%
A109: 99 | B109: Technology | C109: NIITTECH | D109: 1876.70 | E109: 1879.52 | F109: 1857.53 | G109: 1838.37 | H109: 1816.38 | I109: 1898.68 | J109: 1920.67 | K109: 1939.83 | L109: 1901.5 | M109: 1860.35 | N109: 765375 | O109: 4.77%
A110: 100 | B110: Metals | C110: NMDC | D110: 100.25 | E110: 101.00 | F110: 98.25 | G110: 96.25 | H110: 93.50 | I110: 103.00 | J110: 105.75 | K110: 107.75 | L110: 103.75 | M110: 99 | N110: 43668000 | O110: 2.75%
A111: 101 | B111: Power | C111: NTPC | D111: 106.80 | E111: 105.78 | F111: 103.72 | G111: 100.63 | H111: 98.57 | I111: 108.87 | J111: 110.93 | K111: 114.02 | L111: 107.85 | M111: 102.7 | N111: 156249600 | O111: 6.52%
A112: 102 | B112: Oil_Gas | C112: OIL | D112: 119.30 | E112: 118.00 | F112: 115.65 | G112: 112.00 | H112: 109.65 | I112: 121.65 | J112: 124.00 | K112: 127.65 | L112: 120.35 | M112: 114.35 | N112: 14574912 | O112: 4.41%
A113: 103 | B113: Oil_Gas | C113: ONGC | D113: 99.15 | E113: 98.93 | F113: 97.17 | G113: 95.18 | H113: 93.42 | I113: 100.92 | J113: 102.68 | K113: 104.67 | L113: 100.7 | M113: 96.95 | N113: 107579900 | O113: 8.56%
A114: 104 | B114: Textile | C114: PAGEIND | D114: 24350.20 | E114: 24167.88 | F114: 23860.82 | G114: 23371.43 | H114: 23064.37 | I114: 24657.27 | J114: 24964.33 | K114: 25453.72 | L114: 24474.95 | M114: 23678.5 | N114: 131975 | O114: 0.40%
A115: 105 | B115: Pharma | C115: PEL | D115: 1340.95 | E115: 1384.50 | F115: 1284.00 | G115: 1227.05 | H115: 1126.55 | I115: 1441.45 | J115: 1541.95 | K115: 1598.90 | L115: 1485 | M115: 1327.55 | N115: 4256166 | O115: 1.89%
A116: 106 | B116: Oil_Gas | C116: PETRONET | D116: 267.05 | E116: 266.05 | F116: 263.10 | G116: 259.15 | H116: 256.20 | I116: 270.00 | J116: 272.95 | K116: 276.90 | L116: 269 | M116: 262.1 | N116: 18567000 | O116: 0.03%
A117: 107 | B117: Finance | C117: PFC | D117: 113.00 | E117: 111.80 | F117: 109.80 | G117: 106.60 | H117: 104.60 | I117: 115.00 | J117: 117.00 | K117: 120.20 | L117: 113.8 | M117: 108.6 | N117: 31855600 | O117: -2.63%
A118: 108 | B118: FMCG | C118: PIDILITIND | D118: 1568.45 | E118: 1542.58 | F118: 1510.82 | G118: 1453.18 | H118: 1421.42 | I118: 1600.22 | J118: 1631.98 | K118: 1689.62 | L118: 1574.35 | M118: 1484.95 | N118: 2273000 | O118: 0.71%
A119: 109 | B119: Banking | C119: PNB | D119: 57.40 | E119: 57.90 | F119: 56.60 | G119: 55.80 | H119: 54.50 | I119: 58.70 | J119: 60.00 | K119: 60.80 | L119: 59.2 | M119: 57.1 | N119: 121188300 | O119: 4.06%
A120: 110 | B120: Power | C120: POWERGRID | D120: 176.30 | E120: 174.07 | F120: 171.13 | G120: 165.97 | H120: 163.03 | I120: 179.23 | J120: 182.17 | K120: 187.33 | L120: 177 | M120: 168.9 | N120: 77724000 | O120: 5.90%
A121: 111 | B121: Media | C121: PVR | D121: 1991.60 | E121: 1966.93 | F121: 1934.87 | G121: 1878.13 | H121: 1846.07 | I121: 2023.67 | J121: 2055.73 | K121: 2112.47 | L121: 1999 | M121: 1910.2 | N121: 1054800 | O121: 3.49%
A122: 112 | B122: Cement | C122: RAMCOCEM | D122: 787.30 | E122: 776.42 | F122: 759.48 | G122: 731.67 | H122: 714.73 | I122: 804.23 | J122: 821.17 | K122: 848.98 | L122: 793.35 | M122: 748.6 | N122: 1761600 | O122: -8.48%
A123: 113 | B123: Banking | C123: RBLBANK | D123: 312.30 | E123: 308.18 | F123: 301.67 | G123: 291.03 | H123: 284.52 | I123: 318.82 | J123: 325.33 | K123: 335.97 | L123: 314.7 | M123: 297.55 | N123: 16761000 | O123: -1.23%
A124: 114 | B124: Power | C124: RECLTD | D124: 138.15 | E124: 138.35 | F124: 135.90 | G124: 133.65 | H124: 131.20 | I124: 140.60 | J124: 143.05 | K124: 145.30 | L124: 140.8 | M124: 136.1 | N124: 19854000 | O124: -0.81%
A125: 115 | B125: Oil_Gas | C125: RELIANCE | D125: 1388.45 | E125: 1384.55 | F125: 1370.30 | G125: 1352.15 | H125: 1337.90 | I125: 1402.70 | J125: 1416.95 | K125: 1435.10 | L125: 1398.8 | M125: 1366.4 | N125: 42585500 | O125: 3.09%
A126: 116 | B126: Metals | C126: SAIL | D126: 44.95 | E126: 44.53 | F126: 43.67 | G126: 42.38 | H126: 41.52 | I126: 45.82 | J126: 46.68 | K126: 47.97 | L126: 45.4 | M126: 43.25 | N126: 83759500 | O126: 0.81%
A127: 117 | B127: Banking | C127: SBIN | D127: 298.70 | E127: 300.63 | F127: 293.52 | G127: 288.33 | H127: 281.22 | I127: 305.82 | J127: 312.93 | K127: 318.12 | L127: 307.75 | M127: 295.45 | N127: 119622000 | O127: 1.33%
A128: 118 | B128: Cement | C128: SHREECEM | D128: 23322.90 | E128: 23046.05 | F128: 22692.10 | G128: 22061.30 | H128: 21707.35 | I128: 23676.85 | J128: 24030.80 | K128: 24661.60 | L128: 23400 | M128: 22415.25 | N128: 140750 | O128: -0.42%
A129: 119 | B129: Capital_Goods | C129: SIEMENS | D129: 1444.35 | E129: 1435.15 | F129: 1409.30 | G129: 1374.25 | H129: 1348.40 | I129: 1470.20 | J129: 1496.05 | K129: 1531.10 | L129: 1461 | M129: 1400.1 | N129: 1958550 | O129: -2.41%
A130: 120 | B130: Textile | C130: SRF | D130: 3796.70 | E130: 3767.38 | F130: 3717.72 | G130: 3638.73 | H130: 3589.07 | I130: 3846.37 | J130: 3896.03 | K130: 3975.02 | L130: 3817.05 | M130: 3688.4 | N130: 692500 | O130: 8.25%
A131: 121 | B131: Finance | C131: SRTRANSFIN | D131: 992.85 | E131: 989.32 | F131: 972.13 | G131: 951.42 | H131: 934.23 | I131: 1010.03 | J131: 1027.22 | K131: 1047.93 | L131: 1006.5 | M131: 968.6 | N131: 4956000 | O131: 3.04%
A132: 122 | B132: Pharma | C132: SUNPHARMA | D132: 415.15 | E132: 419.17 | F132: 408.68 | G132: 402.22 | H132: 391.73 | I132: 425.63 | J132: 436.12 | K132: 442.58 | L132: 429.65 | M132: 412.7 | N132: 63922500 | O132: -0.21%
A133: 123 | B133: Media | C133: SUNTV | D133: 459.75 | E133: 455.80 | F133: 446.85 | G133: 433.95 | H133: 425.00 | I133: 468.70 | J133: 477.65 | K133: 490.55 | L133: 464.75 | M133: 442.9 | N133: 6421200 | O133: 1.63%
A134: 124 | B134: Fertilisers | C134: TATACHEM | D134: 743.50 | E134: 738.88 | F134: 724.92 | G134: 706.33 | H134: 692.37 | I134: 757.47 | J134: 771.43 | K134: 790.02 | L134: 752.85 | M134: 720.3 | N134: 3126600 | O134: 7.92%
A135: 125 | B135: FMCG | C135: TATAGLOBAL | D135: 380.70 | E135: 377.18 | F135: 371.52 | G135: 362.33 | H135: 356.67 | I135: 386.37 | J135: 392.03 | K135: 401.22 | L135: 382.85 | M135: 368 | N135: 12187800 | O135: 5.89%
A136: 126 | B136: Automobile | C136: TATAMOTORS | D136: 164.55 | E136: 164.47 | F136: 160.23 | G136: 155.92 | H136: 151.68 | I136: 168.78 | J136: 173.02 | K136: 177.33 | L136: 168.7 | M136: 160.15 | N136: 70735000 | O136: 0.77%
A137: 127 | B137: Power | C137: TATAPOWER | D137: 55.10 | E137: 55.42 | F137: 54.43 | G137: 53.77 | H137: 52.78 | I137: 56.08 | J137: 57.07 | K137: 57.73 | L137: 56.4 | M137: 54.75 | N137: 71550000 | O137: 1.61%
A138: 128 | B138: Metals | C138: TATASTEEL | D138: 437.10 | E138: 431.72 | F138: 423.43 | G138: 409.77 | H138: 401.48 | I138: 445.38 | J138: 453.67 | K138: 467.33 | L138: 440 | M138: 418.05 | N138: 22891500 | O138: 3.68%
A139: 129 | B139: Technology | C139: TCS | D139: 2109.55 | E139: 2133.92 | F139: 2076.88 | G139: 2044.22 | H139: 1987.18 | I139: 2166.58 | J139: 2223.62 | K139: 2256.28 | L139: 2190.95 | M139: 2101.25 | N139: 13874750 | O139: 1.74%
A140: 130 | B140: Technology | C140: TECHM | D140: 794.30 | E140: 801.62 | F140: 784.23 | G140: 774.17 | H140: 756.78 | I140: 811.68 | J140: 829.07 | K140: 839.13 | L140: 819 | M140: 791.55 | N140: 15524400 | O140: -2.07%
A141: 131 | B141: FMCG | C141: TITAN | D141: 1184.25 | E141: 1181.47 | F141: 1166.93 | G141: 1149.62 | H141: 1135.08 | I141: 1198.78 | J141: 1213.32 | K141: 1230.63 | L141: 1196 | M141: 1164.15 | N141: 9598500 | O141: 6.04%
A142: 132 | B142: Pharma | C142: TORNTPHARM | D142: 1910.80 | E142: 1905.72 | F142: 1894.43 | G142: 1878.07 | H142: 1866.78 | I142: 1922.08 | J142: 1933.37 | K142: 1949.73 | L142: 1917 | M142: 1889.35 | N142: 390000 | O142: 0.52%
A143: 133 | B143: Power | C143: TORNTPOWER | D143: 303.70 | E143: 303.73 | F143: 300.12 | G143: 296.53 | H143: 292.92 | I143: 307.32 | J143: 310.93 | K143: 314.52 | L143: 307.35 | M143: 300.15 | N143: 3885000 | O143: 3.43%
A144: 134 | B144: Automobile | C144: TVSMOTOR | D144: 459.75 | E144: 456.05 | F144: 447.25 | G144: 434.75 | H144: 425.95 | I144: 468.55 | J144: 477.35 | K144: 489.85 | L144: 464.85 | M144: 443.55 | N144: 5127300 | O144: 8.42%
A145: 135 | B145: FMCG | C145: UBL | D145: 1269.95 | E145: 1269.65 | F145: 1255.30 | G145: 1240.65 | H145: 1226.30 | I145: 1284.30 | J145: 1298.65 | K145: 1313.30 | L145: 1284 | M145: 1255 | N145: 1773100 | O145: 7.79%
A146: 136 | B146: Finance | C146: UJJIVAN | D146: 376.75 | E146: 373.17 | F146: 365.68 | G146: 354.62 | H146: 347.13 | I146: 384.23 | J146: 391.72 | K146: 402.78 | L146: 380.65 | M146: 362.1 | N146: 6825500 | O146: 1.39%
A147: 137 | B147: Cement | C147: ULTRACEMCO | D147: 4376.40 | E147: 4339.12 | F147: 4287.28 | G147: 4198.17 | H147: 4146.33 | I147: 4428.23 | J147: 4480.07 | K147: 4569.18 | L147: 4390.95 | M147: 4250 | N147: 2622800 | O147: -0.09%
A148: 138 | B148: Fertilisers | C148: UPL | D148: 515.55 | E148: 513.87 | F148: 508.23 | G148: 500.92 | H148: 495.28 | I148: 521.18 | J148: 526.82 | K148: 534.13 | L148: 519.5 | M148: 506.55 | N148: 15568200 | O148: 0.34%
A149: 139 | B149: Metals | C149: VEDL | D149: 134.65 | E149: 134.85 | F149: 132.75 | G149: 130.85 | H149: 128.75 | I149: 136.75 | J149: 138.85 | K149: 140.75 | L149: 136.95 | M149: 132.95 | N149: 84297500 | O149: 1.48%
A150: 140 | B150: Capital_Goods | C150: VOLTAS | D150: 692.65 | E150: 691.62 | F150: 683.78 | G150: 674.92 | H150: 667.08 | I150: 700.48 | J150: 708.32 | K150: 717.18 | L150: 699.45 | M150: 682.75 | N150: 3853000 | O150: -0.93%
A151: 141 | B151: Technology | C151: WIPRO | D151: 235.90 | E151: 236.97 | F151: 234.13 | G151: 232.37 | H151: 229.53 | I151: 238.73 | J151: 241.57 | K151: 243.33 | L151: 239.8 | M151: 235.2 | N151: 22793600 | O151: 7.21%
A152: 142 | B152: Banking | C152: YESBANK | D152: 30.50 | E152: 31.30 | F152: 28.90 | G152: 27.30 | H152: 24.90 | I152: 32.90 | J152: 35.30 | K152: 36.90 | L152: 33.7 | M152: 29.7 | N152: 282092800 | O152: 8.33%
A153: 143 | B153: Media | C153: ZEEL | D153: 256.90 | E153: 256.02 | F153: 251.38 | G153: 245.87 | H153: 241.23 | I153: 261.53 | J153: 266.17 | K153: 271.68 | L153: 260.65 | M153: 250.5 | N153: 24993400 | O153: 1.33%
A154: 144
A155: 145
A156: 146
A157: 147
A175: Pivot Point: This is trigger point for intra day buy/sell based on the price range of the previous day
A176: As per the tool,the trader should take BUY position just above Pivot and keep the stop loss of pivot point and the first target would be Resistance 1(R1)
A177: If R1 is crossed then R2 becomes the next target with stop loss of at R1
A178: Similarly if price goes below pivot point then the trader should sell and keep a stop loss of pivot point and the first target would be S1
A179: If S1 is crossed then S2 becomes the next target with stop loss of at S1
A181: Disclaimer:
A182: This document has been prepared by the Retail Research Desk of Asit C Mehta
A183: Investment Intermediates Ltd. and is meant for use of the recipient only
A184: and is not for circulation. This document is not to be reported or
A185: copied or made available to others. It should not be considered to be
A186: taken as an offer to sell or a solicitation to buy any security. The
A187: information contained herein is from sources believed reliable. We do
A188: not represent that it is accurate or complete and it should not be
A189: relied upon as such. We may from time to time have positions in and buy
A190: and sell securities referred to herein

Sheet Cash Intra
M5: Back to Main Page
A6: FOR INTRA DAY TRADING | K6: =Main!B10 -> 2020-02-04
A8: Sr.no | B8: Scrip | C8: CLOSE RATE | D8: Pivot Point | E8: Supports | H8: Resistances
C9: Point | E9: S1 | F9: S2 | G9: S3 | H9: R1 | I9: R2 | J9: R3 | K9: HIGH | L9: LOW | M9: Total Trade Quanity in Lakhs
A10: 1 | B10: Nifty 50 | C10: 11707.9 | D10: 11690.75 | E10: 11631.65 | F10: 11555.40 | G10: 11496.30 | H10: 11767.00 | I10: 11826.10 | J10: 11902.35 | K10: 11749.85 | L10: 11614.5
A11: 2 | B11: Nifty Bank | C11: 30023.25 | D11: 29913.87 | E11: 29721.93 | F11: 29420.62 | G11: 29228.68 | H11: 30215.18 | I11: 30407.12 | J11: 30708.43 | K11: 30105.8 | L11: 29612.55
A12: 3 | B12: Nifty CPSE | C12: 1653.75 | D12: 1641.35 | E12: 1618.20 | F12: 1582.65 | G12: 1559.50 | H12: 1676.90 | I12: 1700.05 | J12: 1735.60 | K12: 1664.5 | L12: 1605.8
A13: 4 | B13: Nifty Infra | C13: 3183 | D13: 3172.18 | E13: 3149.52 | F13: 3116.03 | G13: 3093.37 | H13: 3205.67 | I13: 3228.33 | J13: 3261.82 | K13: 3194.85 | L13: 3138.7
A14: 5 | B14: Nifty IT | C14: 16059.9 | D14: 16171.03 | E14: 15923.17 | F14: 15786.43 | G14: 15538.57 | H14: 16307.77 | I14: 16555.63 | J14: 16692.37 | K14: 16418.9 | L14: 16034.3
A15: 6 | B15: Nifty PSE | C15: 2918 | D15: 2905.63 | E15: 2872.37 | F15: 2826.73 | G15: 2793.47 | H15: 2951.27 | I15: 2984.53 | J15: 3030.17 | K15: 2938.9 | L15: 2860
A16: 7 | B16: Nifty Midcap 50 | C16: 4837.1 | D16: 4811.33 | E16: 4763.82 | F16: 4690.53 | G16: 4643.02 | H16: 4884.62 | I16: 4932.13 | J16: 5005.42 | K16: 4858.85 | L16: 4738.05
A17: 8 | B17: ACC | C17: 1456.55 | D17: 1452.07 | E17: 1435.63 | F17: 1414.72 | G17: 1398.28 | H17: 1472.98 | I17: 1489.42 | J17: 1510.33 | K17: 1468.5 | L17: 1431.15 | M17: 5.14199
A18: 9 | B18: AUBANK | C18: 1043.95 | D18: 1031.65 | E18: 1003.30 | F18: 962.65 | G18: 934.30 | H18: 1072.30 | I18: 1100.65 | J18: 1141.30 | K18: 1060 | L18: 991 | M18: 4.21839
A19: 10 | B19: ADANIPORTS | C19: 367.35 | D19: 364.28 | E19: 358.57 | F19: 349.78 | G19: 344.07 | H19: 373.07 | I19: 378.78 | J19: 387.57 | K19: 370 | L19: 355.5 | M19: 29.12256
A20: 11 | B20: ADANIPOWER | C20: 59 | D20: 59.12 | E20: 58.18 | F20: 57.37 | G20: 56.43 | H20: 59.93 | I20: 60.87 | J20: 61.68 | K20: 60.05 | L20: 58.3 | M20: 57.54033
A21: 12 | B21: ABCAPITAL | C21: 92.1 | D21: 92.98 | E21: 90.72 | F21: 89.33 | G21: 87.07 | H21: 94.37 | I21: 96.63 | J21: 98.02 | K21: 95.25 | L21: 91.6 | M21: 21.59998
A22: 13 | B22: ABFRL | C22: 230 | D22: 228.93 | E22: 225.27 | F22: 220.53 | G22: 216.87 | H22: 233.67 | I22: 237.33 | J22: 242.07 | K22: 232.6 | L22: 224.2 | M22: 2.71489
A23: 14 | B23: AJANTPHARM | C23: 1174.6 | D23: 1159.85 | E23: 1134.90 | F23: 1095.20 | G23: 1070.25 | H23: 1199.55 | I23: 1224.50 | J23: 1264.20 | K23: 1184.8 | L23: 1120.15 | M23: 0.73403
A24: 15 | B24: ALKEM | C24: 2376.6 | D24: 2374.72 | E24: 2354.43 | F24: 2332.27 | G24: 2311.98 | H24: 2396.88 | I24: 2417.17 | J24: 2439.33 | K24: 2395 | L24: 2352.55 | M24: 1.31984
A25: 16 | B25: AMARAJABAT | C25: 785.7 | D25: 777.70 | E25: 760.45 | F25: 735.20 | G25: 717.95 | H25: 802.95 | I25: 820.20 | J25: 845.45 | K25: 794.95 | L25: 752.45 | M25: 5.92956
A26: 17 | B26: AMBUJACEM | C26: 200.75 | D26: 199.75 | E26: 197.05 | F26: 193.35 | G26: 190.65 | H26: 203.45 | I26: 206.15 | J26: 209.85 | K26: 202.45 | L26: 196.05 | M26: 29.06515
A27: 18 | B27: APOLLOHOSP | C27: 1695.85 | D27: 1676.48 | E27: 1635.37 | F27: 1574.88 | G27: 1533.77 | H27: 1736.97 | I27: 1778.08 | J27: 1838.57 | K27: 1717.6 | L27: 1616 | M27: 3.77299
A28: 19 | B28: APOLLOTYRE | C28: 161.05 | D28: 163.78 | E28: 156.87 | F28: 152.68 | G28: 145.77 | H28: 167.97 | I28: 174.88 | J28: 179.07 | K28: 170.7 | L28: 159.6 | M28: 20.59074
A29: 20 | B29: ASHOKLEY | C29: 78 | D29: 77.27 | E29: 75.53 | F29: 73.07 | G29: 71.33 | H29: 79.73 | I29: 81.47 | J29: 83.93 | K29: 79 | L29: 74.8 | M29: 119.77376
A30: 21 | B30: ASIANPAINT | C30: 1867.65 | D30: 1835.18 | E30: 1797.47 | F30: 1727.28 | G30: 1689.57 | H30: 1905.37 | I30: 1943.08 | J30: 2013.27 | K30: 1872.9 | L30: 1765 | M30: 11.69614
A31: 22 | B31: AUROPHARMA | C31: 473.5 | D31: 472.50 | E31: 466.00 | F31: 458.50 | G31: 452.00 | H31: 480.00 | I31: 486.50 | J31: 494.00 | K31: 479 | L31: 465 | M31: 31.79653
A32: 23 | B32: DMART | C32: 2131.65 | D32: 2123.45 | E32: 2089.20 | F32: 2046.75 | G32: 2012.50 | H32: 2165.90 | I32: 2200.15 | J32: 2242.60 | K32: 2157.7 | L32: 2081 | M32: 15.72997
A33: 24 | B33: AXISBANK | C33: 708.95 | D33: 705.77 | E33: 698.73 | F33: 688.52 | G33: 681.48 | H33: 715.98 | I33: 723.02 | J33: 733.23 | K33: 712.8 | L33: 695.55 | M33: 83.45819
A34: 25 | B34: BAJAJ-AUTO | C34: 3284.5 | D34: 3238.25 | E34: 3161.35 | F34: 3038.20 | G34: 2961.30 | H34: 3361.40 | I34: 3438.30 | J34: 3561.45 | K34: 3315.15 | L34: 3115.1 | M34: 11.41144
A35: 26 | B35: BAJFINANCE | C35: 4359.35 | D35: 4328.82 | E35: 4280.73 | F35: 4202.12 | G35: 4154.03 | H35: 4407.43 | I35: 4455.52 | J35: 4534.13 | K35: 4376.9 | L35: 4250.2 | M35: 17.36927
A36: 27 | B36: BAJAJFINSV | C36: 9086.15 | D36: 9068.72 | E36: 8902.43 | F36: 8718.72 | G36: 8552.43 | H36: 9252.43 | I36: 9418.72 | J36: 9602.43 | K36: 9235 | L36: 8885 | M36: 3.29541
A37: 28 | B37: BAJAJHLDNG | C37: 3600.8 | D37: 3575.73 | E37: 3526.07 | F37: 3451.33 | G37: 3401.67 | H37: 3650.47 | I37: 3700.13 | J37: 3774.87 | K37: 3625.4 | L37: 3501 | M37: 0.80743
A38: 29 | B38: BALKRISIND | C38: 1081.8 | D38: 1067.23 | E38: 1047.82 | F38: 1013.83 | G38: 994.42 | H38: 1101.22 | I38: 1120.63 | J38: 1154.62 | K38: 1086.65 | L38: 1033.25 | M38: 2.71802
A39: 30 | B39: BANDHANBNK | C39: 438 | D39: 437.62 | E39: 433.23 | F39: 428.47 | G39: 424.08 | H39: 442.38 | I39: 446.77 | J39: 451.53 | K39: 442 | L39: 432.85 | M39: 27.62309
A40: 31 | B40: BANKBARODA | C40: 85.9 | D40: 86.87 | E40: 84.43 | F40: 82.97 | G40: 80.53 | H40: 88.33 | I40: 90.77 | J40: 92.23 | K40: 89.3 | L40: 85.4 | M40: 224.98038
A41: 32 | B41: BANKINDIA | C41: 65.1 | D41: 64.98 | E41: 64.27 | F41: 63.43 | G41: 62.72 | H41: 65.82 | I41: 66.53 | J41: 67.37 | K41: 65.7 | L41: 64.15 | M41: 67.267
A42: 33 | B42: BATAINDIA | C42: 1850.2 | D42: 1832.47 | E42: 1800.93 | F42: 1751.67 | G42: 1720.13 | H42: 1881.73 | I42: 1913.27 | J42: 1962.53 | K42: 1864 | L42: 1783.2 | M42: 2.78726
A43: 34 | B43: BERGEPAINT | C43: 570.3 | D43: 564.10 | E43: 554.70 | F43: 539.10 | G43: 529.70 | H43: 579.70 | I43: 589.10 | J43: 604.70 | K43: 573.5 | L43: 548.5 | M43: 12.10461
A44: 35 | B44: BEL | C44: 83.5 | D44: 83.90 | E44: 80.35 | F44: 77.20 | G44: 73.65 | H44: 87.05 | I44: 90.60 | J44: 93.75 | K44: 87.45 | L44: 80.75 | M44: 565.82665
A45: 36 | B45: BHARATFORG | C45: 488.45 | D45: 485.48 | E45: 474.97 | F45: 461.48 | G45: 450.97 | H45: 498.97 | I45: 509.48 | J45: 522.97 | K45: 496 | L45: 472 | M45: 7.00915
A46: 37 | B46: BHEL | C46: 39.45 | D46: 39.60 | E46: 38.65 | F46: 37.85 | G46: 36.90 | H46: 40.40 | I46: 41.35 | J46: 42.15 | K46: 40.55 | L46: 38.8 | M46: 140.87306
A47: 38 | B47: BPCL | C47: 460.3 | D47: 455.42 | E47: 447.33 | F47: 434.37 | G47: 426.28 | H47: 468.38 | I47: 476.47 | J47: 489.43 | K47: 463.5 | L47: 442.45 | M47: 69.46475
A48: 39 | B48: BHARTIARTL | C48: 510.05 | D48: 506.48 | E48: 499.62 | F48: 489.18 | G48: 482.32 | H48: 516.92 | I48: 523.78 | J48: 534.22 | K48: 513.35 | L48: 496.05 | M48: 180.17965
A49: 40 | B49: INFRATEL | C49: 229.3 | D49: 233.25 | E49: 218.50 | F49: 207.70 | G49: 192.95 | H49: 244.05 | I49: 258.80 | J49: 269.60 | K49: 248 | L49: 222.45 | M49: 58.11965
A50: 41 | B50: BIOCON | C50: 298.5 | D50: 297.83 | E50: 288.67 | F50: 278.83 | G50: 269.67 | H50: 307.67 | I50: 316.83 | J50: 326.67 | K50: 307 | L50: 288 | M50: 19.49668
A51: 42 | B51: BBTC | C51: 1118.15 | D51: 1116.68 | E51: 1091.47 | F51: 1064.78 | G51: 1039.57 | H51: 1143.37 | I51: 1168.58 | J51: 1195.27 | K51: 1141.9 | L51: 1090 | M51: 0.58867
A52: 43 | B52: BOSCHLTD | C52: 13619.5 | D52: 13673.08 | E52: 13449.22 | F52: 13278.93 | G52: 13055.07 | H52: 13843.37 | I52: 14067.23 | J52: 14237.52 | K52: 13896.95 | L52: 13502.8 | M52: 0.24677
A53: 44 | B53: BRITANNIA | C53: 3230.05 | D53: 3190.47 | E53: 3131.93 | F53: 3033.82 | G53: 2975.28 | H53: 3288.58 | I53: 3347.12 | J53: 3445.23 | K53: 3249 | L53: 3092.35 | M53: 4.6885
A54: 45 | B54: CESC | C54: 695.75 | D54: 693.87 | E54: 683.73 | F54: 671.72 | G54: 661.58 | H54: 705.88 | I54: 716.02 | J54: 728.03 | K54: 704 | L54: 681.85 | M54: 3.39974
A55: 46 | B55: CADILAHC | C55: 260.4 | D55: 259.28 | E55: 255.37 | F55: 250.33 | G55: 246.42 | H55: 264.32 | I55: 268.23 | J55: 273.27 | K55: 263.2 | L55: 254.25 | M55: 11.03855
A56: 47 | B56: CANBK | C56: 186.95 | D56: 188.97 | E56: 183.98 | F56: 181.02 | G56: 176.03 | H56: 191.93 | I56: 196.92 | J56: 199.88 | K56: 193.95 | L56: 186 | M56: 70.14346
A57: 48 | B57: CASTROLIND | C57: 147.15 | D57: 145.63 | E57: 142.27 | F57: 137.38 | G57: 134.02 | H57: 150.52 | I57: 153.88 | J57: 158.77 | K57: 149 | L57: 140.75 | M57: 34.61075
A58: 49 | B58: CHOLAFIN | C58: 324.95 | D58: 323.58 | E58: 316.67 | F58: 308.38 | G58: 301.47 | H58: 331.87 | I58: 338.78 | J58: 347.07 | K58: 330.5 | L58: 315.3 | M58: 16.87153
A59: 50 | B59: CIPLA | C59: 444.55 | D59: 444.87 | E59: 439.08 | F59: 433.62 | G59: 427.83 | H59: 450.33 | I59: 456.12 | J59: 461.58 | K59: 450.65 | L59: 439.4 | M59: 21.84609
A60: 51 | B60: CUB | C60: 230.3 | D60: 230.90 | E60: 227.60 | F60: 224.90 | G60: 221.60 | H60: 233.60 | I60: 236.90 | J60: 239.60 | K60: 234.2 | L60: 228.2 | M60: 10.62871
A61: 52 | B61: COALINDIA | C61: 178.65 | D61: 176.75 | E61: 174.05 | F61: 169.45 | G61: 166.75 | H61: 181.35 | I61: 184.05 | J61: 188.65 | K61: 179.45 | L61: 172.15 | M61: 352.81395
A62: 53 | B62: COLPAL | C62: 1350.7 | D62: 1340.67 | E62: 1319.08 | F62: 1287.47 | G62: 1265.88 | H62: 1372.28 | I62: 1393.87 | J62: 1425.48 | K62: 1362.25 | L62: 1309.05 | M62: 24.53672
A63: 54 | B63: CONCOR | C63: 545.15 | D63: 546.07 | E63: 539.18 | F63: 533.22 | G63: 526.33 | H63: 552.03 | I63: 558.92 | J63: 564.88 | K63: 552.95 | L63: 540.1 | M63: 6.92547
A64: 55 | B64: COROMANDEL | C64: 629.65 | D64: 624.23 | E64: 610.47 | F64: 591.28 | G64: 577.52 | H64: 643.42 | I64: 657.18 | J64: 676.37 | K64: 638 | L64: 605.05 | M64: 7.17405
A65: 56 | B65: CROMPTON | C65: 287.45 | D65: 288.95 | E65: 276.50 | F65: 265.55 | G65: 253.10 | H65: 299.90 | I65: 312.35 | J65: 323.30 | K65: 301.4 | L65: 278 | M65: 30.8845
A66: 57 | B66: CUMMINSIND | C66: 560.95 | D66: 561.93 | E66: 554.02 | F66: 547.08 | G66: 539.17 | H66: 568.87 | I66: 576.78 | J66: 583.72 | K66: 569.85 | L66: 555 | M66: 9.9194
A67: 58 | B67: DLF | C67: 230.85 | D67: 227.47 | E67: 221.23 | F67: 211.62 | G67: 205.38 | H67: 237.08 | I67: 243.32 | J67: 252.93 | K67: 233.7 | L67: 217.85 | M67: 108.10838
A68: 59 | B68: DABUR | C68: 497 | D68: 493.93 | E68: 486.97 | F68: 476.93 | G68: 469.97 | H68: 503.97 | I68: 510.93 | J68: 520.97 | K68: 500.9 | L68: 483.9 | M68: 74.62427
A69: 60 | B69: DALBHARAT | C69: 853 | D69: 856.12 | E69: 841.33 | F69: 829.67 | G69: 814.88 | H69: 867.78 | I69: 882.57 | J69: 894.23 | K69: 870.9 | L69: 844.45 | M69: 1.62129
A70: 61 | B70: DIVISLAB | C70: 1972.75 | D70: 1985.72 | E70: 1949.43 | F70: 1926.12 | G70: 1889.83 | H70: 2009.03 | I70: 2045.32 | J70: 2068.63 | K70: 2022 | L70: 1962.4 | M70: 3.22232
A71: 62 | B71: DRREDDY | C71: 3144.15 | D71: 3144.77 | E71: 3116.53 | F71: 3088.92 | G71: 3060.68 | H71: 3172.38 | I71: 3200.62 | J71: 3228.23 | K71: 3173 | L71: 3117.15 | M71: 6.68235
A72: 63 | B72: EDELWEISS | C72: 87.6 | D72: 88.93 | E72: 85.37 | F72: 83.13 | G72: 79.57 | H72: 91.17 | I72: 94.73 | J72: 96.97 | K72: 92.5 | L72: 86.7 | M72: 7.90032
A73: 64 | B73: EICHERMOT | C73: 19883.45 | D73: 19923.57 | E73: 19471.53 | F73: 19059.62 | G73: 18607.58 | H73: 20335.48 | I73: 20787.52 | J73: 21199.43 | K73: 20375.6 | L73: 19511.65 | M73: 1.02123
A74: 65 | B74: EMAMILTD | C74: 299.8 | D74: 300.87 | E74: 294.43 | F74: 289.07 | G74: 282.63 | H74: 306.23 | I74: 312.67 | J74: 318.03 | K74: 307.3 | L74: 295.5 | M74: 25.57313
A75: 66 | B75: ENDURANCE | C75: 1068.45 | D75: 1077.48 | E75: 1044.62 | F75: 1020.78 | G75: 987.92 | H75: 1101.32 | I75: 1134.18 | J75: 1158.02 | K75: 1110.35 | L75: 1053.65 | M75: 0.47896
A76: 67 | B76: ENGINERSIN | C76: 91.1 | D76: 91.37 | E76: 90.28 | F76: 89.47 | G76: 88.38 | H76: 92.18 | I76: 93.27 | J76: 94.08 | K76: 92.45 | L76: 90.55 | M76: 17.04006
A77: 68 | B77: ESCORTS | C77: 847.15 | D77: 821.57 | E77: 790.33 | F77: 733.52 | G77: 702.28 | H77: 878.38 | I77: 909.62 | J77: 966.43 | K77: 852.8 | L77: 764.75 | M77: 70.11082
A78: 69 | B78: EXIDEIND | C78: 195.4 | D78: 193.63 | E78: 191.12 | F78: 186.83 | G78: 184.32 | H78: 197.92 | I78: 200.43 | J78: 204.72 | K78: 196.15 | L78: 189.35 | M78: 14.66191
A79: 70 | B79: FEDERALBNK | C79: 88.4 | D79: 88.42 | E79: 87.03 | F79: 85.67 | G79: 84.28 | H79: 89.78 | I79: 91.17 | J79: 92.53 | K79: 89.8 | L79: 87.05 | M79: 102.70614
A80: 71 | B80: FORTIS | C80: 152.7 | D80: 152.37 | E80: 149.58 | F80: 146.47 | G80: 143.68 | H80: 155.48 | I80: 158.27 | J80: 161.38 | K80: 155.15 | L80: 149.25 | M80: 19.33119
A81: 72 | B81: FCONSUMER | C81: 22.5 | D81: 22.65 | E81: 22.20 | F81: 21.90 | G81: 21.45 | H81: 22.95 | I81: 23.40 | J81: 23.70 | K81: 23.1 | L81: 22.35 | M81: 15.70645
A82: 73 | B82: FRETAIL | C82: 329.95 | D82: 329.05 | E82: 326.25 | F82: 322.55 | G82: 319.75 | H82: 332.75 | I82: 335.55 | J82: 339.25 | K82: 331.85 | L82: 325.35 | M82: 10.27307
A83: 74 | B83: GAIL | C83: 114.5 | D83: 116.00 | E83: 112.50 | F83: 110.50 | G83: 107.00 | H83: 118.00 | I83: 121.50 | J83: 123.50 | K83: 119.5 | L83: 114 | M83: 153.91445
A84: 75 | B84: GMRINFRA | C84: 21.5 | D84: 21.45 | E84: 21.10 | F84: 20.70 | G84: 20.35 | H84: 21.85 | I84: 22.20 | J84: 22.60 | K84: 21.8 | L84: 21.05 | M84: 105.71558
A85: 76 | B85: GICRE | C85: 234.65 | D85: 235.38 | E85: 231.27 | F85: 227.88 | G85: 223.77 | H85: 238.77 | I85: 242.88 | J85: 246.27 | K85: 239.5 | L85: 232 | M85: 2.09376
A86: 77 | B86: GLENMARK | C86: 300.25 | D86: 301.72 | E86: 296.73 | F86: 293.22 | G86: 288.23 | H86: 305.23 | I86: 310.22 | J86: 313.73 | K86: 306.7 | L86: 298.2 | M86: 26.37001
A87: 78 | B87: GODREJAGRO | C87: 570 | D87: 564.82 | E87: 551.18 | F87: 532.37 | G87: 518.73 | H87: 583.63 | I87: 597.27 | J87: 616.08 | K87: 578.45 | L87: 546 | M87: 0.4871
A88: 79 | B88: GODREJCP | C88: 667.3 | D88: 666.22 | E88: 657.08 | F88: 646.87 | G88: 637.73 | H88: 676.43 | I88: 685.57 | J88: 695.78 | K88: 675.35 | L88: 656 | M88: 18.59249
A89: 80 | B89: GODREJIND | C89: 400.15 | D89: 403.98 | E89: 394.57 | F89: 388.98 | G89: 379.57 | H89: 409.57 | I89: 418.98 | J89: 424.57 | K89: 413.4 | L89: 398.4 | M89: 0.88259
A90: 81 | B90: GODREJPROP | C90: 1071.2 | D90: 1049.73 | E90: 1011.47 | F90: 951.73 | G90: 913.47 | H90: 1109.47 | I90: 1147.73 | J90: 1207.47 | K90: 1088 | L90: 990 | M90: 1.78002
A91: 82 | B91: GRAPHITE | C91: 286.25 | D91: 286.90 | E91: 279.90 | F91: 273.55 | G91: 266.55 | H91: 293.25 | I91: 300.25 | J91: 306.60 | K91: 293.9 | L91: 280.55 | M91: 8.51755
A92: 83 | B92: GRASIM | C92: 780.4 | D92: 771.22 | E92: 759.43 | F92: 738.47 | G92: 726.68 | H92: 792.18 | I92: 803.97 | J92: 824.93 | K92: 783 | L92: 750.25 | M92: 12.99292
A93: 84 | B93: GSPL | C93: 250.45 | D93: 248.58 | E93: 244.22 | F93: 237.98 | G93: 233.62 | H93: 254.82 | I93: 259.18 | J93: 265.42 | K93: 252.95 | L93: 242.35 | M93: 4.26398
A94: 85 | B94: HEG | C94: 1003.05 | D94: 1010.97 | E94: 989.08 | F94: 975.12 | G94: 953.23 | H94: 1024.93 | I94: 1046.82 | J94: 1060.78 | K94: 1032.85 | L94: 997 | M94: 1.68582
A95: 86 | B95: HCLTECH | C95: 579.1 | D95: 583.42 | E95: 573.18 | F95: 567.27 | G95: 557.03 | H95: 589.33 | I95: 599.57 | J95: 605.48 | K95: 593.65 | L95: 577.5 | M95: 35.90768
A96: 87 | B96: HDFCAMC | C96: 3075.2 | D96: 3053.22 | E96: 3014.48 | F96: 2953.77 | G96: 2915.03 | H96: 3113.93 | I96: 3152.67 | J96: 3213.38 | K96: 3091.95 | L96: 2992.5 | M96: 1.96125
A97: 88 | B97: HDFCBANK | C97: 1192.8 | D97: 1189.48 | E97: 1181.02 | F97: 1169.23 | G97: 1160.77 | H97: 1201.27 | I97: 1209.73 | J97: 1221.52 | K97: 1197.95 | L97: 1177.7 | M97: 55.89134
A98: 89 | B98: HDFCLIFE | C98: 565.3 | D98: 555.27 | E98: 537.53 | F98: 509.77 | G98: 492.03 | H98: 583.03 | I98: 600.77 | J98: 628.53 | K98: 573 | L98: 527.5 | M98: 12.60667
A99: 90 | B99: HAVELLS | C99: 594.35 | D99: 595.13 | E99: 585.27 | F99: 576.18 | G99: 566.32 | H99: 604.22 | I99: 614.08 | J99: 623.17 | K99: 605 | L99: 586.05 | M99: 11.71667
A100: 91 | B100: HEROMOTOCO | C100: 2376.15 | D100: 2401.05 | E100: 2333.10 | F100: 2290.05 | G100: 2222.10 | H100: 2444.10 | I100: 2512.05 | J100: 2555.10 | K100: 2469 | L100: 2358 | M100: 5.74957
A101: 92 | B101: HEXAWARE | C101: 363.75 | D101: 359.57 | E101: 353.73 | F101: 343.72 | G101: 337.88 | H101: 369.58 | I101: 375.42 | J101: 385.43 | K101: 365.4 | L101: 349.55 | M101: 3.23817
A102: 93 | B102: HINDALCO | C102: 181.8 | D102: 182.57 | E102: 179.53 | F102: 177.27 | G102: 174.23 | H102: 184.83 | I102: 187.87 | J102: 190.13 | K102: 185.6 | L102: 180.3 | M102: 60.08376
A103: 94 | B103: HINDPETRO | C103: 223.4 | D103: 225.17 | E103: 219.83 | F103: 216.27 | G103: 210.93 | H103: 228.73 | I103: 234.07 | J103: 237.63 | K103: 230.5 | L103: 221.6 | M103: 45.95587
A104: 95 | B104: HINDUNILVR | C104: 2178.95 | D104: 2149.80 | E104: 2104.05 | F104: 2029.15 | G104: 1983.40 | H104: 2224.70 | I104: 2270.45 | J104: 2345.35 | K104: 2195.55 | L104: 2074.9 | M104: 19.30834
A105: 96 | B105: HINDZINC | C105: 189.4 | D105: 190.10 | E105: 187.45 | F105: 185.50 | G105: 182.85 | H105: 192.05 | I105: 194.70 | J105: 196.65 | K105: 192.75 | L105: 188.15 | M105: 7.24986
A106: 97 | B106: HUDCO | C106: 39.6 | D106: 39.38 | E106: 38.37 | F106: 37.13 | G106: 36.12 | H106: 40.62 | I106: 41.63 | J106: 42.87 | K106: 40.4 | L106: 38.15 | M106: 10.06963
A107: 98 | B107: HDFC | C107: 2259.75 | D107: 2262.00 | E107: 2225.95 | F107: 2192.15 | G107: 2156.10 | H107: 2295.80 | I107: 2331.85 | J107: 2365.65 | K107: 2298.05 | L107: 2228.2 | M107: 28.28509
A108: 99 | B108: ICICIBANK | C108: 515.55 | D108: 512.23 | E108: 505.32 | F108: 495.08 | G108: 488.17 | H108: 522.47 | I108: 529.38 | J108: 539.62 | K108: 519.15 | L108: 502 | M108: 162.92578
A109: 100 | B109: ICICIGI | C109: 1300.65 | D109: 1304.23 | E109: 1271.72 | F109: 1242.78 | G109: 1210.27 | H109: 1333.17 | I109: 1365.68 | J109: 1394.62 | K109: 1336.75 | L109: 1275.3 | M109: 2.01621
A110: 101 | B110: ICICIPRULI | C110: 446.35 | D110: 448.75 | E110: 434.60 | F110: 422.85 | G110: 408.70 | H110: 460.50 | I110: 474.65 | J110: 486.40 | K110: 462.9 | L110: 437 | M110: 10.53162
A111: 102 | B111: IDBI | C111: 35.2 | D111: 35.83 | E111: 33.47 | F111: 31.73 | G111: 29.37 | H111: 37.57 | I111: 39.93 | J111: 41.67 | K111: 38.2 | L111: 34.1 | M111: 6.52812
A112: 103 | B112: IDFCFIRSTB | C112: 39.2 | D112: 39.27 | E112: 38.73 | F112: 38.27 | G112: 37.73 | H112: 39.73 | I112: 40.27 | J112: 40.73 | K112: 39.8 | L112: 38.8 | M112: 209.67183
A113: 104 | B113: ITC | C113: 207.6 | D113: 209.83 | E113: 202.77 | F113: 197.93 | G113: 190.87 | H113: 214.67 | I113: 221.73 | J113: 226.57 | K113: 216.9 | L113: 205 | M113: 184.5588
A114: 105 | B114: IBULHSGFIN | C114: 256.6 | D114: 264.93 | E114: 241.87 | F114: 227.13 | G114: 204.07 | H114: 279.67 | I114: 302.73 | J114: 317.47 | K114: 288 | L114: 250.2 | M114: 169.75776
A115: 106 | B115: IBVENTURES | C115: 159.3 | D115: 162.05 | E115: 156.55 | F115: 153.80 | G115: 148.30 | H115: 164.80 | I115: 170.30 | J115: 173.05 | K115: 167.55 | L115: 159.3 | M115: 38.76523
A116: 107 | B116: INDIANB | C116: 97 | D116: 97.65 | E116: 95.35 | F116: 93.70 | G116: 91.40 | H116: 99.30 | I116: 101.60 | J116: 103.25 | K116: 99.95 | L116: 96 | M116: 14.06266
A117: 108 | B117: INDHOTEL | C117: 140.85 | D117: 140.02 | E117: 138.38 | F117: 135.92 | G117: 134.28 | H117: 142.48 | I117: 144.12 | J117: 146.58 | K117: 141.65 | L117: 137.55 | M117: 7.1894
A118: 109 | B118: IOC | C118: 108.05 | D118: 109.33 | E118: 106.27 | F118: 104.48 | G118: 101.42 | H118: 111.12 | I118: 114.18 | J118: 115.97 | K118: 112.4 | L118: 107.55 | M118: 367.42641
A119: 110 | B119: IGL | C119: 509.65 | D119: 507.95 | E119: 504.00 | F119: 498.35 | G119: 494.40 | H119: 513.60 | I119: 517.55 | J119: 523.20 | K119: 511.9 | L119: 502.3 | M119: 21.83118
A120: 111 | B120: INDUSINDBK | C120: 1263.1 | D120: 1249.20 | E120: 1229.95 | F120: 1196.80 | G120: 1177.55 | H120: 1282.35 | I120: 1301.60 | J120: 1334.75 | K120: 1268.45 | L120: 1216.05 | M120: 83.91172
A121: 112 | B121: NAUKRI | C121: 2811.1 | D121: 2803.65 | E121: 2683.05 | F121: 2555.00 | G121: 2434.40 | H121: 2931.70 | I121: 3052.30 | J121: 3180.35 | K121: 2924.25 | L121: 2675.6 | M121: 2.45742
A122: 113 | B122: INFY | C122: 767.4 | D122: 774.28 | E122: 757.62 | F122: 747.83 | G122: 731.17 | H122: 784.07 | I122: 800.73 | J122: 810.52 | K122: 790.95 | L122: 764.5 | M122: 60.92028
A123: 114 | B123: INDIGO | C123: 1391.8 | D123: 1380.93 | E123: 1360.17 | F123: 1328.53 | G123: 1307.77 | H123: 1412.57 | I123: 1433.33 | J123: 1464.97 | K123: 1401.7 | L123: 1349.3 | M123: 18.09304
A124: 115 | B124: IPCALAB | C124: 1192.6 | D124: 1211.20 | E124: 1156.40 | F124: 1120.20 | G124: 1065.40 | H124: 1247.40 | I124: 1302.20 | J124: 1338.40 | K124: 1266 | L124: 1175 | M124: 0.82039
A125: 116 | B125: JSWENERGY | C125: 61.9 | D125: 61.45 | E125: 60.00 | F125: 58.10 | G125: 56.65 | H125: 63.35 | I125: 64.80 | J125: 66.70 | K125: 62.9 | L125: 59.55 | M125: 3.42262
A126: 117 | B126: JSWSTEEL | C126: 251.5 | D126: 249.42 | E126: 245.83 | F126: 240.17 | G126: 236.58 | H126: 255.08 | I126: 258.67 | J126: 264.33 | K126: 253 | L126: 243.75 | M126: 63.29214
A127: 118 | B127: JINDALSTEL | C127: 174.85 | D127: 170.83 | E127: 165.72 | F127: 156.58 | G127: 151.47 | H127: 179.97 | I127: 185.08 | J127: 194.22 | K127: 175.95 | L127: 161.7 | M127: 152.07085
A128: 119 | B128: JUBLFOOD | C128: 1955.4 | D128: 1929.92 | E128: 1885.98 | F128: 1816.57 | G128: 1772.63 | H128: 1999.33 | I128: 2043.27 | J128: 2112.68 | K128: 1973.85 | L128: 1860.5 | M128: 22.23606
A129: 120 | B129: JUBILANT | C129: 547.55 | D129: 546.73 | E129: 538.47 | F129: 529.38 | G129: 521.12 | H129: 555.82 | I129: 564.08 | J129: 573.17 | K129: 555 | L129: 537.65 | M129: 4.33124
A130: 121 | B130: KOTAKBANK | C130: 1676.25 | D130: 1663.68 | E130: 1646.57 | F130: 1616.88 | G130: 1599.77 | H130: 1693.37 | I130: 1710.48 | J130: 1740.17 | K130: 1680.8 | L130: 1634 | M130: 94.95046
A131: 122 | B131: L&TFH | C131: 111.15 | D131: 110.87 | E131: 108.28 | F131: 105.42 | G131: 102.83 | H131: 113.73 | I131: 116.32 | J131: 119.18 | K131: 113.45 | L131: 108 | M131: 77.86477
A132: 123 | B132: LTTS | C132: 1640.9 | D132: 1654.15 | E132: 1614.80 | F132: 1588.70 | G132: 1549.35 | H132: 1680.25 | I132: 1719.60 | J132: 1745.70 | K132: 1693.5 | L132: 1628.05 | M132: 0.39962
A133: 124 | B133: LICHSGFIN | C133: 391.65 | D133: 395.35 | E133: 378.45 | F133: 365.25 | G133: 348.35 | H133: 408.55 | I133: 425.45 | J133: 438.65 | K133: 412.25 | L133: 382.15 | M133: 75.80796
A134: 125 | B134: LTI | C134: 1956.25 | D134: 1954.30 | E134: 1922.60 | F134: 1888.95 | G134: 1857.25 | H134: 1987.95 | I134: 2019.65 | J134: 2053.30 | K134: 1986 | L134: 1920.65 | M134: 0.36496
A135: 126 | B135: LT | C135: 1286.65 | D135: 1287.52 | E135: 1271.13 | F135: 1255.62 | G135: 1239.23 | H135: 1303.03 | I135: 1319.42 | J135: 1334.93 | K135: 1303.9 | L135: 1272 | M135: 39.39306
A136: 127 | B136: LUPIN | C136: 708.65 | D136: 710.23 | E136: 697.22 | F136: 685.78 | G136: 672.77 | H136: 721.67 | I136: 734.68 | J136: 746.12 | K136: 723.25 | L136: 698.8 | M136: 11.17946
A137: 128 | B137: MRF | C137: 69462.65 | D137: 69116.88 | E137: 68345.77 | F137: 67228.88 | G137: 66457.77 | H137: 70233.77 | I137: 71004.88 | J137: 72121.77 | K137: 69888 | L137: 68000 | M137: 0.04805
A138: 129 | B138: MGL | C138: 1165.05 | D138: 1165.05 | E138: 1151.20 | F138: 1137.35 | G138: 1123.50 | H138: 1178.90 | I138: 1192.75 | J138: 1206.60 | K138: 1178.9 | L138: 1151.2 | M138: 13.51299
A139: 130 | B139: M&MFIN | C139: 349.55 | D139: 353.20 | E139: 343.40 | F139: 337.25 | G139: 327.45 | H139: 359.35 | I139: 369.15 | J139: 375.30 | K139: 363 | L139: 347.05 | M139: 23.06322
A140: 131 | B140: M&M | C140: 558.7 | D140: 553.22 | E140: 540.68 | F140: 522.67 | G140: 510.13 | H140: 571.23 | I140: 583.77 | J140: 601.78 | K140: 565.75 | L140: 535.2 | M140: 23.52196
A141: 132 | B141: MANAPPURAM | C141: 184.1 | D141: 184.60 | E141: 181.60 | F141: 179.10 | G141: 176.10 | H141: 187.10 | I141: 190.10 | J141: 192.60 | K141: 187.6 | L141: 182.1 | M141: 28.02932
A142: 133 | B142: MRPL | C142: 42.9 | D142: 43.45 | E142: 42.05 | F142: 41.20 | G142: 39.80 | H142: 44.30 | I142: 45.70 | J142: 46.55 | K142: 44.85 | L142: 42.6 | M142: 8.09305
A143: 134 | B143: MARICO | C143: 306.6 | D143: 307.32 | E143: 303.38 | F143: 300.17 | G143: 296.23 | H143: 310.53 | I143: 314.47 | J143: 317.68 | K143: 311.25 | L143: 304.1 | M143: 69.41813
A144: 135 | B144: MARUTI | C144: 7011.3 | D144: 6945.38 | E144: 6845.92 | F144: 6680.53 | G144: 6581.07 | H144: 7110.77 | I144: 7210.23 | J144: 7375.62 | K144: 7044.85 | L144: 6780 | M144: 8.68935
A145: 136 | B145: MFSL | C145: 477.1 | D145: 467.97 | E145: 449.13 | F145: 421.17 | G145: 402.33 | H145: 495.93 | I145: 514.77 | J145: 542.73 | K145: 486.8 | L145: 440 | M145: 16.72907
A146: 137 | B146: MINDTREE | C146: 902.75 | D146: 893.60 | E146: 877.30 | F146: 851.85 | G146: 835.55 | H146: 919.05 | I146: 935.35 | J146: 960.80 | K146: 909.9 | L146: 868.15 | M146: 4.76824
A147: 138 | B147: MOTHERSUMI | C147: 125.15 | D147: 126.55 | E147: 122.85 | F147: 120.55 | G147: 116.85 | H147: 128.85 | I147: 132.55 | J147: 134.85 | K147: 130.25 | L147: 124.25 | M147: 275.35769
A148: 139 | B148: MPHASIS | C148: 893.85 | D148: 902.38 | E148: 875.47 | F148: 857.08 | G148: 830.17 | H148: 920.77 | I148: 947.68 | J148: 966.07 | K148: 929.3 | L148: 884 | M148: 0.51751
A149: 140 | B149: MUTHOOTFIN | C149: 748.35 | D149: 745.08 | E149: 736.02 | F149: 723.68 | G149: 714.62 | H149: 757.42 | I149: 766.48 | J149: 778.82 | K149: 754.15 | L149: 732.75 | M149: 5.3477
A150: 141 | B150: NATCOPHARM | C150: 624.7 | D150: 631.07 | E150: 614.18 | F150: 603.67 | G150: 586.78 | H150: 641.58 | I150: 658.47 | J150: 668.98 | K150: 647.95 | L150: 620.55 | M150: 0.70644
A151: 142 | B151: NBCC | C151: 32.7 | D151: 32.43 | E151: 31.92 | F151: 31.13 | G151: 30.62 | H151: 33.22 | I151: 33.73 | J151: 34.52 | K151: 32.95 | L151: 31.65 | M151: 131.59247
A152: 143 | B152: NHPC | C152: 24 | D152: 23.95 | E152: 23.70 | F152: 23.40 | G152: 23.15 | H152: 24.25 | I152: 24.50 | J152: 24.80 | K152: 24.2 | L152: 23.65 | M152: 169.98025
A153: 144 | B153: NMDC | C153: 103.1 | D153: 104.67 | E153: 100.88 | F153: 98.67 | G153: 94.88 | H153: 106.88 | I153: 110.67 | J153: 112.88 | K153: 108.45 | L153: 102.45 | M153: 115.54574
A154: 145 | B154: NTPC | C154: 110.25 | D154: 109.70 | E154: 107.75 | F154: 105.25 | G154: 103.30 | H154: 112.20 | I154: 114.15 | J154: 116.65 | K154: 111.65 | L154: 107.2 | M154: 645.18347
A155: 146 | B155: NATIONALUM | C155: 41.7 | D155: 41.68 | E155: 41.12 | F155: 40.53 | G155: 39.97 | H155: 42.27 | I155: 42.83 | J155: 43.42 | K155: 42.25 | L155: 41.1 | M155: 182.52296
A156: 147 | B156: NESTLEIND | C156: 16301 | D156: 16110.33 | E156: 15720.67 | F156: 15140.33 | G156: 14750.67 | H156: 16690.67 | I156: 17080.33 | J156: 17660.67 | K156: 16500 | L156: 15530 | M156: 0.59649
A157: 148 | B157: OBEROIRLTY | C157: 524.7 | D157: 519.58 | E157: 505.17 | F157: 485.63 | G157: 471.22 | H157: 539.12 | I157: 553.53 | J157: 573.07 | K157: 534 | L157: 500.05 | M157: 1.68229
A158: 149 | B158: ONGC | C158: 103.45 | D158: 103.32 | E158: 101.68 | F158: 99.92 | G158: 98.28 | H158: 105.08 | I158: 106.72 | J158: 108.48 | K158: 104.95 | L158: 101.55 | M158: 833.60147
A159: 150 | B159: OIL | C159: 123.05 | D159: 122.08 | E159: 119.27 | F159: 115.48 | G159: 112.67 | H159: 125.87 | I159: 128.68 | J159: 132.47 | K159: 124.9 | L159: 118.3 | M159: 95.97439
A160: 151 | B160: OFSS | C160: 3081.25 | D160: 3040.57 | E160: 2960.68 | F160: 2840.12 | G160: 2760.23 | H160: 3161.13 | I160: 3241.02 | J160: 3361.58 | K160: 3120.45 | L160: 2920 | M160: 0.2199
A161: 152 | B161: PIIND | C161: 1549.1 | D161: 1528.58 | E161: 1492.17 | F161: 1435.23 | G161: 1398.82 | H161: 1585.52 | I161: 1621.93 | J161: 1678.87 | K161: 1565 | L161: 1471.65 | M161: 3.09452
A162: 153 | B162: PNBHOUSING | C162: 408.9 | D162: 410.33 | E162: 402.07 | F162: 395.23 | G162: 386.97 | H162: 417.17 | I162: 425.43 | J162: 432.27 | K162: 418.6 | L162: 403.5 | M162: 7.15716
A163: 154 | B163: PAGEIND | C163: 24324.65 | D163: 24141.48 | E163: 23782.97 | F163: 23241.28 | G163: 22882.77 | H163: 24683.17 | I163: 25041.68 | J163: 25583.37 | K163: 24500 | L163: 23599.8 | M163: 0.22781
A164: 155 | B164: PETRONET | C164: 265.9 | D164: 264.93 | E164: 261.97 | F164: 258.03 | G164: 255.07 | H164: 268.87 | I164: 271.83 | J164: 275.77 | K164: 267.9 | L164: 261 | M164: 23.08304
A165: 156 | B165: PFIZER | C165: 4113.85 | D165: 4106.12 | E165: 4037.73 | F165: 3961.62 | G165: 3893.23 | H165: 4182.23 | I165: 4250.62 | J165: 4326.73 | K165: 4174.5 | L165: 4030 | M165: 0.12497
A166: 157 | B166: PIDILITIND | C166: 1563.85 | D166: 1541.25 | E166: 1508.10 | F166: 1452.35 | G166: 1419.20 | H166: 1597.00 | I166: 1630.15 | J166: 1685.90 | K166: 1574.4 | L166: 1485.5 | M166: 7.69665
A167: 158 | B167: PEL | C167: 1338.4 | D167: 1384.67 | E167: 1279.33 | F167: 1220.27 | G167: 1114.93 | H167: 1443.73 | I167: 1549.07 | J167: 1608.13 | K167: 1490 | L167: 1325.6 | M167: 29.79765
A168: 159 | B168: PFC | C168: 113.95 | D168: 112.30 | E168: 110.00 | F168: 106.05 | G168: 103.75 | H168: 116.25 | I168: 118.55 | J168: 122.50 | K168: 114.6 | L168: 108.35 | M168: 94.55973
A169: 160 | B169: POWERGRID | C169: 187.35 | D169: 184.60 | E169: 180.20 | F169: 173.05 | G169: 168.65 | H169: 191.75 | I169: 196.15 | J169: 203.30 | K169: 189 | L169: 177.45 | M169: 359.92338
A170: 161 | B170: PRESTIGE | C170: 352.5 | D170: 350.80 | E170: 333.80 | F170: 315.10 | G170: 298.10 | H170: 369.50 | I170: 386.50 | J170: 405.20 | K170: 367.8 | L170: 332.1 | M170: 3.99518
A171: 162 | B171: PGHH | C171: 11651.5 | D171: 11671.18 | E171: 11522.37 | F171: 11393.23 | G171: 11244.42 | H171: 11800.32 | I171: 11949.13 | J171: 12078.27 | K171: 11820 | L171: 11542.05 | M171: 0.02985
A172: 163 | B172: PNB | C172: 57.35 | D172: 57.87 | E172: 56.58 | F172: 55.82 | G172: 54.53 | H172: 58.63 | I172: 59.92 | J172: 60.68 | K172: 59.15 | L172: 57.1 | M172: 154.49355
A173: 164 | B173: QUESS | C173: 624.9 | D173: 617.20 | E173: 604.40 | F173: 583.90 | G173: 571.10 | H173: 637.70 | I173: 650.50 | J173: 671.00 | K173: 630 | L173: 596.7 | M173: 5.40845
A174: 165 | B174: RBLBANK | C174: 312.5 | D174: 308.22 | E174: 301.43 | F174: 290.37 | G174: 283.58 | H174: 319.28 | I174: 326.07 | J174: 337.13 | K174: 315 | L174: 297.15 | M174: 58.43485
A175: 166 | B175: RECLTD | C175: 137.8 | D175: 138.27 | E175: 135.63 | F175: 133.47 | G175: 130.83 | H175: 140.43 | I175: 143.07 | J175: 145.23 | K175: 140.9 | L175: 136.1 | M175: 70.38131
A176: 167 | B176: RAJESHEXPO | C176: 722.8 | D176: 726.10 | E176: 718.20 | F176: 713.60 | G176: 705.70 | H176: 730.70 | I176: 738.60 | J176: 743.20 | K176: 734 | L176: 721.5 | M176: 1.23317
A177: 168 | B177: RELIANCE | C177: 1385.5 | D177: 1382.83 | E177: 1365.72 | F177: 1345.93 | G177: 1328.82 | H177: 1402.62 | I177: 1419.73 | J177: 1439.52 | K177: 1399.95 | L177: 1363.05 | M177: 158.86673
A178: 169 | B178: SBILIFE | C178: 912.65 | D178: 897.05 | E178: 872.25 | F178: 831.85 | G178: 807.05 | H178: 937.45 | I178: 962.25 | J178: 1002.65 | K178: 921.85 | L178: 856.65 | M178: 4.4517
A179: 170 | B179: SRF | C179: 3789.4 | D179: 3763.87 | E179: 3713.68 | F179: 3637.97 | G179: 3587.78 | H179: 3839.58 | I179: 3889.77 | J179: 3965.48 | K179: 3814.05 | L179: 3688.15 | M179: 3.14532
A180: 171 | B180: SHREECEM | C180: 23267.5 | D180: 23010.52 | E180: 22667.03 | F180: 22066.57 | G180: 21723.08 | H180: 23610.98 | I180: 23954.47 | J180: 24554.93 | K180: 23354 | L180: 22410.05 | M180: 0.26041
A181: 172 | B181: SRTRANSFIN | C181: 987.95 | D181: 986.17 | E181: 967.33 | F181: 946.72 | G181: 927.88 | H181: 1006.78 | I181: 1025.62 | J181: 1046.23 | K181: 1005 | L181: 965.55 | M181: 19.83266
A182: 173 | B182: SIEMENS | C182: 1437.25 | D182: 1437.45 | E182: 1415.30 | F182: 1393.35 | G182: 1371.20 | H182: 1459.40 | I182: 1481.55 | J182: 1503.50 | K182: 1459.6 | L182: 1415.5 | M182: 3.34263
A183: 174 | B183: SBIN | C183: 298.1 | D183: 300.10 | E183: 293.35 | F183: 288.60 | G183: 281.85 | H183: 304.85 | I183: 311.60 | J183: 316.35 | K183: 306.85 | L183: 295.35 | M183: 926.56638
A184: 175 | B184: SAIL | C184: 44.75 | D184: 44.42 | E184: 43.58 | F184: 42.42 | G184: 41.58 | H184: 45.58 | I184: 46.42 | J184: 47.58 | K184: 45.25 | L184: 43.25 | M184: 179.54383
A185: 176 | B185: STRTECH | C185: 118.5 | D185: 119.17 | E185: 115.93 | F185: 113.37 | G185: 110.13 | H185: 121.73 | I185: 124.97 | J185: 127.53 | K185: 122.4 | L185: 116.6 | M185: 8.07575
A186: 177 | B186: SUNPHARMA | C186: 417.55 | D186: 420.15 | E186: 411.40 | F186: 405.25 | G186: 396.50 | H186: 426.30 | I186: 435.05 | J186: 441.20 | K186: 428.9 | L186: 414 | M186: 37.57229
A187: 178 | B187: SUNTV | C187: 460.85 | D187: 455.07 | E187: 445.93 | F187: 431.02 | G187: 421.88 | H187: 469.98 | I187: 479.12 | J187: 494.03 | K187: 464.2 | L187: 440.15 | M187: 15.5546
A188: 179 | B188: SYNGENE | C188: 314.65 | D188: 314.38 | E188: 311.77 | F188: 308.88 | G188: 306.27 | H188: 317.27 | I188: 319.88 | J188: 322.77 | K188: 317 | L188: 311.5 | M188: 0.78761
A189: 180 | B189: TVSMOTOR | C189: 471.3 | D189: 466.57 | E189: 459.33 | F189: 447.37 | G189: 440.13 | H189: 478.53 | I189: 485.77 | J189: 497.73 | K189: 473.8 | L189: 454.6 | M189: 8.43524
A190: 181 | B190: TCS | C190: 2102.5 | D190: 2130.13 | E190: 2065.57 | F190: 2028.63 | G190: 1964.07 | H190: 2167.07 | I190: 2231.63 | J190: 2268.57 | K190: 2194.7 | L190: 2093.2 | M190: 32.87223
A191: 182 | B191: TATAGLOBAL | C191: 378.85 | D191: 376.12 | E191: 370.23 | F191: 361.62 | G191: 355.73 | H191: 384.73 | I191: 390.62 | J191: 399.23 | K191: 382 | L191: 367.5 | M191: 26.8123
A192: 183 | B192: TATAMTRDVR | C192: 68.3 | D192: 68.17 | E192: 66.63 | F192: 64.97 | G192: 63.43 | H192: 69.83 | I192: 71.37 | J192: 73.03 | K192: 69.7 | L192: 66.5 | M192: 38.13549
A193: 184 | B193: TATAMOTORS | C193: 163.85 | D193: 163.90 | E193: 159.50 | F193: 155.15 | G193: 150.75 | H193: 168.25 | I193: 172.65 | J193: 177.00 | K193: 168.3 | L193: 159.55 | M193: 756.21897
A194: 185 | B194: TATAPOWER | C194: 54.9 | D194: 55.32 | E194: 54.23 | F194: 53.57 | G194: 52.48 | H194: 55.98 | I194: 57.07 | J194: 57.73 | K194: 56.4 | L194: 54.65 | M194: 79.77888
A195: 186 | B195: TATASTEEL | C195: 436.05 | D195: 430.55 | E195: 422.10 | F195: 408.15 | G195: 399.70 | H195: 444.50 | I195: 452.95 | J195: 466.90 | K195: 439 | L195: 416.6 | M195: 107.38727
A196: 187 | B196: TECHM | C196: 793.15 | D196: 800.78 | E196: 782.87 | F196: 772.58 | G196: 754.67 | H196: 811.07 | I196: 828.98 | J196: 839.27 | K196: 818.7 | L196: 790.5 | M196: 30.81521
A197: 188 | B197: NIACL | C197: 136.9 | D197: 138.68 | E197: 134.37 | F197: 131.83 | G197: 127.52 | H197: 141.22 | I197: 145.53 | J197: 148.07 | K197: 143 | L197: 136.15 | M197: 1.68669
A198: 189 | B198: RAMCOCEM | C198: 790.8 | D198: 778.67 | E198: 760.38 | F198: 729.97 | G198: 711.68 | H198: 809.08 | I198: 827.37 | J198: 857.78 | K198: 796.95 | L198: 748.25 | M198: 5.867
A199: 190 | B199: TITAN | C199: 1186.4 | D199: 1180.42 | E199: 1168.53 | F199: 1150.67 | G199: 1138.78 | H199: 1198.28 | I199: 1210.17 | J199: 1228.03 | K199: 1192.3 | L199: 1162.55 | M199: 18.09101
A200: 191 | B200: TORNTPHARM | C200: 1906.1 | D200: 1903.83 | E200: 1890.07 | F200: 1874.03 | G200: 1860.27 | H200: 1919.87 | I200: 1933.63 | J200: 1949.67 | K200: 1917.6 | L200: 1887.8 | M200: 1.67763
A201: 192 | B201: TORNTPOWER | C201: 302.45 | D201: 302.70 | E201: 299.50 | F201: 296.55 | G201: 293.35 | H201: 305.65 | I201: 308.85 | J201: 311.80 | K201: 305.9 | L201: 299.75 | M201: 11.09871
A202: 193 | B202: UPL | C202: 513.3 | D202: 511.93 | E202: 506.37 | F202: 499.43 | G202: 493.87 | H202: 518.87 | I202: 524.43 | J202: 531.37 | K202: 517.5 | L202: 505 | M202: 43.40034
A203: 194 | B203: ULTRACEMCO | C203: 4370.65 | D203: 4331.22 | E203: 4275.58 | F203: 4180.52 | G203: 4124.88 | H203: 4426.28 | I203: 4481.92 | J203: 4576.98 | K203: 4386.85 | L203: 4236.15 | M203: 4.5163
A204: 195 | B204: UNIONBANK | C204: 47.65 | D204: 47.97 | E204: 47.03 | F204: 46.42 | G204: 45.48 | H204: 48.58 | I204: 49.52 | J204: 50.13 | K204: 48.9 | L204: 47.35 | M204: 21.60583
A205: 196 | B205: UBL | C205: 1264.1 | D205: 1266.40 | E205: 1246.70 | F205: 1229.30 | G205: 1209.60 | H205: 1283.80 | I205: 1303.50 | J205: 1320.90 | K205: 1286.1 | L205: 1249 | M205: 3.17811
... 30 more rows

Sheet MidCap Intra
L5: Back To Main Page
A6: FOR INTRA DAY TRADING | K6: =Main!B10 -> 2020-02-04
A9: Sr.no | B9: Scrip | C9: CLOSE RATE | D9: Pivot Point | E9: Supports | H9: Resistances
C10: Point | E10: S1 | F10: S2 | G10: S3 | H10: R1 | I10: R2 | J10: R3 | K10: HIGH | L10: LOW | M10: Total Trade Quanity in Lakhs
A11: 1 | B11: 3MINDIA | C11: 22637.05 | D11: 22612.33 | E11: 22024.72 | F11: 21412.38 | G11: 20824.77 | H11: 23224.67 | I11: 23812.28 | J11: 24424.62 | K11: 23199.95 | L11: 22000 | M11: 0.03896
A12: 2 | B12: ACC | C12: 1456.55 | D12: 1452.07 | E12: 1435.63 | F12: 1414.72 | G12: 1398.28 | H12: 1472.98 | I12: 1489.42 | J12: 1510.33 | K12: 1468.5 | L12: 1431.15 | M12: 7.72603
A13: 3 | B13: AIAENG | C13: 1769.25 | D13: 1793.08 | E13: 1737.17 | F13: 1705.08 | G13: 1649.17 | H13: 1825.17 | I13: 1881.08 | J13: 1913.17 | K13: 1849 | L13: 1761 | M13: 0.18023
A14: 4 | B14: APLAPOLLO | C14: 1921.75 | D14: 1936.62 | E14: 1883.33 | F14: 1844.92 | G14: 1791.63 | H14: 1975.03 | I14: 2028.32 | J14: 2066.73 | K14: 1989.9 | L14: 1898.2 | M14: 0.39531
A15: 5 | B15: AUBANK | C15: 1043.95 | D15: 1031.65 | E15: 1003.30 | F15: 962.65 | G15: 934.30 | H15: 1072.30 | I15: 1100.65 | J15: 1141.30 | K15: 1060 | L15: 991 | M15: 4.10925
A16: 6 | B16: AARTIIND | C16: 969.05 | D16: 974.33 | E16: 949.77 | F16: 930.48 | G16: 905.92 | H16: 993.62 | I16: 1018.18 | J16: 1037.47 | K16: 998.9 | L16: 955.05 | M16: 2.06496
A17: 7 | B17: AAVAS | C17: 1988.8 | D17: 1984.55 | E17: 1959.95 | F17: 1931.10 | G17: 1906.50 | H17: 2013.40 | I17: 2038.00 | J17: 2066.85 | K17: 2009.15 | L17: 1955.7 | M17: 0.20229
A18: 8 | B18: ABBOTINDIA | C18: 12746.25 | D18: 12594.85 | E18: 12337.95 | F18: 11929.65 | G18: 11672.75 | H18: 13003.15 | I18: 13260.05 | J18: 13668.35 | K18: 12851.75 | L18: 12186.55 | M18: 0.08753
A19: 9 | B19: ADANIGAS | C19: 165.15 | D19: 166.10 | E19: 163.30 | F19: 161.45 | G19: 158.65 | H19: 167.95 | I19: 170.75 | J19: 172.60 | K19: 168.9 | L19: 164.25 | M19: 7.94039
A20: 10 | B20: ADANIGREEN | C20: 196.15 | D20: 192.77 | E20: 189.38 | F20: 182.62 | G20: 179.23 | H20: 199.53 | I20: 202.92 | J20: 209.68 | K20: 196.15 | L20: 186 | M20: 11.71
A21: 11 | B21: ADANIPORTS | C21: 367.35 | D21: 364.28 | E21: 358.57 | F21: 349.78 | G21: 344.07 | H21: 373.07 | I21: 378.78 | J21: 387.57 | K21: 370 | L21: 355.5 | M21: 28.57926
A22: 12 | B22: ADANIPOWER | C22: 59 | D22: 59.12 | E22: 58.18 | F22: 57.37 | G22: 56.43 | H22: 59.93 | I22: 60.87 | J22: 61.68 | K22: 60.05 | L22: 58.3 | M22: 63.40354
A23: 13 | B23: ADANITRANS | C23: 332.05 | D23: 330.82 | E23: 322.78 | F23: 313.52 | G23: 305.48 | H23: 340.08 | I23: 348.12 | J23: 357.38 | K23: 338.85 | L23: 321.55 | M23: 1.18451
A24: 14 | B24: ABCAPITAL | C24: 92.1 | D24: 92.98 | E24: 90.72 | F24: 89.33 | G24: 87.07 | H24: 94.37 | I24: 96.63 | J24: 98.02 | K24: 95.25 | L24: 91.6 | M24: 21.35154
A25: 15 | B25: ABFRL | C25: 230 | D25: 228.93 | E25: 225.27 | F25: 220.53 | G25: 216.87 | H25: 233.67 | I25: 237.33 | J25: 242.07 | K25: 232.6 | L25: 224.2 | M25: 4.0744
A26: 16 | B26: ADVENZYMES | C26: 161.7 | D26: 163.68 | E26: 158.77 | F26: 155.83 | G26: 150.92 | H26: 166.62 | I26: 171.53 | J26: 174.47 | K26: 168.6 | L26: 160.75 | M26: 0.39041
A27: 17 | B27: AEGISCHEM | C27: 205.8 | D27: 210.13 | E27: 199.27 | F27: 192.73 | G27: 181.87 | H27: 216.67 | I27: 227.53 | J27: 234.07 | K27: 221 | L27: 203.6 | M27: 2.44193
A28: 18 | B28: AFFLE | C28: 1754.4 | D28: 1732.80 | E28: 1671.60 | F28: 1588.80 | G28: 1527.60 | H28: 1815.60 | I28: 1876.80 | J28: 1959.60 | K28: 1794 | L28: 1650 | M28: 2.66503
A29: 19 | B29: AJANTPHARM | C29: 1174.6 | D29: 1159.85 | E29: 1134.90 | F29: 1095.20 | G29: 1070.25 | H29: 1199.55 | I29: 1224.50 | J29: 1264.20 | K29: 1184.8 | L29: 1120.15 | M29: 4.28087
A30: 20 | B30: AKZOINDIA | C30: 2045.4 | D30: 2046.72 | E30: 2025.43 | F30: 2005.47 | G30: 1984.18 | H30: 2066.68 | I30: 2087.97 | J30: 2107.93 | K30: 2068 | L30: 2026.75 | M30: 0.05464
A31: 21 | B31: APLLTD | C31: 624.05 | D31: 623.03 | E31: 608.07 | F31: 592.08 | G31: 577.12 | H31: 639.02 | I31: 653.98 | J31: 669.97 | K31: 638 | L31: 607.05 | M31: 1.45598
A32: 22 | B32: ALKEM | C32: 2376.6 | D32: 2374.72 | E32: 2354.43 | F32: 2332.27 | G32: 2311.98 | H32: 2396.88 | I32: 2417.17 | J32: 2439.33 | K32: 2395 | L32: 2352.55 | M32: 0.49486
A33: 23 | B33: ALLCARGO | C33: 109.85 | D33: 110.75 | E33: 108.10 | F33: 106.35 | G33: 103.70 | H33: 112.50 | I33: 115.15 | J33: 116.90 | K33: 113.4 | L33: 109 | M33: 3.15699
A34: 24 | B34: AMARAJABAT | C34: 785.7 | D34: 777.70 | E34: 760.45 | F34: 735.20 | G34: 717.95 | H34: 802.95 | I34: 820.20 | J34: 845.45 | K34: 794.95 | L34: 752.45 | M34: 16.05793
A35: 25 | B35: AMBER | C35: 1534.3 | D35: 1497.03 | E35: 1410.07 | F35: 1285.83 | G35: 1198.87 | H35: 1621.27 | I35: 1708.23 | J35: 1832.47 | K35: 1584 | L35: 1372.8 | M35: 1.76743
A36: 26 | B36: AMBUJACEM | C36: 200.75 | D36: 199.75 | E36: 197.05 | F36: 193.35 | G36: 190.65 | H36: 203.45 | I36: 206.15 | J36: 209.85 | K36: 202.45 | L36: 196.05 | M36: 40.3174
A37: 27 | B37: APOLLOHOSP | C37: 1695.85 | D37: 1676.48 | E37: 1635.37 | F37: 1574.88 | G37: 1533.77 | H37: 1736.97 | I37: 1778.08 | J37: 1838.57 | K37: 1717.6 | L37: 1616 | M37: 5.84886
A38: 28 | B38: APOLLOTYRE | C38: 161.05 | D38: 163.78 | E38: 156.87 | F38: 152.68 | G38: 145.77 | H38: 167.97 | I38: 174.88 | J38: 179.07 | K38: 170.7 | L38: 159.6 | M38: 33.45011
A39: 29 | B39: ARVINDFASN | C39: 361.55 | D39: 365.88 | E39: 350.67 | F39: 339.78 | G39: 324.57 | H39: 376.77 | I39: 391.98 | J39: 402.87 | K39: 381.1 | L39: 355 | M39: 0.2026
A40: 30 | B40: ASAHIINDIA | C40: 260.85 | D40: 257.55 | E40: 252.30 | F40: 243.75 | G40: 238.50 | H40: 266.10 | I40: 271.35 | J40: 279.90 | K40: 262.8 | L40: 249 | M40: 0.92783
A41: 31 | B41: ASHOKLEY | C41: 78 | D41: 77.27 | E41: 75.53 | F41: 73.07 | G41: 71.33 | H41: 79.73 | I41: 81.47 | J41: 83.93 | K41: 79 | L41: 74.8 | M41: 298.18912
A42: 32 | B42: ASHOKA | C42: 106.7 | D42: 106.22 | E42: 102.63 | F42: 98.57 | G42: 94.98 | H42: 110.28 | I42: 113.87 | J42: 117.93 | K42: 109.8 | L42: 102.15 | M42: 4.07556
A43: 33 | B43: ASIANPAINT | C43: 1867.65 | D43: 1835.18 | E43: 1797.47 | F43: 1727.28 | G43: 1689.57 | H43: 1905.37 | I43: 1943.08 | J43: 2013.27 | K43: 1872.9 | L43: 1765 | M43: 28.54532
A44: 34 | B44: ASTERDM | C44: 165.15 | D44: 165.35 | E44: 161.80 | F44: 158.45 | G44: 154.90 | H44: 168.70 | I44: 172.25 | J44: 175.60 | K44: 168.9 | L44: 162 | M44: 0.91632
A45: 35 | B45: ASTRAZEN | C45: 2613.5 | D45: 2622.15 | E45: 2529.35 | F45: 2445.20 | G45: 2352.40 | H45: 2706.30 | I45: 2799.10 | J45: 2883.25 | K45: 2714.95 | L45: 2538 | M45: 1.30945
A46: 36 | B46: ASTRAL | C46: 1166.6 | D46: 1160.48 | E46: 1128.12 | F46: 1089.63 | G46: 1057.27 | H46: 1198.97 | I46: 1231.33 | J46: 1269.82 | K46: 1192.85 | L46: 1122 | M46: 0.45293
A47: 37 | B47: ATUL | C47: 4834.15 | D47: 4871.42 | E47: 4760.33 | F47: 4686.52 | G47: 4575.43 | H47: 4945.23 | I47: 5056.32 | J47: 5130.13 | K47: 4982.5 | L47: 4797.6 | M47: 0.22672
A48: 38 | B48: AUROPHARMA | C48: 473.5 | D48: 472.50 | E48: 466.00 | F48: 458.50 | G48: 452.00 | H48: 480.00 | I48: 486.50 | J48: 494.00 | K48: 479 | L48: 465 | M48: 14.28152
A49: 39 | B49: AVANTIFEED | C49: 670.05 | D49: 669.87 | E49: 660.13 | F49: 650.22 | G49: 640.48 | H49: 679.78 | I49: 689.52 | J49: 699.43 | K49: 679.6 | L49: 659.95 | M49: 6.2204
A50: 40 | B50: DMART | C50: 2131.65 | D50: 2123.45 | E50: 2089.20 | F50: 2046.75 | G50: 2012.50 | H50: 2165.90 | I50: 2200.15 | J50: 2242.60 | K50: 2157.7 | L50: 2081 | M50: 7.30661
A51: 41 | B51: AXISBANK | C51: 708.95 | D51: 705.77 | E51: 698.73 | F51: 688.52 | G51: 681.48 | H51: 715.98 | I51: 723.02 | J51: 733.23 | K51: 712.8 | L51: 695.55 | M51: 115.94991
A52: 42 | B52: BASF | C52: 959.75 | D52: 962.25 | E52: 942.50 | F52: 925.25 | G52: 905.50 | H52: 979.50 | I52: 999.25 | J52: 1016.50 | K52: 982 | L52: 945 | M52: 0.22443
A53: 43 | B53: BEML | C53: 950.1 | D53: 954.45 | E53: 940.95 | F53: 931.80 | G53: 918.30 | H53: 963.60 | I53: 977.10 | J53: 986.25 | K53: 967.95 | L53: 945.3 | M53: 1.25333
A54: 44 | B54: BSE | C54: 523.6 | D54: 524.50 | E54: 517.20 | F54: 510.80 | G54: 503.50 | H54: 530.90 | I54: 538.20 | J54: 544.60 | K54: 531.8 | L54: 518.1 | M54: 0.57314
A55: 45 | B55: BAJAJ-AUTO | C55: 3284.5 | D55: 3238.25 | E55: 3161.35 | F55: 3038.20 | G55: 2961.30 | H55: 3361.40 | I55: 3438.30 | J55: 3561.45 | K55: 3315.15 | L55: 3115.1 | M55: 9.21166
A56: 46 | B56: BAJAJCON | C56: 214.95 | D56: 216.08 | E56: 211.22 | F56: 207.48 | G56: 202.62 | H56: 219.82 | I56: 224.68 | J56: 228.42 | K56: 220.95 | L56: 212.35 | M56: 1.49453
A57: 47 | B57: BAJAJELEC | C57: 375.35 | D57: 367.33 | E57: 355.67 | F57: 335.98 | G57: 324.32 | H57: 387.02 | I57: 398.68 | J57: 418.37 | K57: 379 | L57: 347.65 | M57: 1.04239
A58: 48 | B58: BAJFINANCE | C58: 4359.35 | D58: 4328.82 | E58: 4280.73 | F58: 4202.12 | G58: 4154.03 | H58: 4407.43 | I58: 4455.52 | J58: 4534.13 | K58: 4376.9 | L58: 4250.2 | M58: 10.94181
A59: 49 | B59: BAJAJFINSV | C59: 9086.15 | D59: 9068.72 | E59: 8902.43 | F59: 8718.72 | G59: 8552.43 | H59: 9252.43 | I59: 9418.72 | J59: 9602.43 | K59: 9235 | L59: 8885 | M59: 5.02551
A60: 50 | B60: BAJAJHLDNG | C60: 3600.8 | D60: 3575.73 | E60: 3526.07 | F60: 3451.33 | G60: 3401.67 | H60: 3650.47 | I60: 3700.13 | J60: 3774.87 | K60: 3625.4 | L60: 3501 | M60: 1.06272
A61: 51 | B61: BALKRISIND | C61: 1081.8 | D61: 1067.23 | E61: 1047.82 | F61: 1013.83 | G61: 994.42 | H61: 1101.22 | I61: 1120.63 | J61: 1154.62 | K61: 1086.65 | L61: 1033.25 | M61: 4.04216
A62: 52 | B62: BALMLAWRIE | C62: 115.15 | D62: 116.10 | E62: 113.55 | F62: 111.95 | G62: 109.40 | H62: 117.70 | I62: 120.25 | J62: 121.85 | K62: 118.65 | L62: 114.5 | M62: 0.93014
A63: 53 | B63: BALRAMCHIN | C63: 156.85 | D63: 158.02 | E63: 151.08 | F63: 145.32 | G63: 138.38 | H63: 163.78 | I63: 170.72 | J63: 176.48 | K63: 164.95 | L63: 152.25 | M63: 13.04301
A64: 54 | B64: BANDHANBNK | C64: 438 | D64: 437.62 | E64: 433.23 | F64: 428.47 | G64: 424.08 | H64: 442.38 | I64: 446.77 | J64: 451.53 | K64: 442 | L64: 432.85 | M64: 12.72221
A65: 55 | B65: BANKBARODA | C65: 85.9 | D65: 86.87 | E65: 84.43 | F65: 82.97 | G65: 80.53 | H65: 88.33 | I65: 90.77 | J65: 92.23 | K65: 89.3 | L65: 85.4 | M65: 277.02836
A66: 56 | B66: BANKINDIA | C66: 65.1 | D66: 64.98 | E66: 64.27 | F66: 63.43 | G66: 62.72 | H66: 65.82 | I66: 66.53 | J66: 67.37 | K66: 65.7 | L66: 64.15 | M66: 11.36112
A67: 57 | B67: MAHABANK | C67: 12.25 | D67: 12.38 | E67: 12.02 | F67: 11.78 | G67: 11.42 | H67: 12.62 | I67: 12.98 | J67: 13.22 | K67: 12.75 | L67: 12.15 | M67: 5.826
A68: 58 | B68: BATAINDIA | C68: 1850.2 | D68: 1832.47 | E68: 1800.93 | F68: 1751.67 | G68: 1720.13 | H68: 1881.73 | I68: 1913.27 | J68: 1962.53 | K68: 1864 | L68: 1783.2 | M68: 6.14043
A69: 59 | B69: BAYERCROP | C69: 4255.25 | D69: 4208.42 | E69: 4076.83 | F69: 3898.42 | G69: 3766.83 | H69: 4386.83 | I69: 4518.42 | J69: 4696.83 | K69: 4340 | L69: 4030 | M69: 0.53388
A70: 60 | B70: BERGEPAINT | C70: 570.3 | D70: 564.10 | E70: 554.70 | F70: 539.10 | G70: 529.70 | H70: 579.70 | I70: 589.10 | J70: 604.70 | K70: 573.5 | L70: 548.5 | M70: 18.02771
A71: 61 | B71: BDL | C71: 276.15 | D71: 278.68 | E71: 272.47 | F71: 268.78 | G71: 262.57 | H71: 282.37 | I71: 288.58 | J71: 292.27 | K71: 284.9 | L71: 275 | M71: 0.56049
A72: 62 | B72: BEL | C72: 83.5 | D72: 83.90 | E72: 80.35 | F72: 77.20 | G72: 73.65 | H72: 87.05 | I72: 90.60 | J72: 93.75 | K72: 87.45 | L72: 80.75 | M72: 254.48406
A73: 63 | B73: BHARATFORG | C73: 488.45 | D73: 485.48 | E73: 474.97 | F73: 461.48 | G73: 450.97 | H73: 498.97 | I73: 509.48 | J73: 522.97 | K73: 496 | L73: 472 | M73: 9.53099
A74: 64 | B74: BHEL | C74: 39.45 | D74: 39.60 | E74: 38.65 | F74: 37.85 | G74: 36.90 | H74: 40.40 | I74: 41.35 | J74: 42.15 | K74: 40.55 | L74: 38.8 | M74: 204.1763
A75: 65 | B75: BPCL | C75: 460.3 | D75: 455.42 | E75: 447.33 | F75: 434.37 | G75: 426.28 | H75: 468.38 | I75: 476.47 | J75: 489.43 | K75: 463.5 | L75: 442.45 | M75: 94.0145
A76: 66 | B76: BHARTIARTL | C76: 510.05 | D76: 506.48 | E76: 499.62 | F76: 489.18 | G76: 482.32 | H76: 516.92 | I76: 523.78 | J76: 534.22 | K76: 513.35 | L76: 496.05 | M76: 149.32443
A77: 67 | B77: INFRATEL | C77: 229.3 | D77: 233.25 | E77: 218.50 | F77: 207.70 | G77: 192.95 | H77: 244.05 | I77: 258.80 | J77: 269.60 | K77: 248 | L77: 222.45 | M77: 136.22443
A78: 68 | B78: BIOCON | C78: 298.5 | D78: 297.83 | E78: 288.67 | F78: 278.83 | G78: 269.67 | H78: 307.67 | I78: 316.83 | J78: 326.67 | K78: 307 | L78: 288 | M78: 63.91361
A79: 69 | B79: BIRLACORPN | C79: 768.5 | D79: 766.50 | E79: 749.00 | F79: 729.50 | G79: 712.00 | H79: 786.00 | I79: 803.50 | J79: 823.00 | K79: 784 | L79: 747 | M79: 2.87563
A80: 70 | B80: BSOFT | C80: 89.35 | D80: 86.72 | E80: 81.08 | F80: 72.82 | G80: 67.18 | H80: 94.98 | I80: 100.62 | J80: 108.88 | K80: 92.35 | L80: 78.45 | M80: 82.88774
A81: 71 | B81: BLISSGVS | C81: 140.25 | D81: 140.32 | E81: 137.98 | F81: 135.72 | G81: 133.38 | H81: 142.58 | I81: 144.92 | J81: 147.18 | K81: 142.65 | L81: 138.05 | M81: 4.67424
A82: 72 | B82: BLUEDART | C82: 2675.1 | D82: 2681.33 | E82: 2632.82 | F82: 2590.53 | G82: 2542.02 | H82: 2723.62 | I82: 2772.13 | J82: 2814.42 | K82: 2729.85 | L82: 2639.05 | M82: 0.03193
A83: 73 | B83: BLUESTARCO | C83: 803.75 | D83: 810.38 | E83: 787.77 | F83: 771.78 | G83: 749.17 | H83: 826.37 | I83: 848.98 | J83: 864.97 | K83: 833 | L83: 794.4 | M83: 1.75568
A84: 74 | B84: BBTC | C84: 1118.15 | D84: 1116.68 | E84: 1091.47 | F84: 1064.78 | G84: 1039.57 | H84: 1143.37 | I84: 1168.58 | J84: 1195.27 | K84: 1141.9 | L84: 1090 | M84: 0.73395
A85: 75 | B85: BOMDYEING | C85: 83.5 | D85: 84.13 | E85: 80.87 | F85: 78.23 | G85: 74.97 | H85: 86.77 | I85: 90.03 | J85: 92.67 | K85: 87.4 | L85: 81.5 | M85: 34.32486
A86: 76 | B86: BOSCHLTD | C86: 13619.5 | D86: 13673.08 | E86: 13449.22 | F86: 13278.93 | G86: 13055.07 | H86: 13843.37 | I86: 14067.23 | J86: 14237.52 | K86: 13896.95 | L86: 13502.8 | M86: 0.13218
A87: 77 | B87: BRIGADE | C87: 230.05 | D87: 226.00 | E87: 220.55 | F87: 211.05 | G87: 205.60 | H87: 235.50 | I87: 240.95 | J87: 250.45 | K87: 231.45 | L87: 216.5 | M87: 3.36369
A88: 78 | B88: BRITANNIA | C88: 3230.05 | D88: 3190.47 | E88: 3131.93 | F88: 3033.82 | G88: 2975.28 | H88: 3288.58 | I88: 3347.12 | J88: 3445.23 | K88: 3249 | L88: 3092.35 | M88: 6.57504
A89: 79 | B89: CARERATING | C89: 654.75 | D89: 647.53 | E89: 637.22 | F89: 619.68 | G89: 609.37 | H89: 665.07 | I89: 675.38 | J89: 692.92 | K89: 657.85 | L89: 630 | M89: 1.34919
A90: 80 | B90: CCL | C90: 231.45 | D90: 226.45 | E90: 220.00 | F90: 208.55 | G90: 202.10 | H90: 237.90 | I90: 244.35 | J90: 255.80 | K90: 232.9 | L90: 215 | M90: 10.37741
A91: 81 | B91: CESC | C91: 695.75 | D91: 693.87 | E91: 683.73 | F91: 671.72 | G91: 661.58 | H91: 705.88 | I91: 716.02 | J91: 728.03 | K91: 704 | L91: 681.85 | M91: 2.25738
A92: 82 | B92: CRISIL | C92: 1699.05 | D92: 1695.95 | E92: 1680.15 | F92: 1661.25 | G92: 1645.45 | H92: 1714.85 | I92: 1730.65 | J92: 1749.55 | K92: 1711.75 | L92: 1677.05 | M92: 0.40715
A93: 83 | B93: CADILAHC | C93: 260.4 | D93: 259.28 | E93: 255.37 | F93: 250.33 | G93: 246.42 | H93: 264.32 | I93: 268.23 | J93: 273.27 | K93: 263.2 | L93: 254.25 | M93: 10.74575
A94: 84 | B94: CANFINHOME | C94: 487.75 | D94: 481.47 | E94: 467.93 | F94: 448.12 | G94: 434.58 | H94: 501.28 | I94: 514.82 | J94: 534.63 | K94: 495 | L94: 461.65 | M94: 4.95222
A95: 85 | B95: CANBK | C95: 186.95 | D95: 188.97 | E95: 183.98 | F95: 181.02 | G95: 176.03 | H95: 191.93 | I95: 196.92 | J95: 199.88 | K95: 193.95 | L95: 186 | M95: 101.59075
A96: 86 | B96: CAPLIPOINT | C96: 265.6 | D96: 270.50 | E96: 259.35 | F96: 253.10 | G96: 241.95 | H96: 276.75 | I96: 287.90 | J96: 294.15 | K96: 281.65 | L96: 264.25 | M96: 1.17296
A97: 87 | B97: CGCL | C97: 198.15 | D97: 196.63 | E97: 193.67 | F97: 189.18 | G97: 186.22 | H97: 201.12 | I97: 204.08 | J97: 208.57 | K97: 199.6 | L97: 192.15 | M97: 3.08027
A98: 88 | B98: CARBORUNIV | C98: 330.45 | D98: 331.28 | E98: 324.17 | F98: 317.88 | G98: 310.77 | H98: 337.57 | I98: 344.68 | J98: 350.97 | K98: 338.4 | L98: 325 | M98: 0.26393
A99: 89 | B99: CASTROLIND | C99: 147.15 | D99: 145.63 | E99: 142.27 | F99: 137.38 | G99: 134.02 | H99: 150.52 | I99: 153.88 | J99: 158.77 | K99: 149 | L99: 140.75 | M99: 31.62306
A100: 90 | B100: CEATLTD | C100: 944.1 | D100: 951.07 | E100: 932.13 | F100: 920.17 | G100: 901.23 | H100: 963.03 | I100: 981.97 | J100: 993.93 | K100: 970 | L100: 939.1 | M100: 0.44988
A101: 91 | B101: CENTRALBK | C101: 17.45 | D101: 17.55 | E101: 17.20 | F101: 16.95 | G101: 16.60 | H101: 17.80 | I101: 18.15 | J101: 18.40 | K101: 17.9 | L101: 17.3 | M101: 6.25107
A102: 92 | B102: CDSL | C102: 254.45 | D102: 255.73 | E102: 250.77 | F102: 247.08 | G102: 242.12 | H102: 259.42 | I102: 264.38 | J102: 268.07 | K102: 260.7 | L102: 252.05 | M102: 3.20608
A103: 93 | B103: CENTURYPLY | C103: 168.75 | D103: 166.47 | E103: 160.93 | F103: 153.12 | G103: 147.58 | H103: 174.28 | I103: 179.82 | J103: 187.63 | K103: 172 | L103: 158.65 | M103: 5.6491
A104: 94 | B104: CERA | C104: 2613.4 | D104: 2623.80 | E104: 2598.60 | F104: 2583.80 | G104: 2558.60 | H104: 2638.60 | I104: 2663.80 | J104: 2678.60 | K104: 2649 | L104: 2609 | M104: 0.01256
A105: 95 | B105: CHALET | C105: 315.2 | D105: 318.90 | E105: 304.85 | F105: 294.50 | G105: 280.45 | H105: 329.25 | I105: 343.30 | J105: 353.65 | K105: 332.95 | L105: 308.55 | M105: 0.09419
A106: 96 | B106: CHAMBLFERT | C106: 169.5 | D106: 169.98 | E106: 162.72 | F106: 155.93 | G106: 148.67 | H106: 176.77 | I106: 184.03 | J106: 190.82 | K106: 177.25 | L106: 163.2 | M106: 14.13859
A107: 97 | B107: CHENNPETRO | C107: 118.65 | D107: 121.53 | E107: 115.07 | F107: 111.48 | G107: 105.02 | H107: 125.12 | I107: 131.58 | J107: 135.17 | K107: 128 | L107: 117.95 | M107: 1.99
A108: 98 | B108: CHOLAHLDNG | C108: 549.05 | D108: 547.12 | E108: 541.98 | F108: 534.92 | G108: 529.78 | H108: 554.18 | I108: 559.32 | J108: 566.38 | K108: 552.25 | L108: 540.05 | M108: 0.70603
A109: 99 | B109: CHOLAFIN | C109: 324.95 | D109: 323.58 | E109: 316.67 | F109: 308.38 | G109: 301.47 | H109: 331.87 | I109: 338.78 | J109: 347.07 | K109: 330.5 | L109: 315.3 | M109: 10.61299
A110: 100 | B110: CIPLA | C110: 444.55 | D110: 444.87 | E110: 439.08 | F110: 433.62 | G110: 427.83 | H110: 450.33 | I110: 456.12 | J110: 461.58 | K110: 450.65 | L110: 439.4 | M110: 16.90394
A111: 101 | B111: CUB | C111: 230.3 | D111: 230.90 | E111: 227.60 | F111: 224.90 | G111: 221.60 | H111: 233.60 | I111: 236.90 | J111: 239.60 | K111: 234.2 | L111: 228.2 | M111: 7.6807
A112: 102 | B112: COALINDIA | C112: 178.65 | D112: 176.75 | E112: 174.05 | F112: 169.45 | G112: 166.75 | H112: 181.35 | I112: 184.05 | J112: 188.65 | K112: 179.45 | L112: 172.15 | M112: 152.84598
A113: 103 | B113: COCHINSHIP | C113: 369.15 | D113: 369.28 | E113: 364.97 | F113: 360.78 | G113: 356.47 | H113: 373.47 | I113: 377.78 | J113: 381.97 | K113: 373.6 | L113: 365.1 | M113: 0.8883
A114: 104 | B114: COLPAL | C114: 1350.7 | D114: 1340.67 | E114: 1319.08 | F114: 1287.47 | G114: 1265.88 | H114: 1372.28 | I114: 1393.87 | J114: 1425.48 | K114: 1362.25 | L114: 1309.05 | M114: 12.23477
A115: 105 | B115: CONCOR | C115: 545.15 | D115: 546.07 | E115: 539.18 | F115: 533.22 | G115: 526.33 | H115: 552.03 | I115: 558.92 | J115: 564.88 | K115: 552.95 | L115: 540.1 | M115: 8.56408
A116: 106 | B116: COROMANDEL | C116: 629.65 | D116: 624.23 | E116: 610.47 | F116: 591.28 | G116: 577.52 | H116: 643.42 | I116: 657.18 | J116: 676.37 | K116: 638 | L116: 605.05 | M116: 3.20154
A117: 107 | B117: CREDITACC | C117: 760.55 | D117: 795.35 | E117: 711.20 | F117: 661.85 | G117: 577.70 | H117: 844.70 | I117: 928.85 | J117: 978.20 | K117: 879.5 | L117: 746 | M117: 1.37632
A118: 108 | B118: CROMPTON | C118: 287.45 | D118: 288.95 | E118: 276.50 | F118: 265.55 | G118: 253.10 | H118: 299.90 | I118: 312.35 | J118: 323.30 | K118: 301.4 | L118: 278 | M118: 16.00397
A119: 109 | B119: CUMMINSIND | C119: 560.95 | D119: 561.93 | E119: 554.02 | F119: 547.08 | G119: 539.17 | H119: 568.87 | I119: 576.78 | J119: 583.72 | K119: 569.85 | L119: 555 | M119: 5.59415
A120: 110 | B120: CYIENT | C120: 475.3 | D120: 478.28 | E120: 470.57 | F120: 465.83 | G120: 458.12 | H120: 483.02 | I120: 490.73 | J120: 495.47 | K120: 486 | L120: 473.55 | M120: 0.43336
A121: 111 | B121: DBCORP | C121: 135.4 | D121: 134.48 | E121: 131.97 | F121: 128.53 | G121: 126.02 | H121: 137.92 | I121: 140.43 | J121: 143.87 | K121: 137 | L121: 131.05 | M121: 0.89791
A122: 112 | B122: DCBBANK | C122: 173.6 | D122: 173.63 | E122: 169.97 | F122: 166.33 | G122: 162.67 | H122: 177.27 | I122: 180.93 | J122: 184.57 | K122: 177.3 | L122: 170 | M122: 4.55459
A123: 113 | B123: DCMSHRIRAM | C123: 350.25 | D123: 355.30 | E123: 344.55 | F123: 338.85 | G123: 328.10 | H123: 361.00 | I123: 371.75 | J123: 377.45 | K123: 366.05 | L123: 349.6 | M123: 0.42393
A124: 114 | B124: DLF | C124: 230.85 | D124: 227.47 | E124: 221.23 | F124: 211.62 | G124: 205.38 | H124: 237.08 | I124: 243.32 | J124: 252.93 | K124: 233.7 | L124: 217.85 | M124: 208.42165
A125: 115 | B125: DABUR | C125: 497 | D125: 493.93 | E125: 486.97 | F125: 476.93 | G125: 469.97 | H125: 503.97 | I125: 510.93 | J125: 520.97 | K125: 500.9 | L125: 483.9 | M125: 36.88146
A126: 116 | B126: DALBHARAT | C126: 853 | D126: 856.12 | E126: 841.33 | F126: 829.67 | G126: 814.88 | H126: 867.78 | I126: 882.57 | J126: 894.23 | K126: 870.9 | L126: 844.45 | M126: 1.65834
A127: 117 | B127: DEEPAKNTR | C127: 409.4 | D127: 399.77 | E127: 384.63 | F127: 359.87 | G127: 344.73 | H127: 424.53 | I127: 439.67 | J127: 464.43 | K127: 414.9 | L127: 375 | M127: 8.14556
A128: 118 | B128: DELTACORP | C128: 172.55 | D128: 173.23 | E128: 168.57 | F128: 164.58 | G128: 159.92 | H128: 177.22 | I128: 181.88 | J128: 185.87 | K128: 177.9 | L128: 169.25 | M128: 10.62665
A129: 119 | B129: DHFL | C129: 11.75 | D129: 11.95 | E129: 11.55 | F129: 11.35 | G129: 10.95 | H129: 12.15 | I129: 12.55 | J129: 12.75 | K129: 12.35 | L129: 11.75 | M129: 9.09318
A130: 120 | B130: DBL | C130: 376.45 | D130: 381.00 | E130: 370.00 | F130: 363.55 | G130: 352.55 | H130: 387.45 | I130: 398.45 | J130: 404.90 | K130: 392 | L130: 374.55 | M130: 2.30475
A131: 121 | B131: DISHTV | C131: 12.45 | D131: 12.58 | E131: 12.27 | F131: 12.08 | G131: 11.77 | H131: 12.77 | I131: 13.08 | J131: 13.27 | K131: 12.9 | L131: 12.4 | M131: 116.15329
A132: 122 | B132: DCAL | C132: 75.2 | D132: 74.13 | E132: 73.07 | F132: 70.93 | G132: 69.87 | H132: 76.27 | I132: 77.33 | J132: 79.47 | K132: 75.2 | L132: 72 | M132: 4.46636
A133: 123 | B133: DIVISLAB | C133: 1972.75 | D133: 1985.72 | E133: 1949.43 | F133: 1926.12 | G133: 1889.83 | H133: 2009.03 | I133: 2045.32 | J133: 2068.63 | K133: 2022 | L133: 1962.4 | M133: 9.10769
A134: 124 | B134: DIXON | C134: 4746.55 | D134: 4668.85 | E134: 4442.70 | F134: 4138.85 | G134: 3912.70 | H134: 4972.70 | I134: 5198.85 | J134: 5502.70 | K134: 4895 | L134: 4365 | M134: 1.99992
A135: 125 | B135: LALPATHLAB | C135: 1740.7 | D135: 1760.23 | E135: 1690.47 | F135: 1640.23 | G135: 1570.47 | H135: 1810.47 | I135: 1880.23 | J135: 1930.47 | K135: 1830 | L135: 1710 | M135: 2.88901
A136: 126 | B136: DRREDDY | C136: 3144.15 | D136: 3144.77 | E136: 3116.53 | F136: 3088.92 | G136: 3060.68 | H136: 3172.38 | I136: 3200.62 | J136: 3228.23 | K136: 3173 | L136: 3117.15 | M136: 5.15242
A137: 127 | B137: EIDPARRY | C137: 223.6 | D137: 223.70 | E137: 220.40 | F137: 217.20 | G137: 213.90 | H137: 226.90 | I137: 230.20 | J137: 233.40 | K137: 227 | L137: 220.5 | M137: 1.23581
A138: 128 | B138: EIHOTEL | C138: 135.05 | D138: 134.98 | E138: 132.07 | F138: 129.08 | G138: 126.17 | H138: 137.97 | I138: 140.88 | J138: 143.87 | K138: 137.9 | L138: 132 | M138: 0.93664
A139: 129 | B139: EDELWEISS | C139: 87.6 | D139: 88.93 | E139: 85.37 | F139: 83.13 | G139: 79.57 | H139: 91.17 | I139: 94.73 | J139: 96.97 | K139: 92.5 | L139: 86.7 | M139: 13.1615
A140: 130 | B140: EICHERMOT | C140: 19883.45 | D140: 19923.57 | E140: 19471.53 | F140: 19059.62 | G140: 18607.58 | H140: 20335.48 | I140: 20787.52 | J140: 21199.43 | K140: 20375.6 | L140: 19511.65 | M140: 1.48637
A141: 131 | B141: ELGIEQUIP | C141: 250 | D141: 250.30 | E141: 249.50 | F141: 249.00 | G141: 248.20 | H141: 250.80 | I141: 251.60 | J141: 252.10 | K141: 251.1 | L141: 249.8 | M141: 0.41546
A142: 132 | B142: EMAMILTD | C142: 299.8 | D142: 300.87 | E142: 294.43 | F142: 289.07 | G142: 282.63 | H142: 306.23 | I142: 312.67 | J142: 318.03 | K142: 307.3 | L142: 295.5 | M142: 2.08344
A143: 133 | B143: ENDURANCE | C143: 1068.45 | D143: 1077.48 | E143: 1044.62 | F143: 1020.78 | G143: 987.92 | H143: 1101.32 | I143: 1134.18 | J143: 1158.02 | K143: 1110.35 | L143: 1053.65 | M143: 0.08908
A144: 134 | B144: ENGINERSIN | C144: 91.1 | D144: 91.37 | E144: 90.28 | F144: 89.47 | G144: 88.38 | H144: 92.18 | I144: 93.27 | J144: 94.08 | K144: 92.45 | L144: 90.55 | M144: 3.87215
A145: 135 | B145: EQUITAS | C145: 104.25 | D145: 104.15 | E145: 102.65 | F145: 101.05 | G145: 99.55 | H145: 105.75 | I145: 107.25 | J145: 108.85 | K145: 105.65 | L145: 102.55 | M145: 29.96821
A146: 136 | B146: ERIS | C146: 529.2 | D146: 520.35 | E146: 503.70 | F146: 478.20 | G146: 461.55 | H146: 545.85 | I146: 562.50 | J146: 588.00 | K146: 537 | L146: 494.85 | M146: 0.56424
A147: 137 | B147: ESCORTS | C147: 847.15 | D147: 821.57 | E147: 790.33 | F147: 733.52 | G147: 702.28 | H147: 878.38 | I147: 909.62 | J147: 966.43 | K147: 852.8 | L147: 764.75 | M147: 98.68159
A148: 138 | B148: ESSELPACK | C148: 176.25 | D148: 174.08 | E148: 168.47 | F148: 160.68 | G148: 155.07 | H148: 181.87 | I148: 187.48 | J148: 195.27 | K148: 179.7 | L148: 166.3 | M148: 1.27241
A149: 139 | B149: EXIDEIND | C149: 195.4 | D149: 193.63 | E149: 191.12 | F149: 186.83 | G149: 184.32 | H149: 197.92 | I149: 200.43 | J149: 204.72 | K149: 196.15 | L149: 189.35 | M149: 10.45796
A150: 140 | B150: FDC | C150: 228.25 | D150: 225.83 | E150: 220.42 | F150: 212.58 | G150: 207.17 | H150: 233.67 | I150: 239.08 | J150: 246.92 | K150: 231.25 | L150: 218 | M150: 0.5133
A151: 141 | B151: FEDERALBNK | C151: 88.4 | D151: 88.42 | E151: 87.03 | F151: 85.67 | G151: 84.28 | H151: 89.78 | I151: 91.17 | J151: 92.53 | K151: 89.8 | L151: 87.05 | M151: 82.9864
A152: 142 | B152: FMGOETZE | C152: 562.85 | D152: 563.00 | E152: 554.90 | F152: 546.95 | G152: 538.85 | H152: 570.95 | I152: 579.05 | J152: 587.00 | K152: 571.1 | L152: 555.05 | M152: 0.01103
A153: 143 | B153: FINEORG | C153: 2350.35 | D153: 2321.77 | E153: 2278.58 | F153: 2206.82 | G153: 2163.63 | H153: 2393.53 | I153: 2436.72 | J153: 2508.48 | K153: 2364.95 | L153: 2250 | M153: 0.11068
A154: 144 | B154: FINCABLES | C154: 369.9 | D154: 372.98 | E154: 357.92 | F154: 345.93 | G154: 330.87 | H154: 384.97 | I154: 400.03 | J154: 412.02 | K154: 388.05 | L154: 361 | M154: 0.29979
A155: 145 | B155: FINPIPE | C155: 546.25 | D155: 552.00 | E155: 532.25 | F155: 518.25 | G155: 498.50 | H155: 566.00 | I155: 585.75 | J155: 599.75 | K155: 571.75 | L155: 538 | M155: 0.3539
A156: 146 | B156: FSL | C156: 41.55 | D156: 41.73 | E156: 40.72 | F156: 39.88 | G156: 38.87 | H156: 42.57 | I156: 43.58 | J156: 44.42 | K156: 42.75 | L156: 40.9 | M156: 11.5031
A157: 147 | B157: FORTIS | C157: 152.7 | D157: 152.37 | E157: 149.58 | F157: 146.47 | G157: 143.68 | H157: 155.48 | I157: 158.27 | J157: 161.38 | K157: 155.15 | L157: 149.25 | M157: 28.65425
A158: 148 | B158: FCONSUMER | C158: 22.5 | D158: 22.65 | E158: 22.20 | F158: 21.90 | G158: 21.45 | H158: 22.95 | I158: 23.40 | J158: 23.70 | K158: 23.1 | L158: 22.35 | M158: 8.60349
A159: 149 | B159: FLFL | C159: 406.7 | D159: 406.28 | E159: 403.57 | F159: 400.43 | G159: 397.72 | H159: 409.42 | I159: 412.13 | J159: 415.27 | K159: 409 | L159: 403.15 | M159: 0.24235
A160: 150 | B160: FRETAIL | C160: 329.95 | D160: 329.05 | E160: 326.25 | F160: 322.55 | G160: 319.75 | H160: 332.75 | I160: 335.55 | J160: 339.25 | K160: 331.85 | L160: 325.35 | M160: 4.41367
A161: 151 | B161: GAIL | C161: 114.5 | D161: 116.00 | E161: 112.50 | F161: 110.50 | G161: 107.00 | H161: 118.00 | I161: 121.50 | J161: 123.50 | K161: 119.5 | L161: 114 | M161: 103.8776
A162: 152 | B162: GEPIL | C162: 684.95 | D162: 684.15 | E162: 678.30 | F162: 671.65 | G162: 665.80 | H162: 690.80 | I162: 696.65 | J162: 703.30 | K162: 690 | L162: 677.5 | M162: 0.04493
A163: 153 | B163: GET&D | C163: 157.85 | D163: 157.40 | E163: 155.00 | F163: 152.15 | G163: 149.75 | H163: 160.25 | I163: 162.65 | J163: 165.50 | K163: 159.8 | L163: 154.55 | M163: 1.00246
A164: 154 | B164: GHCL | C164: 183.35 | D164: 182.73 | E164: 181.02 | F164: 178.68 | G164: 176.97 | H164: 185.07 | I164: 186.78 | J164: 189.12 | K164: 184.45 | L164: 180.4 | M164: 1.97191
A165: 155 | B165: GMRINFRA | C165: 21.5 | D165: 21.45 | E165: 21.10 | F165: 20.70 | G165: 20.35 | H165: 21.85 | I165: 22.20 | J165: 22.60 | K165: 21.8 | L165: 21.05 | M165: 129.52064
A166: 156 | B166: GALAXYSURF | C166: 1598.75 | D166: 1594.05 | E166: 1523.40 | F166: 1448.05 | G166: 1377.40 | H166: 1669.40 | I166: 1740.05 | J166: 1815.40 | K166: 1664.7 | L166: 1518.7 | M166: 0.26924
A167: 157 | B167: GARFIBRES | C167: 1447.8 | D167: 1471.58 | E167: 1403.22 | F167: 1358.63 | G167: 1290.27 | H167: 1516.17 | I167: 1584.53 | J167: 1629.12 | K167: 1539.95 | L167: 1427 | M167: 0.06719
A168: 158 | B168: GAYAPROJ | C168: 48.95 | D168: 48.95 | E168: 48.95 | F168: 48.95 | G168: 48.95 | H168: 48.95 | I168: 48.95 | J168: 48.95 | K168: 48.95 | L168: 48.95 | M168: 0.10459
A169: 159 | B169: GICRE | C169: 234.65 | D169: 235.38 | E169: 231.27 | F169: 227.88 | G169: 223.77 | H169: 238.77 | I169: 242.88 | J169: 246.27 | K169: 239.5 | L169: 232 | M169: 3.78393
A170: 160 | B170: GILLETTE | C170: 6371.6 | D170: 6332.53 | E170: 6265.07 | F170: 6158.53 | G170: 6091.07 | H170: 6439.07 | I170: 6506.53 | J170: 6613.07 | K170: 6400 | L170: 6226 | M170: 0.07586
A171: 161 | B171: GLAXO | C171: 1646.35 | D171: 1645.30 | E171: 1612.30 | F171: 1578.25 | G171: 1545.25 | H171: 1679.35 | I171: 1712.35 | J171: 1746.40 | K171: 1678.3 | L171: 1611.25 | M171: 0.50313
A172: 162 | B172: GLENMARK | C172: 300.25 | D172: 301.72 | E172: 296.73 | F172: 293.22 | G172: 288.23 | H172: 305.23 | I172: 310.22 | J172: 313.73 | K172: 306.7 | L172: 298.2 | M172: 11.06431
A173: 163 | B173: GODFRYPHLP | C173: 1126.45 | D173: 1121.45 | E173: 1090.00 | F173: 1053.55 | G173: 1022.10 | H173: 1157.90 | I173: 1189.35 | J173: 1225.80 | K173: 1152.9 | L173: 1085 | M173: 1.39932
A174: 164 | B174: GODREJAGRO | C174: 570 | D174: 564.82 | E174: 551.18 | F174: 532.37 | G174: 518.73 | H174: 583.63 | I174: 597.27 | J174: 616.08 | K174: 578.45 | L174: 546 | M174: 2.54908
A175: 165 | B175: GODREJCP | C175: 667.3 | D175: 666.22 | E175: 657.08 | F175: 646.87 | G175: 637.73 | H175: 676.43 | I175: 685.57 | J175: 695.78 | K175: 675.35 | L175: 656 | M175: 18.22043
A176: 166 | B176: GODREJIND | C176: 400.15 | D176: 403.98 | E176: 394.57 | F176: 388.98 | G176: 379.57 | H176: 409.57 | I176: 418.98 | J176: 424.57 | K176: 413.4 | L176: 398.4 | M176: 1.42429
A177: 167 | B177: GODREJPROP | C177: 1071.2 | D177: 1049.73 | E177: 1011.47 | F177: 951.73 | G177: 913.47 | H177: 1109.47 | I177: 1147.73 | J177: 1207.47 | K177: 1088 | L177: 990 | M177: 10.85778
A178: 168 | B178: GRANULES | C178: 145.6 | D178: 143.55 | E178: 140.25 | F178: 134.90 | G178: 131.60 | H178: 148.90 | I178: 152.20 | J178: 157.55 | K178: 146.85 | L178: 138.2 | M178: 15.82734
A179: 169 | B179: GRAPHITE | C179: 286.25 | D179: 286.90 | E179: 279.90 | F179: 273.55 | G179: 266.55 | H179: 293.25 | I179: 300.25 | J179: 306.60 | K179: 293.9 | L179: 280.55 | M179: 7.55739
A180: 170 | B180: GRASIM | C180: 780.4 | D180: 771.22 | E180: 759.43 | F180: 738.47 | G180: 726.68 | H180: 792.18 | I180: 803.97 | J180: 824.93 | K180: 783 | L180: 750.25 | M180: 15.34961
A181: 171 | B181: GESHIP | C181: 300.85 | D181: 298.62 | E181: 294.23 | F181: 287.62 | G181: 283.23 | H181: 305.23 | I181: 309.62 | J181: 316.23 | K181: 303 | L181: 292 | M181: 1.25717
A182: 172 | B182: GREAVESCOT | C182: 129.95 | D182: 130.98 | E182: 128.02 | F182: 126.08 | G182: 123.12 | H182: 132.92 | I182: 135.88 | J182: 137.82 | K182: 133.95 | L182: 129.05 | M182: 1.03568
A183: 173 | B183: GRINDWELL | C183: 611.25 | D183: 607.52 | E183: 594.03 | F183: 576.82 | G183: 563.33 | H183: 624.73 | I183: 638.22 | J183: 655.43 | K183: 621 | L183: 590.3 | M183: 0.10285
A184: 174 | B184: GUJALKALI | C184: 383.95 | D184: 387.30 | E184: 377.65 | F184: 371.35 | G184: 361.70 | H184: 393.60 | I184: 403.25 | J184: 409.55 | K184: 396.95 | L184: 381 | M184: 0.33861
A185: 175 | B185: GUJGASLTD | C185: 282.9 | D185: 282.58 | E185: 280.87 | F185: 278.83 | G185: 277.12 | H185: 284.62 | I185: 286.33 | J185: 288.37 | K185: 284.3 | L185: 280.55 | M185: 4.27994
A186: 176 | B186: GMDCLTD | C186: 59.15 | D186: 59.45 | E186: 58.35 | F186: 57.55 | G186: 56.45 | H186: 60.25 | I186: 61.35 | J186: 62.15 | K186: 60.55 | L186: 58.65 | M186: 1.01506
A187: 177 | B187: GNFC | C187: 170.2 | D187: 173.75 | E187: 165.50 | F187: 160.80 | G187: 152.55 | H187: 178.45 | I187: 186.70 | J187: 191.40 | K187: 182 | L187: 169.05 | M187: 5.34837
A188: 178 | B188: GPPL | C188: 84 | D188: 84.08 | E188: 82.67 | F188: 81.33 | G188: 79.92 | H188: 85.42 | I188: 86.83 | J188: 88.17 | K188: 85.5 | L188: 82.75 | M188: 2.10107
A189: 179 | B189: GSFC | C189: 76.15 | D189: 77.45 | E189: 74.20 | F189: 72.25 | G189: 69.00 | H189: 79.40 | I189: 82.65 | J189: 84.60 | K189: 80.7 | L189: 75.5 | M189: 7.42432
A190: 180 | B190: GSPL | C190: 250.45 | D190: 248.58 | E190: 244.22 | F190: 237.98 | G190: 233.62 | H190: 254.82 | I190: 259.18 | J190: 265.42 | K190: 252.95 | L190: 242.35 | M190: 5.1043
A191: 181 | B191: GULFOILLUB | C191: 796.2 | D191: 802.07 | E191: 789.13 | F191: 782.07 | G191: 769.13 | H191: 809.13 | I191: 822.07 | J191: 829.13 | K191: 815 | L191: 795 | M191: 0.02345
A192: 182 | B192: HEG | C192: 1003.05 | D192: 1010.97 | E192: 989.08 | F192: 975.12 | G192: 953.23 | H192: 1024.93 | I192: 1046.82 | J192: 1060.78 | K192: 1032.85 | L192: 997 | M192: 1.70268
A193: 183 | B193: HCLTECH | C193: 579.1 | D193: 583.42 | E193: 573.18 | F193: 567.27 | G193: 557.03 | H193: 589.33 | I193: 599.57 | J193: 605.48 | K193: 593.65 | L193: 577.5 | M193: 40.24193
A194: 184 | B194: HDFCAMC | C194: 3075.2 | D194: 3053.22 | E194: 3014.48 | F194: 2953.77 | G194: 2915.03 | H194: 3113.93 | I194: 3152.67 | J194: 3213.38 | K194: 3091.95 | L194: 2992.5 | M194: 3.17506
A195: 185 | B195: HDFCBANK | C195: 1192.8 | D195: 1189.48 | E195: 1181.02 | F195: 1169.23 | G195: 1160.77 | H195: 1201.27 | I195: 1209.73 | J195: 1221.52 | K195: 1197.95 | L195: 1177.7 | M195: 65.38505
A196: 186 | B196: HDFCLIFE | C196: 565.3 | D196: 555.27 | E196: 537.53 | F196: 509.77 | G196: 492.03 | H196: 583.03 | I196: 600.77 | J196: 628.53 | K196: 573 | L196: 527.5 | M196: 96.88974
A197: 187 | B197: HFCL | C197: 16.85 | D197: 16.82 | E197: 16.63 | F197: 16.42 | G197: 16.23 | H197: 17.03 | I197: 17.22 | J197: 17.43 | K197: 17 | L197: 16.6 | M197: 13.81098
A198: 188 | B198: HATSUN | C198: 636.75 | D198: 635.13 | E198: 630.27 | F198: 623.78 | G198: 618.92 | H198: 641.62 | I198: 646.48 | J198: 652.97 | K198: 640 | L198: 628.65 | M198: 0.06902
A199: 189 | B199: HAVELLS | C199: 594.35 | D199: 595.13 | E199: 585.27 | F199: 576.18 | G199: 566.32 | H199: 604.22 | I199: 614.08 | J199: 623.17 | K199: 605 | L199: 586.05 | M199: 16.15206
A200: 190 | B200: HEIDELBERG | C200: 195.45 | D200: 195.30 | E200: 191.35 | F200: 187.25 | G200: 183.30 | H200: 199.40 | I200: 203.35 | J200: 207.45 | K200: 199.25 | L200: 191.2 | M200: 2.00488
A201: 191 | B201: HERITGFOOD | C201: 347.85 | D201: 348.03 | E201: 336.07 | F201: 324.28 | G201: 312.32 | H201: 359.82 | I201: 371.78 | J201: 383.57 | K201: 360 | L201: 336.25 | M201: 0.20083
A202: 192 | B202: HEROMOTOCO | C202: 2376.15 | D202: 2401.05 | E202: 2333.10 | F202: 2290.05 | G202: 2222.10 | H202: 2444.10 | I202: 2512.05 | J202: 2555.10 | K202: 2469 | L202: 2358 | M202: 15.07692
A203: 193 | B203: HEXAWARE | C203: 363.75 | D203: 359.57 | E203: 353.73 | F203: 343.72 | G203: 337.88 | H203: 369.58 | I203: 375.42 | J203: 385.43 | K203: 365.4 | L203: 349.55 | M203: 2.51431
A204: 194 | B204: HSCL | C204: 60.45 | D204: 60.22 | E204: 58.43 | F204: 56.42 | G204: 54.63 | H204: 62.23 | I204: 64.02 | J204: 66.03 | K204: 62 | L204: 58.2 | M204: 6.19007
A205: 195 | B205: HIMATSEIDE | C205: 119.3 | D205: 120.32 | E205: 116.28 | F205: 113.27 | G205: 109.23 | H205: 123.33 | I205: 127.37 | J205: 130.38 | K205: 124.35 | L205: 117.3 | M205: 1.4006
A206: 196 | B206: HINDALCO | C206: 181.8 | D206: 182.57 | E206: 179.53 | F206: 177.27 | G206: 174.23 | H206: 184.83 | I206: 187.87 | J206: 190.13 | K206: 185.6 | L206: 180.3 | M206: 76.78833
... 320 more rows

Sheet Bulk Deals
E6: Back To Main Page
A7: Subject : | B7: BULK DEAL | D7: =Main!B10 -> 2020-02-04
A9: Date | B9: Scrip code | C9: Scrip Name | D9: Client Name | E9: Buy / Sell | F9: Quantity Traded | G9: Trade Price / Wt.Avg.trade price | H9: Exchange
A10: 2020-02-03 | B10: 511463 | C10: ALEXANDER | D10: KAHAR NIKLESH KANAIYABHAI | E10: BUY | F10: 54,510 | G10: 14.04 | H10: BSE
A11: 2020-02-03 | B11: 511463 | C11: ALEXANDER | D11: KAHAR NIKLESH KANAIYABHAI | E11: SELL | F11: 51,845 | G11: 13.78 | H11: BSE
A12: 2020-02-03 | B12: 531502 | C12: ESARIND | D12: SWARUPGUCHHAIT | E12: BUY | F12: 108,300 | G12: 0.49 | H12: BSE
A13: 2020-02-03 | B13: 539519 | C13: MAYUKH | D13: AMAN DAHIYA | E13: SELL | F13: 20,000 | G13: 9.98 | H13: BSE
A14: 2020-02-03 | B14: 539519 | C14: MAYUKH | D14: YOGENDRA SRIKISHAN BAGREE | E14: BUY | F14: 20,000 | G14: 9.98 | H14: BSE
A15: 2020-02-03 | B15: 536659 | C15: PVVINFRA | D15: CTIL E HOUSING PRIVATE LIMITED | E15: BUY | F15: 164,310 | G15: 9.97 | H15: BSE
A16: 2020-02-03 | B16: 536659 | C16: PVVINFRA | D16: CTIL MEDIA PRIVATE LIMITED | E16: BUY | F16: 190,106 | G16: 9.98 | H16: BSE
A17: 2020-02-03 | B17: 536659 | C17: PVVINFRA | D17: DHATRI JONNA | E17: SELL | F17: 81,150 | G17: 9.97 | H17: BSE
A18: 2020-02-03 | B18: 536659 | C18: PVVINFRA | D18: JPS DEVELOPERS PRIVATE LIMITED | E18: SELL | F18: 92,723 | G18: 9.97 | H18: BSE
A19: 2020-02-03 | B19: 536659 | C19: PVVINFRA | D19: CTIL MEDIA PRIVATE LIMITED | E19: SELL | F19: 148,454 | G19: 9.97 | H19: BSE
A20: 2020-02-03 | B20: 539814 | C20: RADHEY | D20: HORA VANIJYA PRIVATE LIMITED | E20: SELL | F20: 33,000 | G20: 23.55 | H20: BSE
A21: 2020-02-03 | B21: 542725 | C21: SBC | D21: SWETA AGRAWAL | E21: BUY | F21: 18,000 | G21: 32.42 | H21: BSE
A22: 2020-02-03 | B22: 542725 | C22: SBC | D22: SWETA AGRAWAL | E22: SELL | F22: 54,000 | G22: 32.43 | H22: BSE
A23: 2020-02-03 | B23: 532348 | C23: SUBEX | D23: RITU GOENKA | E23: BUY | F23: 3,600,000 | G23: 5.7 | H23: BSE
A24: 2020-02-03 | B24: 532348 | C24: SUBEX | D24: UNO METALS LIMITED | E24: SELL | F24: 8,000,000 | G24: 5.7 | H24: BSE
A25: 2020-02-03 | B25: 532090 | C25: VANDANA | D25: SUSHIL CHANDRA UPADHYAYA | E25: BUY | F25: 576,000 | G25: 0.28 | H25: BSE
A26: 2020-02-03 | B26: 532090 | C26: VANDANA | D26: YASH DINESH MODI | E26: SELL | F26: 707,107 | G26: 0.28 | H26: BSE
A27: 2020-02-03 | B27: 532090 | C27: VANDANA | D27: ARTI DINESH MODI | E27: SELL | F27: 813,321 | G27: 0.28 | H27: BSE
A28: 2020-02-03 | B28: 539222 | C28: VMV | D28: ASHOK KUMAR SINGH | E28: BUY | F28: 40,000 | G28: 26.5 | H28: BSE
A29: 2020-02-03 | B29: 539222 | C29: VMV | D29: RUSHIL SHAILESH PANDYA | E29: SELL | F29: 40,000 | G29: 26.4 | H29: BSE
A30: 2020-02-03 | B30: 539222 | C30: VMV | D30: RAMESH R VYAS | E30: BUY | F30: 30,000 | G30: 26.23 | H30: BSE
A31: 2020-02-03 | B31: 539222 | C31: VMV | D31: RAMESH R VYAS | E31: SELL | F31: 20,000 | G31: 26.5 | H31: BSE
A32: 2020-02-03 | B32: ASTRAMICRO | C32: Astra Microwave Products | D32: TEXMACO INFRASTRUCTURE & HOLDINGS LIMITED | E32: BUY | F32: 999,986 | G32: 91.37 | H32: NSE
A33: 2020-02-03 | B33: ASTRAMICRO | C33: Astra Microwave Products | D33: ADVENTZ FINANCE PRIVATE LIMITED | E33: BUY | F33: 750,000 | G33: 91 | H33: NSE
A34: 2020-02-03 | B34: CKPLEISURE | C34: CKP Leisure Limited | D34: NARAIN KUMAR GUPTA | E34: BUY | F34: 100,000 | G34: 5.8 | H34: NSE
A35: 2020-02-03 | B35: CONTI | C35: Continental Seed Chem Ltd | D35: DEVI GEETA | E35: BUY | F35: 36,000 | G35: 89.33 | H35: NSE
A36: 2020-02-03 | B36: CONTI | C36: Continental Seed Chem Ltd | D36: NIMESHKUMAR BALDEVBHAI PARMAR | E36: BUY | F36: 44,000 | G36: 89.23 | H36: NSE
A37: 2020-02-03 | B37: ESCORTS | C37: Escorts India Ltd. | D37: SURJECTIVE RESEARCH CAPITAL LLP | E37: BUY | F37: 713,058 | G37: 826.02 | H37: NSE
A38: 2020-02-03 | B38: ESCORTS | C38: Escorts India Ltd. | D38: TOWER RESEARCH CAPITAL MARKETS INDIA PRIVATE LIMITED | E38: BUY | F38: 644,419 | G38: 820.77 | H38: NSE
A39: 2020-02-03 | B39: IBULHSGFIN | C39: Indiabulls Hsg Fin Ltd | D39: TOWER RESEARCH CAPITAL MARKETS INDIA PRIVATE LIMITED | E39: BUY | F39: 2,197,210 | G39: 274.76 | H39: NSE
A40: 2020-02-03 | B40: IBULHSGFIN | C40: Indiabulls Hsg Fin Ltd | D40: SURJECTIVE RESEARCH CAPITAL LLP | E40: BUY | F40: 2,153,363 | G40: 271.76 | H40: NSE
A41: 2020-02-03 | B41: JUSTDIAL | C41: Justdial Ltd. | D41: TOWER RESEARCH CAPITAL MARKETS INDIA PRIVATE LIMITED | E41: BUY | F41: 400952 | G41: 518.45 | H41: NSE
A42: 2020-02-03 | B42: MERCATOR | C42: Mercator Limited | D42: ARCADIA SHARE & STOCK BROKERS PVT. LTD. | E42: BUY | F42: 149700 | G42: 1.03 | H42: NSE
A43: 2020-02-03 | B43: MERCATOR | C43: Mercator Limited | D43: VIBRANT SECURITIES PVT. LTD | E43: BUY | F43: 1779500 | G43: 1.04 | H43: NSE
A44: 2020-02-03 | B44: NCC | C44: NCC Limited | D44: TOWER RESEARCH CAPITAL MARKETS INDIA PRIVATE LIMITED | E44: BUY | F44: 3066219 | G44: 49.73 | H44: NSE
A45: 2020-02-03 | B45: YESBANK | C45: Yes Bank Limited | D45: TOWER RESEARCH CAPITAL MARKETS INDIA PRIVATE LIMITED | E45: BUY | F45: 16120770 | G45: 36.7 | H45: NSE
A46: 2020-02-03 | B46: ASTRAMICRO | C46: Astra Microwave Products | D46: RATNABALI SECURITIES PRIVATE LIMITED | E46: SELL | F46: 1750000 | G46: 91.21 | H46: NSE
A47: 2020-02-03 | B47: CKPLEISURE | C47: CKP Leisure Limited | D47: PRAFULLA SUBHASHCHANDRA BHAT | E47: SELL | F47: 100000 | G47: 5.8 | H47: NSE
A48: 2020-02-03 | B48: CONTI | C48: Continental Seed Chem Ltd | D48: NIMESHKUMAR BALDEVBHAI PARMAR | E48: SELL | F48: 44000 | G48: 89.57 | H48: NSE
A49: 2020-02-03 | B49: CONTI | C49: Continental Seed Chem Ltd | D49: DEVI GEETA | E49: SELL | F49: 36000 | G49: 89.53 | H49: NSE
A50: 2020-02-03 | B50: CONTI | C50: Continental Seed Chem Ltd | D50: BEELINE BROKING LIMITED | E50: SELL | F50: 52000 | G50: 89.75 | H50: NSE
A51: 2020-02-03 | B51: CONTI | C51: Continental Seed Chem Ltd | D51: RAJESH PAL | E51: SELL | F51: 44000 | G51: 89.41 | H51: NSE
A52: 2020-02-03 | B52: ESCORTS | C52: Escorts India Ltd. | D52: TOWER RESEARCH CAPITAL MARKETS INDIA PRIVATE LIMITED | E52: SELL | F52: 645378 | G52: 821.3 | H52: NSE
A53: 2020-02-03 | B53: ESCORTS | C53: Escorts India Ltd. | D53: SURJECTIVE RESEARCH CAPITAL LLP | E53: SELL | F53: 713,058 | G53: 826.31 | H53: NSE
A54: 2020-02-03 | B54: IBULHSGFIN | C54: Indiabulls Hsg Fin Ltd | D54: TOWER RESEARCH CAPITAL MARKETS INDIA PRIVATE LIMITED | E54: SELL | F54: 2,130,445 | G54: 274.39 | H54: NSE
A55: 2020-02-03 | B55: IBULHSGFIN | C55: Indiabulls Hsg Fin Ltd | D55: SURJECTIVE RESEARCH CAPITAL LLP | E55: SELL | F55: 2,153,363 | G55: 271.81 | H55: NSE
A56: 2020-02-03 | B56: JUSTDIAL | C56: Justdial Ltd. | D56: TOWER RESEARCH CAPITAL MARKETS INDIA PRIVATE LIMITED | E56: SELL | F56: 396,262 | G56: 518.67 | H56: NSE
A57: 2020-02-03 | B57: MERCATOR | C57: Mercator Limited | D57: ARCADIA SHARE & STOCK BROKERS PVT. LTD. | E57: SELL | F57: 2,955,890 | G57: 1.04 | H57: NSE
A58: 2020-02-03 | B58: MERCATOR | C58: Mercator Limited | D58: VIBRANT SECURITIES PVT. LTD | E58: SELL | F58: 1,366,577 | G58: 1.05 | H58: NSE
A59: 2020-02-03 | B59: MPTODAY | C59: M P Today Media Limited | D59: KAVITA SHASHI CHOUDHARY | E59: SELL | F59: 28,000 | G59: 19.1 | H59: NSE
A60: 2020-02-03 | B60: NCC | C60: NCC Limited | D60: TOWER RESEARCH CAPITAL MARKETS INDIA PRIVATE LIMITED | E60: SELL | F60: 3,008,807 | G60: 49.74 | H60: NSE
A61: 2020-02-03 | B61: YESBANK | C61: Yes Bank Limited | D61: TOWER RESEARCH CAPITAL MARKETS INDIA PRIVATE LIMITED | E61: SELL | F61: 15,456,454 | G61: 36.75 | H61: NSE

Sheet Call Tracker (Equity & F&O)
M5: Back To Main Page
A6: Retail Research Technical Calls & Fundamental Performance Report for the month of January-2020
M7: =Main!B10 -> 2020-02-04
B8: Positional Call
A9: Sr.no | B9: Date | D9: Company | E9: Rec | F9: Rec Price | G9: Stop Loss*** | H9: Call Closed At | I9: Target | J9: Remark | K9: Profit / Loss per Share | L9: Gain / Loss % | M9: Status | N9: Closed Date | O9: NSE Closed Price
A10: 1 | B10: 2020-01-07 | D10: ITC | E10: Buy | F10: 237 | G10: 222.2 | H10: 220 | I10: 255-260 | J10: Loss of Rs.17/- | K10: =H10-F10 -> -17 | L10: =K10/F10 -> -7.17% | M10: Unsuccessful | N10: 2020-02-01 | R10: R
A11: 2 | B11: 2020-01-20 | D11: IOC | E11: Buy | F11: 117.5 | G11: 114 | H11: 117.25 | I11: 130 | J11: Loss of Rs.0.25/- | K11: =H11-F11 -> -0.25 | L11: =K11/F11 -> -0.21% | M11: Neutral | N11: 2020-02-01 | R11: H
A12: 3 | B12: 2020-02-03 | D12: FINPIPE | E12: Buy | F12: 552.5 | G12: 518 | H12: 567.5 | I12: 600-630 | J12: Profit of Rs.15/- | K12: =H12-F12 -> 15 | L12: =K12/F12 -> 2.71% | M12: Successful | N12: 2020-02-03 | R12: H
A13: 4 | B13: 2020-02-03 | D13: POWERGRID | E13: Buy | F13: 183 | G13: 169 | H13: 189 | I13: 200-210 | J13: Part profit of Rs.6/- | K13: =H13-F13 -> 6 | L13: =K13/F13 -> 3.28% | M13: Successful | N13: 2020-02-03 | R13: H
A20: CLBS = Closing Basis ***
A21: Dividend adjusted <> | F21: Reinitiated $
A22: Part book {} | F22: Revised stoploss #
B24: Momentum Call
A25: Sr.no | B25: Date | D25: Company | E25: Rec | F25: Rec Price | G25: Stop Loss | H25: Call Closed At | I25: Target | J25: Remark | K25: Profit / Loss per Share/Lot | L25: Gain / Loss % | M25: Gain / Loss per Lot | N25: Lot | O25: Status | P25: Closed Date
A26: 1 | B26: 2020-01-31 | D26: GRASIM FEB FUT | E26: Buy | F26: 793 | G26: 777.7 | H26: 778.5 | I26: 820 | J26: Loss of Rs.14.5/- | K26: =H26-F26 -> -14.5 | M26: =N26*K26 -> -10875 | N26: 750 | O26: Unsuccessful | P26: 2020-02-01 | R26: R
A27: 2 | B27: 2020-01-31 | D27: TATASTEEL | E27: Buy | F27: 445 | G27: 431.7 | H27: 427.5 | I27: 465-470 | J27: Loss of Rs.17.5/- | K27: =H27-F27 -> -17.5 | L27: =K27/F27 -> -3.93% | O27: Unsuccessful | P27: 2020-02-01 | R27: R
A28: 3 | B28: 2020-02-01 | D28: SBIN | E28: Buy | F28: 313.5 | G28: 304 | H28: 304 | I28: 330-335 | J28: Loss of Rs.9.5/- | K28: =H28-F28 -> -9.5 | L28: =K28/F28 -> -3.03% | O28: Unsuccessful | P28: 2020-02-01 | R28: H
A29: 4 | B29: 2020-02-03 | D29: SBIN | E29: Buy | F29: 301 | G29: 292 | H29: 306 | I29: 315-320 | J29: Profit of Rs.5/- | K29: =H29-F29 -> 5 | L29: =K29/F29 -> 1.66% | O29: Successful | P29: 2020-02-03 | R29: H
A30: 5 | B30: 2020-02-03 | D30: SBIN | E30: Buy | F30: 299-301 | G30: 289 | I30: 315-320 | J30: Open | R30: H
A31: 6 | B31: 2020-02-03 | D31: BAJAJAUTO | E31: Sell | F31: 3260-3270 | G31: 3355 | I31: 3100-3050 | J31: Open | R31: H
A42: CLBS = Closing Basis ***
A43: Dividend adjusted <> | F43: Reinitiated $
F44: Revised stoploss #
A46: Master Trade High Risk
A47: Sr.no | B47: Date | D47: Company | E47: Rec | F47: Rec Price | G47: Stop Loss | H47: Call Closed At | I47: Target | J47: Remark | K47: Profit / Loss per share | L47: Gain / Loss per Lot | M47: Lot | N47: Status | O47: Closed Date
A52: Master Trade Medium Risk
A53: Sr.no | B53: Date | D53: Company | E53: Rec | F53: Rec Price | G53: Stop Loss | H53: Call Closed At | I53: Target | J53: Remark | K53: Profit/ Loss per lot | L53: Gain / Loss per Lot | M53: Lot | N53: Status | O53: Closed Date
A54: 1 | B54: 2020-01-31 | D54: DLF 250 FEB PE | E54: Buy | F54: 8.8 | H54: 13.5 | J54: Profit of Rs.1.2/- | K54: =H54-F54 -> 4.7 | L54: =1.2*M54 -> 3960 | M54: 3300 | N54: Successful | O54: 2020-02-01 | R54: H
D55: DLF FEB 245 PE | E55: Sell | F55: 7 | H55: 10.5 | K55: =F55-H55 -> -3.5 | R55: H
A56: 2 | B56: 2020-02-01 | D56: DABUR 490 FEB PE | E56: Buy | F56: 9 | G56: 4.5 | H56: 11 | I56: 14-16 | J56: Profit of Rs.2/- | K56: =H56-F56 -> 2 | L56: =K56*M56 -> 2500 | M56: 1250 | N56: Successful | O56: 2020-02-01 | R56: H
A57: 3 | B57: 2020-02-03 | D57: MARUTI 7200 FEB CE | E57: Buy | F57: 109-114 | J57: Open | R57: H
D58: MARUTI 7400 FEB CE | E58: Sell | F58: 59-64 | R58: H
A64: Techno -Funda (positional)
A65: Sr.no | B65: Date | D65: Company | E65: Rec | F65: Rec Price | G65: Stop Loss*** | H65: Call Closed At | I65: Target | J65: Remark | K65: Profit / Loss per Share | L65: Gain / Loss % | M65: Status | N65: Closed Date | O65: NSE Closed Price
A66: 2 | B66: 2020-01-07 | D66: FINPIPE | E66: Buy | F66: 543 | G66: 495 | H66: 584.5 | I66: 630-650 | J66: Profit of Rs.41.5/- | K66: =H66-F66 -> 41.5 | L66: =K66/F66 -> 7.64% | M66: Successful | N66: 2020-02-01 | R66: H
A68: CLBS = Closing Basis *** | F68: Reinitiated $
A69: Dividend adjusted <> | F69: Revised stoploss #
B74: Investment Idea
A75: Sr.no | B75: Date | D75: Company | E75: Rec | F75: Rec Price | G75: Point of Review | H75: Close Rate | I75: Target | J75: Remark | K75: Profit / Loss per Share | L75: Gain / Loss % | M75: Status | N75: Closed Date
A76: 1 | B76: 2013-11-01 | D76: L&T Finance Holding | E76: Accu | F76: 82.00 | G76: - | H76: 100 | I76: 100.00 | J76: Target Achieved | K76: =H76-F76 -> 18.00 | L76: =K76/F76 -> 21.95% | M76: Successful | N76: 2016-10-14
A77: 2 | B77: 2014-06-04 | D77: Finolex Inds | E77: Buy | F77: 257.00 | G77: - | H77: 300 | I77: 300.00 | J77: Target Achieved | K77: 43.00 | L77: 16.73% | M77: Successful | N77: 2014-07-02
A78: 3 | B78: 2014-07-08 | D78: JK Cement | E78: Buy | F78: 393.00 | G78: - | H78: 468 | I78: 468.00 | J78: Target Achieved | K78: 75.00 | L78: 19.08% | M78: Successful | N78: 2014-08-12
A79: 4 | B79: 2014-08-06 | D79: Finolex Cables | E79: Buy | F79: 205.00 | G79: - | H79: 275 | I79: 250.00 | J79: Target Achieved | K79: 70.00 | L79: 34.15% | M79: Successful | N79: 2014-11-19
A80: 5 | B80: 2014-09-04 | D80: Exide Inds | E80: Buy | F80: 162.00 | G80: - | H80: 190 | I80: 190.00 | J80: Target Achieved | K80: 28.00 | L80: 17.28% | M80: Successful | N80: 2015-01-02
A81: 6 | B81: 2014-09-04 | D81: Deepak Nitrite | E81: Buy | F81: 75.00 | G81: - | H81: 91.5 | I81: 95-100 | J81: Profit of Rs.16.50/- | K81: 16.50 | L81: 22.00% | M81: Successful | N81: 2014-11-11
A82: 7 | B82: 2014-10-01 | D82: Mercks | E82: Buy | F82: 850.00 | G82: - | H82: 982.5 | I82: 1050.00 | J82: Profit of Rs.132.50/- | K82: 132.50 | L82: 15.59% | M82: Successful | N82: 2015-02-04
A83: 8 | B83: 2014-10-01 | D83: Grindwell Norton | E83: Buy | F83: 475.00 | G83: - | H83: 515 | I83: 600.00 | J83: Profit of Rs.40/- | K83: 40.00 | L83: 8.42% | M83: Successful | N83: 2014-10-27
A84: 9 | B84: 2014-10-01 | D84: Snowman Logistics | E84: Buy | F84: 86.00 | G84: - | H84: 99 | I84: 140.00 | J84: Profit of Rs.13.00/- | K84: 13.00 | L84: 15.12% | M84: Successful | N84: 2014-10-27
A85: 10 | B85: 2014-10-14 | D85: Birla Corp | E85: Buy | F85: 496.60 | G85: - | H85: 621 | I85: 580.00 | J85: Target Achieved | K85: 124.40 | L85: 25.05% | M85: Successful | N85: 2016-08-23
A86: 11 | B86: 2014-10-14 | D86: Ultratech Cem | E86: Buy | F86: 2481.90 | G86: - | H86: 2840 | I86: 2870.00 | J86: Profit of Rs.358.10/- | K86: 358.10 | L86: 14.43% | M86: Successful | N86: 2015-01-13
A87: 12 | B87: 2014-10-16 | D87: Sintex Inds | E87: Buy | F87: 84.50 | G87: - | H87: 93 | I87: 110.00 | J87: Profit of Rs.8.50/- | K87: 8.50 | L87: 10.06% | M87: Successful | N87: 2014-10-27
A88: 13 | B88: 2014-10-16 | D88: HSIL | E88: Buy | F88: 401.00 | G88: - | H88: 428 | I88: 450.00 | J88: Profit of Rs.27.00/- | K88: 27.00 | L88: 6.73% | M88: Successful | N88: 2015-01-16
A89: 14 | B89: 2014-10-16 | D89: Eveready Inds | E89: Buy | F89: 101.00 | G89: - | H89: 112 | I89: 120.00 | J89: Profit of Rs.11.00/- | K89: 11.00 | L89: 10.89% | M89: Successful | N89: 2014-10-27
A90: 15 | B90: 2014-11-11 | D90: Pennar Inds | E90: Buy | F90: 59.00 | G90: - | H90: 76 | I90: 76.00 | J90: Target Achieved | K90: 17.00 | L90: 28.81% | M90: Successful | N90: 2017-10-24
A91: 16 | B91: 2014-11-11 | D91: Snowman Logistics | E91: Buy | F91: 99.00 | G91: - | H91: 120 | I91: 120.00 | J91: Profit of Rs.21/- | K91: 21.00 | L91: 21.21% | M91: Successful | N91: 2014-11-17
A92: 17 | B92: 2014-11-13 | D92: Dharamsi Morarji Chem | E92: Buy | F92: 22.00 | G92: - | H92: 33.55 | I92: 32.00 | J92: Profit of Rs 11.55/- | K92: 11.55 | L92: 52.50% | M92: Successful | N92: 2015-07-03
A93: 18 | B93: 2014-12-03 | D93: Tatachem | E93: Buy | F93: 440.00 | G93: - | H93: 520 | I93: 520.00 | J93: Profit of Rs 80.00/- | K93: 80.00 | L93: 18.18% | M93: Successful | N93: 2015-07-23
A94: 19 | B94: 2014-12-03 | D94: Advanta | E94: Buy | F94: 360.00 | G94: - | H94: 427 | I94: 425.00 | J94: Profit of Rs.67.00/- | K94: 67.00 | L94: 18.61% | M94: Successful | N94: 2015-02-23
A95: 20 | B95: 2015-01-08 | D95: GDL | E95: Buy | F95: 360.00 | G95: - | H95: 455 | I95: 420.00 | J95: Profit of Rs.95.00/- | K95: 95.00 | L95: 26.39% | M95: Successful | N95: 2015-01-20
A96: 21 | B96: 2015-01-08 | D96: NRB Bearing | E96: Buy | F96: 130.00 | H96: 175.5 | I96: 165.00 | J96: Profit of Rs 45.50/- | K96: 45.50 | L96: 35.00% | M96: Successful | N96: 2017-12-19
A97: 22 | B97: 2015-02-05 | D97: GSFC | E97: Accu | F97: 98.00 | H97: 120 | I97: 120.00 | J97: Target Achieved | K97: 22.00 | L97: 22.45% | M97: Successful | N97: 2017-01-18
A98: 23 | B98: 2015-02-05 | D98: Sundrmfast | E98: Accu | F98: 196.00 | H98: 262 | I98: 255.00 | J98: Target Achieved | K98: 66.00 | L98: 33.67% | M98: Successful | N98: 2016-08-17
A99: 24 | B99: 2015-03-04 | D99: GPPL | E99: Accu | F99: 235 | H99: 77.00 | I99: 280-285 | J99: Loss of Rs.158/- | K99: -158.00 | L99: -67.23% | M99: Unsuccessful | N99: 2019-02-26
A100: 25 | B100: 2015-03-04 | D100: ORIENTCEM | E100: Accu | F100: 185.00 | H100: 224 | I100: 220-225 | J100: Target Achieved | K100: 39.00 | L100: 21.08% | M100: Successful | N100: 2016-10-04
A101: 26 | B101: 2015-03-27 | D101: PFS | E101: Accu | F101: 49.5 | H101: 15.85 | I101: 67.00 | J101: Loss of Rs.33.65/- | K101: -33.65 | L101: -68% | M101: Unsuccessful | N101: 2019-06-11
A102: 27 | B102: 2015-03-30 | D102: Walchandnagar Ind Ltd | E102: Accu | F102: 183.50 | H102: 219 | I102: 218.00 | J102: Profit of Rs.35.50/- | K102: 35.50 | L102: 19.35% | M102: Successful | N102: 2015-04-09
A103: 28 | B103: 2015-04-20 | D103: Kalpataru Power Transmission Ltd | E103: Accu | F103: =(227+237)/2 -> 232.00 | H103: 298 | I103: 298.00 | J103: Target Achieved | K103: 66.00 | L103: 28.45% | M103: Successful | N103: 2017-03-29
A104: 29 | B104: 2015-05-04 | D104: Mastek Ltd | E104: Buy | F104: 385.00 | H104: =212.5+331 -> 543.5 | I104: 510.00 | J104: Profit of Rs 158.50/- | K104: 158.50 | L104: 41.17% | M104: Successful | N104: 2015-08-19
A105: 30 | B105: 2015-05-04 | D105: Suprajit Eng | E105: Buy | F105: 115.50 | H105: 146 | I105: 142.00 | J105: Profit of Rs 30.50/- | K105: 30.50 | L105: 26.41% | M105: Successful | N105: 2015-07-17
A106: 31 | B106: 2015-05-27 | D106: TCI | E106: Buy | F106: 237.50 | H106: 279.5 | I106: 278.00 | J106: Target Achieved | K106: 42.00 | L106: 17.68% | M106: Successful | N106: 2015-08-06
A107: 32 | B107: 2015-06-19 | D107: HSIL | E107: Accu | F107: 340.00 | H107: 448 | I107: 448.00 | J107: Target Achieved | K107: 108.00 | L107: 31.76% | M107: Successful | N107: 2017-10-10
A108: 33 | B108: 2015-07-06 | D108: Capital First | E108: Accu | F108: 390.00 | H108: 460 | I108: 460.00 | J108: Target Achieved | K108: =H108-F108 -> 70.00 | L108: =K108/F108 -> 17.95% | M108: Successful | N108: 2016-04-18
A109: 34 | B109: 2015-07-10 | D109: Dolphin OffShore | E109: Accu | F109: 122.5 | H109: 61.00 | I109: 172.00 | J109: Loss of Rs.61.50/- | K109: -61.50 | L109: -50.20% | M109: Unsuccessful | N109: 2018-08-21
A110: 35 | B110: 2015-08-03 | D110: Allcargo logistics | E110: Accu | F110: 297.50 | H110: 350 | I110: 360.00 | J110: Profit of Rs 52.50/- | K110: 52.50 | L110: 17.65% | M110: Successful | N110: 2015-08-16
A111: 36 | B111: 2015-08-03 | D111: Camline Fine | E111: Accu | F111: 115.50 | H111: 149 | I111: 140.00 | J111: Profit of Rs 33.50/- | K111: 33.50 | L111: 29.00% | M111: Successful | N111: 2017-01-05
A112: 37 | B112: 2015-09-04 | D112: TCI | E112: Accu | F112: 226.00 | H112: 292 | I112: 292.00 | J112: Target Achieved | K112: 66.00 | L112: 29.20% | M112: Successful | N112: 2015-10-09
A113: 38 | B113: 2015-09-07 | D113: Kalpataru Power Transmission Ltd | E113: Accu | F113: 232.50 | H113: 312.5 | I113: 310.00 | J113: Target Achieved | K113: 80.00 | L113: 34.41% | M113: Successful | N113: 2017-03-29
A114: 39 | B114: 2015-09-21 | D114: LLOYD ELECTRIC & ENG LTD | E114: Accu | F114: 196.50 | H114: 238 | I114: 238.00 | J114: Target Achieved | K114: 41.50 | L114: 21.12% | M114: Successful | N114: 2015-10-14
A115: 40 | B115: 2015-09-24 | D115: L&T Finance Holding | E115: Accu | F115: 65.00 | H115: 82 | I115: 82.00 | J115: Target Achieved | K115: 17.00 | L115: 26.15% | M115: Successful | N115: 2016-07-27
A116: 41 | B116: 2015-10-14 | D116: KEC International ltd | E116: Accu | F116: 144.00 | H116: 182.5 | I116: 181.00 | J116: Target Achieved | K116: 38.50 | L116: 26.74% | M116: Successful | N116: 2017-03-23
A117: 42 | B117: 2015-10-14 | D117: Gruh Finance | E117: Accu | F117: 264.00 | H117: 311 | I117: 311.00 | J117: Target Achieved | K117: 47.00 | L117: 17.80% | M117: Successful | N117: 2016-08-22
A118: 43 | B118: 2015-11-10 | D118: Pidilitind | E118: Buy | F118: 549.50 | H118: 630 | I118: 630.00 | J118: Target Achieved | K118: 80.50 | L118: 14.65% | M118: Successful | N118: 2016-02-19
A119: 44 | B119: 2015-12-04 | D119: Zensar Technology | E119: Accu | F119: 1027.50 | H119: 1315 | I119: 1250.00 | J119: Target Achieved | K119: 287.50 | L119: 27.98% | M119: Successful | N119: 2018-05-24
A120: 45 | B120: 2015-12-29 | D120: Vinati Organics Ltd | E120: Accu | F120: 465.00 | H120: 540 | I120: 540.00 | J120: Target Achieved | K120: 75.00 | L120: 16.13% | M120: Successful | N120: 2016-06-09
A121: 46 | B121: 2016-01-11 | D121: GSFC | E121: Buy | F121: 81.00 | H121: 110 | I121: 110.00 | J121: Target Achieved | K121: 29.00 | L121: 35.80% | M121: Successful | N121: 2017-01-10
A122: 47 | B122: 2016-01-13 | D122: SSWL | E122: Buy | F122: 417.50 | H122: 547 | I122: 535.00 | J122: Target Achieved | K122: 129.50 | L122: 31.02% | M122: Successful | N122: 2016-07-27
A123: 48 | B123: 2016-02-08 | D123: Persistent System Ltd | E123: Accu | F123: 650.00 | H123: 800 | I123: 800.00 | J123: Target Achieved | K123: 150.00 | L123: 23.08% | M123: Successful | N123: 2018-02-23
A124: 49 | B124: 2016-03-04 | D124: UPL | E124: Accu | F124: 437.50 | H124: 504.5 | I124: 522.00 | J124: Profit of Rs.67/- | K124: 67.00 | L124: 15.31% | M124: Successful | N124: 2016-04-20
A125: 50 | B125: 2016-03-09 | D125: Ashoka Buildcon Ltd | E125: Accu | F125: 189.50 | H125: 218 | I125: 218.00 | J125: Target Achieved | K125: 28.50 | L125: 15.04% | M125: Successful | N125: 2017-10-26
A126: 51 | B126: 2016-04-11 | D126: PTC INDIA FIN SERV LTD | E126: Accu | F126: 36.5 | H126: 15.85 | I126: 60.00 | J126: Loss of Rs.20.65/- | K126: -20.65 | L126: -56.58% | M126: Unsuccessful | N126: 2019-06-11
A127: 52 | B127: 2016-04-12 | D127: CAMLINFINE $ | E127: Accu | F127: 93.00 | H127: 149 | I127: 140.00 | J127: Profit of Rs 56/- | K127: 56.00 | L127: 60.22% | M127: Successful | N127: 2017-01-05
A128: 53 | B128: 2016-04-12 | D128: Greaves Cotton Ltd. | E128: Accu | F128: 130.00 | H128: 150 | I128: 150-155 | J128: Target Achieved | K128: 20.00 | L128: 15.38% | M128: Successful | N128: 2016-07-13
A129: 54 | B129: 2016-04-13 | D129: DHFL | E129: Accu | F129: 196.00 | H129: 299 | I129: 299.00 | J129: Target Achieved | K129: 103.00 | L129: 52.55% | M129: Successful | N129: 2016-09-07
A130: 55 | B130: 2016-04-13 | D130: Magma | E130: Accu | F130: 88.00 | H130: 103 | I130: 103.00 | J130: Target Achieved | K130: 15.00 | L130: 17.05% | M130: Successful | N130: 2016-06-09
A131: 56 | B131: 2016-05-02 | D131: KEC International ltd $ | E131: Accu | F131: 127.50 | H131: 148 | I131: 148-150 | J131: Target Achieved | K131: =H131-F131 -> 20.50 | L131: =K131/F131 -> 16.08% | M131: Successful | N131: 2016-07-13
A132: 57 | B132: 2016-05-03 | D132: Mindtree | E132: Accu | F132: 675.00 | H132: 815 | I132: 790-800 | J132: Target Achieved | K132: =H132-F132 -> 140.00 | L132: =K132/F132 -> 20.74% | M132: Successful | N132: 2018-02-23
A133: 58 | B133: 2016-06-01 | D133: Atulauto | E133: Accu | F133: 500 | H133: 232.50 | I133: 565-570 | J133: Loss of Rs.267.50 /- | K133: =H133-F133 -> -267.50 | L133: =K133/F133 -> -53.50% | M133: Unsuccessful | N133: 2019-09-27
A134: 59 | B134: 2016-06-06 | D134: TRITURBINE | E134: Accu | F134: 110.00 | H134: 126.5 | I134: 125.00 | J134: Profit of Rs.16.50/- | K134: =H134-F134 -> 16.50 | L134: =K134/F134 -> 15.00% | M134: Successful | N134: 2016-07-01
A135: 60 | B135: 2016-06-17 | D135: Pennar Industries Ltd | E135: Accu | F135: 44.00 | H135: 69.5 | I135: 69.50 | J135: Profit of Rs.25.50/- | K135: =H135-F135 -> 25.50 | L135: =K135/F135 -> 57.95% | M135: Successful | N135: 2017-08-30
A136: 61 | B136: 2016-06-28 | D136: EVEREADY | E136: Accu | F136: 262.50 | H136: 340 | I136: 333.00 | J136: Profit of Rs.77.50/- | K136: 77.50 | L136: 29.52% | M136: Successful | N136: 2017-10-09
A137: 62 | B137: 2016-06-28 | D137: FIEMIND | E137: Accu | F137: 840.00 | H137: 1230 | I137: 1230.00 | J137: Target Achieved | K137: 390.00 | L137: 46.43% | M137: Successful | N137: 2016-10-06
A138: 63 | B138: 2016-07-05 | D138: Bajaj Corp Ltd | E138: Accu | F138: 395 | H138: =(468.5+342.5)/2 -> 405.50 | I138: 510.00 | J138: Profit of Rs.10.50/- | K138: =H138-F138 -> 10.50 | L138: =K138/F138 -> 3% | M138: Neutral | N138: 2019-05-21
A139: 64 | B139: 2016-08-02 | D139: GPPL $ | E139: Buy | F139: 169.5 | H139: 77.00 | I139: 198-200 | J139: Loss of Rs.92.5/- | K139: -92.50 | L139: -54.57% | M139: Unsuccessful | N139: 2019-02-26
A140: 65 | B140: 2016-08-04 | D140: WONDERLA HOLIDAYS LTD | E140: Accu | F140: 400 | H140: 305.00 | I140: 475.00 | J140: Loss of Rs.95/- | K140: -95.00 | L140: -23.75% | M140: Unsuccessful | N140: 2019-05-21
A141: 66 | B141: 2016-08-11 | D141: CAMLINFINE | E141: Accu | F141: 86.50 | H141: 130 | I141: 130.00 | J141: Profit of Rs.43.50/- | K141: 43.50 | L141: 50.29% | M141: Successful | N141: 2017-12-22
A142: 67 | B142: 2016-08-18 | D142: GRANULES | E142: Accu | F142: 133.5 | H142: 126.50 | I142: 178.00 | J142: Exit | K142: -7.00 | L142: -5.24% | M142: Unsuccessful | N142: 2016-09-02
A143: 68 | B143: 2016-08-31 | D143: VA TECH WABAG | E143: Accu | F143: 560.00 | H143: 725 | I143: 725.00 | J143: Target Achieved | K143: 165.00 | L143: 29.46% | M143: Successful | N143: 2016-03-27
A144: 69 | B144: 2016-09-01 | D144: SKIPPER LIMITED | E144: Accu | F144: 160.50 | H144: 210 | I144: 210.00 | J144: Target Achieved | K144: 49.50 | L144: 30.84% | M144: Successful | N144: 2017-05-16
A145: 70 | B145: 2016-10-03 | D145: IFBIND | E145: Accu | F145: 430.00 | H145: 596 | I145: 575.00 | J145: Profit of Rs.166/- | K145: 166.00 | L145: 38.60% | M145: Successful | N145: 2017-02-03
A146: 71 | B146: 2016-10-14 | D146: ASIANTILES | E146: Accu | F146: 280.00 | H146: 345 | I146: 345.00 | J146: Target Achieved | K146: =H146-F146 -> 65.00 | L146: =K146/F146 -> 23.21% | M146: Successful | N146: 2017-03-20
A147: 72 | B147: 2016-10-14 | D147: DEEPIND | E147: Accu | F147: 245.00 | H147: 325.5 | I147: 330.00 | J147: Profit of Rs.80.5/- | K147: 80.50 | L147: =K147/F147 -> 32.86% | M147: Successful | N147: 2017-02-03
A148: 73 | B148: 2016-10-17 | D148: DCBBANK | E148: Accu | F148: 125.00 | H148: 160 | I148: 160.00 | J148: Target Achieved | K148: 35.00 | L148: 28.00% | M148: Successful | N148: 2017-03-09
A149: 74 | B149: 2016-10-17 | D149: ORIENTREF | E149: Accu | F149: 114.00 | H149: 145 | I149: 145.00 | J149: Target Achieved | K149: 31.00 | L149: =K149/F149 -> 27.19% | M149: Successful | N149: 2017-05-04
A150: 75 | B150: 2016-10-17 | D150: GANECOS | E150: Accu | F150: 212.00 | H150: 280 | I150: 276.00 | J150: Profit of Rs.68/- | K150: 68.00 | L150: =K150/F150 -> 32.08% | M150: Successful | N150: 2017-05-03
A151: 76 | B151: 2016-11-04 | D151: NBCC | E151: Accu | F151: 155.00 | H151: 210 | I151: 210.00 | J151: Profit of Rs.55/- | K151: 55.00 | L151: =K151/F151 -> 35.48% | M151: Successful | N151: 2017-07-28
A152: 77 | B152: 2016-12-06 | D152: PRECAM | E152: Accu | F152: 150.5 | H152: 72.50 | I152: 174.00 | J152: Loss of Rs.78/- | K152: -78.00 | L152: -51.83% | M152: Unsuccessful | N152: 2018-08-21
A153: 78 | B153: 2016-12-08 | D153: INFRATEL | E153: Accu | F153: 380.00 | H153: 478 | I153: 468.00 | J153: Target Achieved | K153: =H153-F153 -> 98.00 | L153: =K153/F153 -> 25.79% | M153: Successful | N153: 2017-10-17
A154: 79 | B154: 2016-12-30 | D154: GODREJPROP | E154: Accu | F154: 305.00 | H154: 375 | I154: 375.00 | J154: Target Achieved | K154: =H154-F154 -> 70.00 | L154: =K154/F154 -> 22.95% | M154: Successful | N154: 2017-02-02
A155: 80 | B155: 2017-01-04 | D155: DEEPAKNTR | E155: Accu | F155: 99.50 | H155: 158 | I155: 158.00 | J155: Target Achieved | K155: =H155-F155 -> 58.50 | L155: =K155/F155 -> 58.79% | M155: Successful | N155: 2017-06-12
A156: 81 | B156: 2017-01-04 | D156: DEEPAKNTR | E156: Accu | F156: 99.50 | H156: 158 | I156: 158.00 | J156: Target Achieved | K156: 58.50 | L156: 58.79% | M156: Successful | N156: 2017-06-12
A157: 82 | B157: 2017-02-20 | D157: RECLTD | E157: Accu | F157: 140.50 | H157: 220 | I157: 220.00 | J157: Target Achieved | K157: =H157-F157 -> 79.50 | L157: =K157/F157 -> 56.58% | M157: Successful | N157: 2017-05-09
A158: 83 | B158: 2017-02-20 | D158: SUBROS | E158: Accu | F158: 202.50 | H158: 234 | I158: 234.00 | J158: Target Achieved | K158: 31.50 | L158: 15.56% | M158: Successful | N158: 2017-04-11
A159: 84 | B159: 2017-03-24 | D159: VRLLOG | E159: Accu | F159: 300.50 | H159: 417.5 | I159: 420.00 | J159: Profit of Rs.117/- | K159: =H159-F159 -> 117.00 | L159: =K159/F159 -> 38.94% | M159: Successful | N159: 2017-12-01
A160: 85 | B160: 2017-03-24 | D160: FIEMIND | E160: Accu | F160: 850.00 | H160: 1042.5 | I160: 1023.00 | J160: Profit of Rs 192.50/- | K160: 192.50 | L160: 22.65% | M160: Successful | N160: 2017-04-05
A161: 86 | B161: 2017-04-05 | D161: RATNAMANI | E161: Accu | F161: 785.00 | H161: 930 | I161: 920.00 | J161: Profit of Rs.145/- | K161: =H161-F161 -> 145.00 | L161: =K161/F161 -> 18.47% | M161: Successful | N161: 2017-08-29
A162: 87 | B162: 2017-04-06 | D162: ZEEMEDIA | E162: Accu | F162: 40 | H162: 13.10 | I162: 60.00 | J162: Loss of Rs.26.9/- | K162: -26.90 | L162: -67.25% | M162: Unsuccessful | N162: 2018-02-07
A163: 88 | B163: 2017-04-12 | D163: DABUR | E163: Accu | F163: 289.50 | H163: 354 | I163: 360.00 | J163: Profit of Rs.64.5/- | K163: =H163-F163 -> 64.50 | L163: =K163/F163 -> 22.28% | M163: Successful | N163: 2017-11-01
A164: 89 | B164: 2017-04-20 | D164: KPRMILL | E164: Accu | F164: 700.00 | H164: 840 | I164: 840.00 | J164: Profit of Rs.140/- | K164: 140.00 | L164: 20.00% | M164: Successful | N164: 2017-06-07
A165: 90 | B165: 2017-06-01 | D165: ESSELPACK | E165: Accu | F165: 130.00 | H165: 144.25 | I165: 170.00 | J165: Profit of Rs.14.25/- | K165: 14.25 | L165: 10.96% | M165: Successful | N165: 2019-07-29
A166: 91 | B166: 2017-06-15 | D166: KEI | E166: Accu | F166: 214.50 | H166: 262 | I166: 262.00 | J166: Profit of Rs.47.5/- | K166: 47.50 | L166: 22.14% | M166: Successful | N166: 2017-08-30
A167: 92 | B167: 2017-07-17 | D167: MAYURUNIQ | E167: Accu | F167: 370.00 | H167: 447.5 | I167: 450.00 | J167: Target Achieved | K167: 77.50 | L167: 20.95% | M167: Successful | N167: 2017-10-27
A168: 93 | B168: 2017-07-27 | D168: RAMCOCEM | E168: Accu | F168: 657.50 | H168: 825 | I168: 820.00 | J168: Target Achieved | K168: 167.50 | L168: 25.48% | M168: Successful | N168: 2017-12-21
A169: 94 | B169: 2017-08-17 | D169: FINPIPE | E169: Accu | F169: 605.00 | H169: 750 | I169: 750.00 | J169: Profit of Rs.145/- | K169: 145.00 | L169: 23.97% | M169: Successful | N169: 2017-10-19
A170: 95 | B170: 2017-09-01 | D170: SHK | E170: Accu | F170: 255 | H170: 217.25 | I170: 320.00 | J170: Loss of Rs.37.75/- | K170: -37.75 | L170: -15% | M170: Unsuccessful | N170: 2019-07-15
A171: 96 | B171: 2017-09-19 | D171: SKIPPER | E171: Accu | F171: 215.00 | H171: 258 | I171: 258.00 | J171: Target Achieved | K171: 43.00 | L171: 20.00% | M171: Successful | N171: 2017-11-01
A172: 97 | B172: 2017-09-19 | D172: SKIPPER | E172: Accu | F172: 215.00 | H172: 258 | I172: 258.00 | J172: Target Achieved | K172: 43.00 | L172: 20.00% | M172: Successful | N172: 2017-11-01
A173: 98 | B173: 2017-09-20 | D173: CAMLINFINE$ | E173: Accu | F173: 75.00 | H173: 90 | I173: 90.00 | J173: Profit of Rs.15.00/- | K173: =H173-F173 -> 15.00 | L173: =K173/F173 -> 20.00% | M173: Successful | N173: 2017-10-11
A174: 99 | B174: 2017-10-03 | D174: GNA | E174: Accu | F174: 315.00 | H174: 392 | I174: 384.00 | J174: Profit of Rs.77/- | K174: 77.00 | L174: 24.44% | M174: Successful | N174: 2017-10-09
A175: 100 | B175: 2017-10-05 | D175: NOCIL | E175: Accu | F175: 145.00 | H175: 179 | I175: 180.00 | J175: Profit of Rs.34/- | K175: 34.00 | L175: 23.45% | M175: Successful | N175: 2017-10-17
A176: 101 | B176: 2017-10-06 | D176: CENTURYPLY | E176: Accu | F176: 256.00 | H176: 323 | I176: 320.00 | J176: Target Achieved | K176: 67.00 | L176: 26.17% | M176: Successful | N176: 2017-11-28
A177: 102 | B177: 2017-10-09 | D177: EIHOTEL | E177: Accu | F177: 137.50 | H177: 184 | I177: 183.00 | J177: Profit of Rs.46.5/- | K177: 46.50 | L177: 33.82% | M177: Successful | N177: 2018-01-08
A178: 103 | B178: 2017-10-10 | D178: NRBBEARING | E178: Accu | F178: 125.50 | H178: 158 | I178: 155.00 | J178: Profit of Rs.32.5/- | K178: 32.50 | L178: 25.90% | M178: Successful | N178: 2017-11-28
A179: 104 | B179: 2017-10-10 | D179: BOROSIL | E179: Accu | F179: 895.00 | H179: 1122.5 | I179: 1078.00 | J179: Profit of Rs.227.5/- | K179: 227.50 | L179: 25.42% | M179: Successful | N179: 2018-01-17
A180: 105 | B180: 2017-10-12 | D180: CYIENT | E180: Accu | F180: 525.00 | H180: 629 | I180: 629.00 | J180: Target Achieved | K180: 104.00 | L180: 19.81% | M180: Successful | N180: 2018-01-19
A181: 106 | B181: 2017-11-07 | D181: HATSUN | E181: Accu | F181: 740.00 | H181: 892.5 | I181: 900.00 | J181: Profit of Rs.152.5/- | K181: =H181-F181 -> 152.50 | L181: =K181/F181 -> 20.61% | M181: Successful | N181: 2017-11-13
A182: 107 | B182: 2017-12-04 | D182: SANGHIIND | E182: Accu | F182: 118.50 | H182: 143.5 | I182: 145.00 | J182: Profit of Rs.25/- | K182: =H182-F182 -> 25.00 | L182: =K182/F182 -> 21.10% | M182: Successful | N182: 2017-12-28
A183: 108 | B183: 2017-12-21 | D183: KAJARIACER | E183: Accu | F183: 715 | H183: 500.00 | I183: 872.00 | J183: Loss of Rs.215/- | K183: =H183-F183 -> -215.00 | L183: =K183/F183 -> -30.07% | M183: Unsuccessful | N183: 2019-07-24
A184: 109 | B184: 2017-12-29 | D184: GNA | E184: Accu | F184: 435.00 | H184: 542.5 | I184: 539.00 | J184: Target Achieved | K184: 107.50 | L184: 24.71% | M184: Successful | N184: 2018-04-16
A185: 110 | B185: 2017-12-29 | D185: ZENSARTECH | E185: Accu | F185: 885.00 | H185: 1090 | I185: 1084.00 | J185: Target Achieved | K185: 205.00 | L185: 23.16% | M185: Successful | N185: 2018-04-23
A186: 111 | B186: 2018-04-02 | D186: EVERESTIND | E186: Accu | F186: 492.50 | H186: 442 | I186: 613.00 | J186: Loss of Rs.50.50 /- | K186: =H186-F186 -> -50.50 | L186: =K186/F186 -> -10.25% | M186: Unsuccessful | N186: 2019-10-24
A187: 112 | B187: 2018-04-04 | D187: GPPL$ | E187: Accu | F187: 141.5 | H187: 77.00 | I187: 180.00 | J187: Loss of Rs.64.5/- | K187: =H187-F187 -> -64.50 | L187: =K187/F187 -> -45.58% | M187: Unsuccessful | N187: 2019-02-26
A188: 113 | B188: 2018-04-19 | D188: MANPASAND | E188: Accu | F188: 430 | H188: 220.00 | I188: 537.00 | J188: Loss of Rs.210/- | K188: =H188-F188 -> -210.00 | L188: =K188/F188 -> -48.84% | M188: Unsuccessful | N188: 2018-06-01
A189: 114 | B189: 2018-04-30 | D189: HEIDELBERG | E189: Accu | F189: 156 | H189: 196.00 | I189: 196.00 | J189: Profit of Rs.40/- | K189: =H189-F189 -> 40.00 | L189: =K189/F189 -> 26% | M189: Successful | N189: 2019-05-20
A190: 115 | B190: 2018-07-25 | D190: ZEEMEDIA | E190: Accu | F190: 27.5 | H190: 13.10 | I190: 60.00 | J190: Loss of Rs.14.40/- | K190: -14.40 | L190: -52.36% | M190: Unsuccessful | N190: 2018-02-07
A191: 116 | B191: 2018-08-06 | D191: GABRIEL | E191: Accu | F191: 150.00 | H191: 102 | I191: 182.00 | J191: Loss of Rs.48 /- | K191: =H191-F191 -> -48.00 | L191: =K191/F191 -> -32.00% | M191: Unsuccessful | N191: 2019-07-15
A192: 117 | B192: 2018-08-23 | D192: INDIANHUME | E192: Accu | F192: 285.00 | H192: 355 | I192: 364.00 | J192: Profit of Rs.70/- | K192: 70.00 | L192: 24.56% | M192: Successful | N192: 2018-12-21
A193: 118 | B193: 2018-08-29 | D193: GRINDWELL | E193: Accu | F193: 525.00 | H193: 585 | I193: 635.00 | J193: Profit of Rs.60- | K193: =H193-F193 -> 60.00 | L193: =K193/F193 -> 11.43% | M193: Successful | N193: 2019-07-16
A194: 119 | B194: 2018-10-22 | D194: FINPIPE | E194: Accu | F194: 475.00 | H194: 574 | I194: 570.00 | J194: Target Achieved | K194: 99.00 | L194: 20.84% | M194: Successful | N194: 2018-10-30
A195: 120 | B195: 2018-10-24 | D195: GULFOILLUB | E195: Accu | F195: 707.50 | H195: 872 | I195: 872.00 | J195: Target Achieved | K195: 164.50 | L195: 23.25% | M195: Successful | N195: 2019-01-17
A196: 121 | B196: 2018-10-25 | D196: DBCORP | E196: Accu | F196: 164.00 | H196: 204 | I196: 209.00 | J196: Profit of Rs.40/- | K196: 40.00 | L196: 24.39% | M196: Successful | N196: 2019-03-15
A197: 122 | B197: 2018-10-26 | D197: RITES | E197: Accu | F197: 240.00 | H197: 297 | I197: 297.00 | J197: Target Achieved | K197: 57.00 | L197: 23.75% | M197: Successful | N197: 2018-11-13
A198: 123 | B198: 2018-12-05 | D198: BRIGADE | E198: Accu | F198: 202.50 | H198: 255 | I198: 252.00 | J198: Target Achieved | K198: 52.50 | L198: 25.93% | M198: Successful | N198: 2019-03-18
A199: 124 | B199: 2018-12-31 | D199: JKCEMENT | E199: Accu | F199: 710.00 | H199: 866 | I199: 866.00 | J199: Target Achieved | K199: 156.00 | L199: 21.97% | M199: Successful | N199: 2019-03-29
A200: 125 | B200: 2019-02-26 | D200: MARICO | E200: Accu | F200: 340.00 | H200: 398.5 | I200: 411.00 | J200: Profit of Rs.58.50/- | K200: 58.50 | L200: 17.21% | M200: Successful | N200: 2019-10-22
A201: 126 | B201: 2019-04-04 | D201: ITDCEM | E201: Accu | F201: 130.00 | H201: 65 | I201: 158.00 | J201: Loss of Rs.65 /- | K201: -65.00 | L201: -50.00% | M201: Unsuccessful | N201: 2019-09-18
A202: 127 | B202: 2017-10-09 | D202: RECLTD | E202: Accu | F202: 152.5 | H202: 183.50 | I202: 210.00 | J202: Part Profit of Rs.31/- | K202: 31.00 | L202: 20% | M202: Successful | N202: 2017-11-03 | R202: V
A203: 128 | B203: 2017-12-05 | D203: ALLCARGO | E203: Accu | F203: 177.50 | H203: 155.25 | I203: 230.00 | J203: Loss of Rs.22.25/- | K203: =H203-F203 -> -22.25 | L203: =K203/F203 -> -12.54% | M203: Unsuccessful | N203: 2019-11-18 | R203: V
A204: 129 | B204: 2018-10-25 | D204: GODREJCP | E204: Accu | F204: 707.5 | H204: 850.00 | I204: 890.00 | J204: Part Profit of Rs.142.5/- | K204: 142.50 | L204: 20% | M204: Successful | N204: 2018-12-19 | R204: V
A205: 130 | B205: 2017-05-22 | D205: GREAVESCOT | E205: Accu | F205: 138.6 | H205: 138.00 | I205: 190.00 | J205: Neutral | K205: -0.60 | L205: -0% | M205: Neutral | N205: 2019-11-05 | R205: K
A206: 131 | B206: 2018-02-27 | D206: MOLDTKPAC | E206: Accu | F206: 320-330 | I206: 398.00 | M206: Open | R206: K
A207: 132 | B207: 2018-03-05 | D207: LICHSGFIN | E207: Accu | F207: 505-515 | I207: 672.00 | M207: Open | R207: K
A208: 133 | B208: 2018-05-17 | D208: PHILIPCARB | E208: Accu | F208: 230-240 | I208: 348.00 | M208: Open | R208: V
A209: 134 | B209: 2018-06-07 | D209: KEC | E209: Accu | F209: 340-345 | I209: 439.00 | M209: Open | R209: K
A210: 135 | B210: 2018-07-04 | D210: ASHOKLEY | E210: Accu | F210: 125-130 | I210: 170.00 | M210: Open | R210: K
A211: 136 | B211: 2018-07-13 | D211: FCONSUMER | E211: Accu | F211: 46-47 | I211: 59.00 | M211: Open | R211: V
A212: 137 | B212: 2018-10-23 | D212: JKPAPER | E212: Accu | F212: 158-162 | I212: 191.00 | M212: Open | R212: V
A213: 138 | B213: 2018-12-05 | D213: CCL | E213: Accu | F213: 260-270 | I213: 321.00 | M213: Open | R213: K
A214: 139 | B214: 2018-12-05 | D214: VARROC | E214: Accu | F214: 715.00 | H214: 445 | I214: 840.00 | J214: Loss of Rs.270/- | K214: =H214-F214 -> -270.00 | L214: =K214/F214 -> -37.76% | M214: Unsuccessful | N214: 2019-12-01 | R214: V
A215: 140 | B215: 2019-01-04 | D215: MGL | E215: Accu | F215: 895.00 | H215: 1165 | I215: 1185.00 | J215: Profit of Rs.270/- | K215: 270.00 | L215: 30.17% | M215: Successful | N215: 2020-01-17 | R215: V
A216: 141 | B216: 2019-04-04 | D216: COCHINSHIP | E216: Accu | F216: 387.00 | H216: 490 | I216: 490.00 | J216: Target Achieved | K216: 103.00 | L216: 26.61% | M216: Successful | N216: 2020-01-20 | R216: V
A217: 142 | B217: 2019-04-23 | D217: MAHINDCIE | E217: Buy | F217: 215-225 | I217: 284.00 | M217: Open | R217: V
A218: 143 | B218: 2019-06-06 | D218: RADICO | E218: Buy | F218: 334.00 | H218: 405 | I218: 419.00 | J218: Profit of Rs.71/- | K218: =H218-F218 -> 71.00 | L218: =K218/F218 -> 21.26% | M218: Successful | N218: 2020-01-30 | R218: V
A219: 144 | B219: 2019-06-25 | D219: M&MFIN | E219: Accu | F219: 390-395 | I219: 452.00 | M219: Open | R219: V
A220: 145 | B220: 2019-08-30 | D220: INDHOTEL | E220: Accu | F220: 135-140 | I220: 190.00 | M220: Open | R220: V
A221: 146 | B221: 2019-09-23 | D221: KNRCON | E221: Accu | F221: 235.00 | H221: 295 | I221: 296.00 | J221: Profit of Rs.60/- | K221: =H221-F221 -> 60.00 | L221: =K221/F221 -> 25.53% | M221: Successful | N221: 2020-01-14 | R221: V
A222: 147 | B222: 2019-10-14 | D222: KEC$ | E222: Accu | F222: 277.50 | H222: 333 | I222: 333.00 | J222: Profit of Rs.55.50/- | K222: =H222-F222 -> 55.50 | L222: =K222/F222 -> 20.00% | M222: Successful | N222: 2020-01-16 | R222: K
A223: 148 | B223: 2019-10-14 | D223: MGL$ | E223: Accu | F223: 930.00 | H223: 1165 | I223: 1200.00 | J223: Profit of Rs.235/- | K223: =H223-F223 -> 235.00 | L223: =K223/F223 -> 25.27% | M223: Successful | N223: 2020-01-17 | R223: K
A224: 149 | B224: 2019-10-15 | D224: JKPAPER$ | E224: Accu | F224: 113-117 | I224: 141.00 | M224: Open | R224: V
A225: 150 | B225: 2019-10-15 | D225: RADICO$ | E225: Accu | F225: 296.00 | H225: 370 | I225: 370.00 | J225: Target Achieved | K225: =H225-F225 -> 74.00 | L225: =K225/F225 -> 25.00% | M225: Successful | N225: 2020-01-23 | R225: K
A226: 151 | B226: 2019-10-16 | D226: MOLDTKPAC$ | E226: Accu | F226: 298-302 | I226: 344.00 | M226: Open | R226: V
A227: 152 | B227: 2020-01-02 | D227: PSPPROJECT | E227: Accu | F227: 490-500 | I227: 590.00 | M227: Open | R227: K
B229: Re-initiated $

Sheet Sheet2 (hidden)
A1: SYMBOL | B1: SERIES | C1: OPEN | D1: HIGH | E1: LOW | F1: CLOSE | G1: LAST | H1: PREVCLOSE | I1: TOTTRDQTY | J1: TOTTRDVAL | K1: TIMESTAMP | L1: TOTALTRADES | M1: ISIN | N1: ISIN
A2: 20MICRONS | B2: EQ | C2: 35.6 | D2: 36 | E2: 34.1 | F2: 34.7 | G2: 35 | H2: 35.15 | I2: 22212 | J2: 780015 | K2: 2020-01-30 | L2: 371 | M2: INE144J01027
A3: 21STCENMGM | B3: EQ | C3: 14.55 | D3: 14.55 | E3: 14.55 | F3: 14.55 | G3: 14.55 | H3: 14.8 | I3: 11 | J3: 160.05 | K3: 2020-01-30 | L3: 2 | M3: INE253B01015
A4: 3IINFOTECH | B4: EQ | C4: 2.25 | D4: 2.35 | E4: 2.25 | F4: 2.25 | G4: 2.3 | H4: 2.25 | I4: 826435 | J4: 1887283.45 | K4: 2020-01-30 | L4: 683 | M4: INE748C01020
A5: 3MINDIA | B5: EQ | C5: 22350 | D5: 22498.85 | E5: 22100 | F5: 22132.3 | G5: 22105 | H5: 22185.85 | I5: 736 | J5: 16405934.1 | K5: 2020-01-30 | L5: 453 | M5: INE470A01017
A6: 3PLAND | B6: EQ | C6: 7.3 | D6: 7.3 | E6: 7.3 | F6: 7.3 | G6: 7.3 | H6: 7.05 | I6: 13 | J6: 94.9 | K6: 2020-01-30 | L6: 2 | M6: INE105C01023
A7: 5PAISA | B7: EQ | C7: 193.55 | D7: 193.55 | E7: 185.25 | F7: 190.9 | G7: 192.25 | H7: 191.4 | I7: 5795 | J7: 1102262.75 | K7: 2020-01-30 | L7: 251 | M7: INE618L01018
A8: 63MOONS | B8: EQ | C8: 108 | D8: 108 | E8: 103.85 | F8: 105.15 | G8: 104.8 | H8: 107.45 | I8: 90263 | J8: 9546168.45 | K8: 2020-01-30 | L8: 2060 | M8: INE111B01023
A9: A2ZINFRA | B9: EQ | C9: 7.15 | D9: 7.15 | E9: 6.9 | F9: 6.95 | G9: 6.95 | H9: 7.1 | I9: 150373 | J9: 1046905.95 | K9: 2020-01-30 | L9: 298 | M9: INE619I01012
A10: AARTIDRUGS | B10: EQ | C10: 633.65 | D10: 633.65 | E10: 615 | F10: 619.4 | G10: 617 | H10: 628.7 | I10: 15764 | J10: 9832338.05 | K10: 2020-01-30 | L10: 1098 | M10: INE767A01016
A11: AARTIIND | B11: EQ | C11: 995.35 | D11: 996 | E11: 945 | F11: 975.9 | G11: 983.9 | H11: 989.15 | I11: 493352 | J11: 477893622.7 | K11: 2020-01-30 | L11: 24221 | M11: INE769A01020
A12: AARVEEDEN | B12: EQ | C12: 13.7 | D12: 14 | E12: 13.6 | F12: 13.85 | G12: 14 | H12: 13.95 | I12: 1761 | J12: 24158.45 | K12: 2020-01-30 | L12: 28 | M12: INE273D01019
A13: AAVAS | B13: EQ | C13: 1978.7 | D13: 1986 | E13: 1930 | F13: 1955.85 | G13: 1958 | H13: 1978.7 | I13: 21831 | J13: 42546905.85 | K13: 2020-01-30 | L13: 3875 | M13: INE216P01012
A14: ABAN | B14: EQ | C14: 25.75 | D14: 26.4 | E14: 25.5 | F14: 25.95 | G14: 25.9 | H14: 25.75 | I14: 37423 | J14: 964957.15 | K14: 2020-01-30 | L14: 355 | M14: INE421A01028
A15: ABB | B15: EQ | C15: 1323 | D15: 1346.85 | E15: 1323 | F15: 1331.75 | G15: 1332 | H15: 1342.25 | I15: 22645 | J15: 30138641.95 | K15: 2020-01-30 | L15: 2198 | M15: INE117A01022
A16: ABBOTINDIA | B16: EQ | C16: 12640.2 | D16: 12640.2 | E16: 12450 | F16: 12516.55 | G16: 12540 | H16: 12655.4 | I16: 6268 | J16: 78441078.45 | K16: 2020-01-30 | L16: 1749 | M16: INE358A01014
A17: ABCAPITAL | B17: EQ | C17: 102 | D17: 103.7 | E17: 99.5 | F17: 100.05 | G17: 99.95 | H17: 101.65 | I17: 2171452 | J17: 219297669.9 | K17: 2020-01-30 | L17: 20514 | M17: INE674K01013
A18: ABFRL | B18: EQ | C18: 228.1 | D18: 231.6 | E18: 226.2 | F18: 229.65 | G18: 229.6 | H18: 228.1 | I18: 190362 | J18: 43684176.5 | K18: 2020-01-30 | L18: 6811 | M18: INE647O01011
A19: ABSLBANETF | B19: EQ | C19: 306.82 | D19: 306.82 | E19: 306.82 | F19: 306.82 | G19: 306.82 | H19: 308 | I19: 1 | J19: 306.82 | K19: 2020-01-30 | L19: 1 | M19: INF209KB1O58
A20: ABSLNN50ET | B20: EQ | C20: 289.7 | D20: 289.7 | E20: 287.33 | F20: 288.94 | G20: 288.94 | H20: 292 | I20: 3 | J20: 865.97 | K20: 2020-01-30 | L20: 3 | M20: INF209KB1B87
A21: ACC | B21: EQ | C21: 1552.75 | D21: 1556.4 | E21: 1525.35 | F21: 1531.5 | G21: 1535.1 | H21: 1551.7 | I21: 415388 | J21: 638445632.5 | K21: 2020-01-30 | L21: 14339 | M21: INE012A01025
A22: ACCELYA | B22: EQ | C22: 1051 | D22: 1090 | E22: 1045.05 | F22: 1057.5 | G22: 1054.2 | H22: 1086.15 | I22: 11718 | J22: 12576447.65 | K22: 2020-01-30 | L22: 1119 | M22: INE793A01012
A23: ACE | B23: EQ | C23: 88.2 | D23: 88.85 | E23: 86.55 | F23: 87.25 | G23: 87.2 | H23: 88.2 | I23: 66249 | J23: 5805062.2 | K23: 2020-01-30 | L23: 1055 | M23: INE731H01025
A24: ADANIENT | B24: EQ | C24: 232.3 | D24: 232.75 | E24: 228.2 | F24: 231.5 | G24: 229.6 | H24: 232.3 | I24: 2192123 | J24: 505417129.4 | K24: 2020-01-30 | L24: 12795 | M24: INE423A01024
A25: ADANIGAS | B25: EQ | C25: 170.4 | D25: 171.15 | E25: 165.55 | F25: 166.75 | G25: 165.95 | H25: 169.9 | I25: 652688 | J25: 109445664.2 | K25: 2020-01-30 | L25: 8448 | M25: INE399L01023
A26: ADANIGREEN | B26: EQ | C26: 186.9 | D26: 187.9 | E26: 177.65 | F26: 180.45 | G26: 180.6 | H26: 186.3 | I26: 1024133 | J26: 185060197.5 | K26: 2020-01-30 | L26: 13500 | M26: INE364U01010
A27: ADANIPORTS | B27: EQ | C27: 381 | D27: 383.7 | E27: 376.85 | F27: 378 | G27: 378 | H27: 383.35 | I27: 1526892 | J27: 579885594.7 | K27: 2020-01-30 | L27: 21621 | M27: INE742F01042
A28: ADANIPOWER | B28: EQ | C28: 64.15 | D28: 64.15 | E28: 62.2 | F28: 62.7 | G28: 62.45 | H28: 64.05 | I28: 4508995 | J28: 284311459.6 | K28: 2020-01-30 | L28: 9981 | M28: INE814H01011
A29: ADANITRANS | B29: EQ | C29: 326.45 | D29: 326.45 | E29: 316.6 | F29: 320.8 | G29: 321.6 | H29: 323.9 | I29: 65326 | J29: 20956921.15 | K29: 2020-01-30 | L29: 2696 | M29: INE931S01010
A30: ADFFOODS | B30: EQ | C30: 298.5 | D30: 298.5 | E30: 290.5 | F30: 292.3 | G30: 291.9 | H30: 296.9 | I30: 13678 | J30: 4005059.6 | K30: 2020-01-30 | L30: 358 | M30: INE982B01019
A31: ADHUNIKIND | B31: EQ | C31: 39.8 | D31: 39.95 | E31: 38.15 | F31: 39 | G31: 39 | H31: 39.7 | I31: 51512 | J31: 2009067.05 | K31: 2020-01-30 | L31: 63 | M31: INE452L01012
A32: ADORWELD | B32: EQ | C32: 326 | D32: 328.9 | E32: 318.2 | F32: 320.1 | G32: 321.9 | H32: 326 | I32: 1832 | J32: 589114.3 | K32: 2020-01-30 | L32: 210 | M32: INE045A01017
A33: ADVANIHOTR | B33: EQ | C33: 59.8 | D33: 59.8 | E33: 54.65 | F33: 57.35 | G33: 56.15 | H33: 57.25 | I33: 17974 | J33: 1029453.55 | K33: 2020-01-30 | L33: 338 | M33: INE199C01026
A34: ADVENZYMES | B34: EQ | C34: 173.8 | D34: 174.7 | E34: 168.1 | F34: 170.05 | G34: 169.5 | H34: 173.5 | I34: 47960 | J34: 8183654.2 | K34: 2020-01-30 | L34: 1562 | M34: INE837H01020
A35: AEGISCHEM | B35: EQ | C35: 209 | D35: 209 | E35: 204.75 | F35: 205.7 | G35: 205.1 | H35: 209 | I35: 123040 | J35: 25369383.2 | K35: 2020-01-30 | L35: 5633 | M35: INE208C01025
A36: AFFLE | B36: EQ | C36: 1702 | D36: 1720 | E36: 1635 | F36: 1695.9 | G36: 1678 | H36: 1692.1 | I36: 230312 | J36: 388197657.4 | K36: 2020-01-30 | L36: 14454 | M36: INE00WC01019
A37: AGARIND | B37: EQ | C37: 85.1 | D37: 86.8 | E37: 80.5 | F37: 85.6 | G37: 85.8 | H37: 85.45 | I37: 12302 | J37: 1036728.15 | K37: 2020-01-30 | L37: 591 | M37: INE204E01012
A38: AGCNET | B38: EQ | C38: 230 | D38: 232.7 | E38: 218.25 | F38: 232.7 | G38: 232.7 | H38: 221.65 | I38: 26610 | J38: 6147697.55 | K38: 2020-01-30 | L38: 678 | M38: INE676A01019
A39: AGRITECH | B39: EQ | C39: 46.95 | D39: 46.95 | E39: 45.1 | F39: 45.15 | G39: 45.1 | H39: 46 | I39: 6678 | J39: 306221.05 | K39: 2020-01-30 | L39: 131 | M39: INE449G01018
A40: AGROPHOS | B40: EQ | C40: 24.85 | D40: 24.85 | E40: 24.85 | F40: 24.85 | G40: 24.85 | H40: 26.15 | I40: 1454 | J40: 36131.9 | K40: 2020-01-30 | L40: 57 | M40: INE740V01019
A41: AHLEAST | B41: EQ | C41: 180 | D41: 183.75 | E41: 176.5 | F41: 182.05 | G41: 180.3 | H41: 180.1 | I41: 954 | J41: 171836.45 | K41: 2020-01-30 | L41: 112 | M41: INE926K01017
A42: AHLUCONT | B42: EQ | C42: 315 | D42: 323 | E42: 313.4 | F42: 319.95 | G42: 320 | H42: 315.05 | I42: 7016 | J42: 2243518.4 | K42: 2020-01-30 | L42: 376 | M42: INE758C01029
A43: AHLWEST | B43: EQ | C43: 340 | D43: 365 | E43: 335.1 | F43: 340.05 | G43: 337.05 | H43: 349.95 | I43: 3152 | J43: 1088339.2 | K43: 2020-01-30 | L43: 350 | M43: INE915K01010
A44: AIAENG | B44: EQ | C44: 1814 | D44: 1817.7 | E44: 1758 | F44: 1800.15 | G44: 1803 | H44: 1808.6 | I44: 19008 | J44: 34017335.45 | K44: 2020-01-30 | L44: 2193 | M44: INE212H01026
A45: AIONJSW | B45: EQ | C45: 14.3 | D45: 14.8 | E45: 14.05 | F45: 14.1 | G45: 14.45 | H45: 14.65 | I45: 80998 | J45: 1158491.5 | K45: 2020-01-30 | L45: 180 | M45: INE743C01021
A46: AIRAN | B46: EQ | C46: 13.4 | D46: 14 | E46: 13.4 | F46: 13.4 | G46: 13.4 | H46: 14.1 | I46: 18564 | J46: 250645.95 | K46: 2020-01-30 | L46: 150 | M46: INE645W01026
A47: AJANTPHARM | B47: EQ | C47: 1149.75 | D47: 1168.65 | E47: 1106.95 | F47: 1119.8 | G47: 1108.65 | H47: 1149.75 | I47: 65548 | J47: 74767847.4 | K47: 2020-01-30 | L47: 6327 | M47: INE031B01049
A48: AJMERA | B48: EQ | C48: 148.8 | D48: 149.8 | E48: 143.45 | F48: 144.2 | G48: 143.8 | H48: 147.9 | I48: 19363 | J48: 2822359.6 | K48: 2020-01-30 | L48: 1247 | M48: INE298G01027
A49: AKSHARCHEM | B49: EQ | C49: 254.4 | D49: 271 | E49: 240 | F49: 242.55 | G49: 242.1 | H49: 250.65 | I49: 4386 | J49: 1089828.35 | K49: 2020-01-30 | L49: 373 | M49: INE542B01011
A50: AKSHOPTFBR | B50: EQ | C50: 7.9 | D50: 8.2 | E50: 7.75 | F50: 8 | G50: 8.1 | H50: 7.85 | I50: 233397 | J50: 1872696.25 | K50: 2020-01-30 | L50: 436 | M50: INE523B01011
A51: AKZOINDIA | B51: EQ | C51: 2093.35 | D51: 2134.6 | E51: 2055 | F51: 2080.45 | G51: 2064.9 | H51: 2082.95 | I51: 114785 | J51: 242449906.3 | K51: 2020-01-30 | L51: 2448 | M51: INE133A01011
A52: ALANKIT | B52: EQ | C52: 14.55 | D52: 14.85 | E52: 13.85 | F52: 14.7 | G52: 14.85 | H52: 14.45 | I52: 142420 | J52: 2067969.6 | K52: 2020-01-30 | L52: 268 | M52: INE914E01040
A53: ALBERTDAVD | B53: EQ | C53: 516.75 | D53: 520 | E53: 491.35 | F53: 497 | G53: 494.2 | H53: 521.95 | I53: 11408 | J53: 5720007.75 | K53: 2020-01-30 | L53: 648 | M53: INE155C01010
A54: ALBK | B54: EQ | C54: 18.45 | D54: 18.55 | E54: 17.95 | F54: 18.05 | G54: 18.05 | H54: 18.45 | I54: 678572 | J54: 12336936.3 | K54: 2020-01-30 | L54: 2668 | M54: INE428A01015
A55: ALEMBICLTD | B55: EQ | C55: 63.45 | D55: 64.9 | E55: 61.7 | F55: 62.45 | G55: 62.3 | H55: 62.8 | I55: 868421 | J55: 54960709.1 | K55: 2020-01-30 | L55: 8513 | M55: INE426A01027
A56: ALICON | B56: EQ | C56: 410 | D56: 410 | E56: 378.25 | F56: 384.85 | G56: 399.75 | H56: 406.65 | I56: 5687 | J56: 2211520.6 | K56: 2020-01-30 | L56: 327 | M56: INE062D01024
A57: ALKALI | B57: EQ | C57: 55.95 | D57: 57 | E57: 51.75 | F57: 52.55 | G57: 52.55 | H57: 54.1 | I57: 248022 | J57: 13449431.9 | K57: 2020-01-30 | L57: 2992 | M57: INE773I01017
A58: ALKEM | B58: EQ | C58: 2314.25 | D58: 2314.25 | E58: 2277 | F58: 2295.85 | G58: 2289 | H58: 2299.9 | I58: 32387 | J58: 74498461.2 | K58: 2020-01-30 | L58: 4988 | M58: INE540L01014
A59: ALKYLAMINE | B59: EQ | C59: 1341.8 | D59: 1344 | E59: 1305.1 | F59: 1325.75 | G59: 1312.6 | H59: 1338.15 | I59: 29046 | J59: 38404144.2 | K59: 2020-01-30 | L59: 1632 | M59: INE150B01021
A60: ALLCARGO | B60: EQ | C60: 117.3 | D60: 117.4 | E60: 112.5 | F60: 113.2 | G60: 112.5 | H60: 117.1 | I60: 177922 | J60: 20352188.65 | K60: 2020-01-30 | L60: 2822 | M60: INE418H01029
A61: ALLSEC | B61: EQ | C61: 282.05 | D61: 289.7 | E61: 281.1 | F61: 283.95 | G61: 283.5 | H61: 286.45 | I61: 3165 | J61: 900783.4 | K61: 2020-01-30 | L61: 330 | M61: INE835G01018
A62: ALMONDZ | B62: EQ | C62: 16.75 | D62: 16.95 | E62: 15.7 | F62: 16.35 | G62: 15.75 | H62: 16.5 | I62: 15255 | J62: 246073.05 | K62: 2020-01-30 | L62: 369 | M62: INE326B01027
A63: ALPA | B63: EQ | C63: 21.7 | D63: 21.7 | E63: 19.55 | F63: 19.8 | G63: 19.7 | H63: 20.7 | I63: 40412 | J63: 815205.35 | K63: 2020-01-30 | L63: 228 | M63: INE385I01010
A64: ALPHAGEO | B64: EQ | C64: 202.8 | D64: 213 | E64: 196 | F64: 199.25 | G64: 196.5 | H64: 202.6 | I64: 5971 | J64: 1206783.4 | K64: 2020-01-30 | L64: 349 | M64: INE137C01018
A65: AMARAJABAT | B65: EQ | C65: 796.95 | D65: 799.75 | E65: 775 | F65: 783.45 | G65: 784.85 | H65: 795.75 | I65: 402395 | J65: 316540261.6 | K65: 2020-01-30 | L65: 12907 | M65: INE885A01032
A66: AMBER | B66: EQ | C66: 1546.6 | D66: 1546.6 | E66: 1477.2 | F66: 1497.85 | G66: 1501 | H66: 1535.5 | I66: 99456 | J66: 149152136.6 | K66: 2020-01-30 | L66: 10578 | M66: INE371P01015
A67: AMBIKCO | B67: EQ | C67: 831.55 | D67: 850.15 | E67: 831.5 | F67: 843.55 | G67: 840.25 | H67: 838.5 | I67: 2947 | J67: 2484640.6 | K67: 2020-01-30 | L67: 308 | M67: INE540G01014
A68: AMBUJACEM | B68: EQ | C68: 214.15 | D68: 214.2 | E68: 208.7 | F68: 209.9 | G68: 209.75 | H68: 214.05 | I68: 2971434 | J68: 627336082.8 | K68: 2020-01-30 | L68: 21919 | M68: INE079A01024
A69: AMDIND | B69: EQ | C69: 18.5 | D69: 18.5 | E69: 16.65 | F69: 17.4 | G69: 17.4 | H69: 17.75 | I69: 3204 | J69: 55689.65 | K69: 2020-01-30 | L69: 78 | M69: INE005I01014
A70: AMJLAND | B70: EQ | C70: 20.5 | D70: 23.9 | E70: 20 | F70: 23.1 | G70: 23.45 | H70: 21.4 | I70: 34295 | J70: 771753.4 | K70: 2020-01-30 | L70: 299 | M70: INE606A01024
A71: AMRUTANJAN | B71: EQ | C71: 466 | D71: 466.9 | E71: 448.95 | F71: 460.4 | G71: 456.5 | H71: 461.5 | I71: 33096 | J71: 15097615.6 | K71: 2020-01-30 | L71: 2426 | M71: INE098F01031
A72: ANANTRAJ | B72: EQ | C72: 35.15 | D72: 36.15 | E72: 34.8 | F72: 35.45 | G72: 35.8 | H72: 35.2 | I72: 201228 | J72: 7069758.85 | K72: 2020-01-30 | L72: 1108 | M72: INE242C01024
A73: ANDHRABANK | B73: EQ | C73: 16.9 | D73: 16.9 | E73: 16.6 | F73: 16.7 | G73: 16.75 | H73: 16.8 | I73: 334265 | J73: 5599994.45 | K73: 2020-01-30 | L73: 1958 | M73: INE434A01013
A74: ANDHRACEMT | B74: EQ | C74: 2.35 | D74: 2.35 | E74: 2.25 | F74: 2.25 | G74: 2.25 | H74: 2.35 | I74: 54558 | J74: 123351.65 | K74: 2020-01-30 | L74: 84 | M74: INE666E01012
A75: ANDHRSUGAR | B75: EQ | C75: 334.95 | D75: 336 | E75: 324.05 | F75: 325.2 | G75: 325 | H75: 334.75 | I75: 24092 | J75: 7877335.3 | K75: 2020-01-30 | L75: 873 | M75: INE715B01013
A76: ANDPAPER | B76: EQ | C76: 305 | D76: 307.8 | E76: 286 | F76: 292.35 | G76: 291 | H76: 303.85 | I76: 6239 | J76: 1824803.3 | K76: 2020-01-30 | L76: 302 | M76: INE435A01028
A77: ANSALAPI | B77: EQ | C77: 5.05 | D77: 5.25 | E77: 5.05 | F77: 5.25 | G77: 5.25 | H77: 5.15 | I77: 18076 | J77: 94105.05 | K77: 2020-01-30 | L77: 50 | M77: INE436A01026
A78: ANUP | B78: EQ | C78: 620 | D78: 628 | E78: 610 | F78: 616.15 | G78: 620.2 | H78: 622.85 | I78: 18918 | J78: 11694685.35 | K78: 2020-01-30 | L78: 1273 | M78: INE294Z01018
A79: APARINDS | B79: EQ | C79: 396.5 | D79: 401 | E79: 390.05 | F79: 392.05 | G79: 392.5 | H79: 398.45 | I79: 28690 | J79: 11293457.45 | K79: 2020-01-30 | L79: 815 | M79: INE372A01015
A80: APCL | B80: EQ | C80: 158.65 | D80: 162.9 | E80: 152.6 | F80: 155.3 | G80: 156.7 | H80: 160.2 | I80: 6877 | J80: 1071492.2 | K80: 2020-01-30 | L80: 241 | M80: INE071F01012
A81: APCOTEXIND | B81: EQ | C81: 161.75 | D81: 161.85 | E81: 155.1 | F81: 156.85 | G81: 157.6 | H81: 161.8 | I81: 37377 | J81: 5904419.05 | K81: 2020-01-30 | L81: 1111 | M81: INE116A01032
A82: APEX | B82: EQ | C82: 365.1 | D82: 367 | E82: 331.35 | F82: 336 | G82: 336.5 | H82: 364.3 | I82: 409358 | J82: 140982359.2 | K82: 2020-01-30 | L82: 10576 | M82: INE346W01013
A83: APLAPOLLO | B83: EQ | C83: 2075.6 | D83: 2075.6 | E83: 2000.1 | F83: 2013.35 | G83: 2011 | H83: 2058.25 | I83: 22420 | J83: 45447741.15 | K83: 2020-01-30 | L83: 5342 | M83: INE702C01019
A84: APLLTD | B84: EQ | C84: 637.5 | D84: 643.55 | E84: 622.2 | F84: 639.85 | G84: 636 | H84: 634.55 | I84: 282547 | J84: 179968196.1 | K84: 2020-01-30 | L84: 8677 | M84: INE901L01018
A85: APOLLO | B85: EQ | C85: 77.55 | D85: 78.75 | E85: 74.7 | F85: 75.55 | G85: 75.5 | H85: 78.25 | I85: 26153 | J85: 1986060.2 | K85: 2020-01-30 | L85: 502 | M85: INE713T01010
A86: APOLLOHOSP | B86: EQ | C86: 1685 | D86: 1709.75 | E86: 1680.25 | F86: 1690.8 | G86: 1696 | H86: 1688 | I86: 634505 | J86: 1077893571 | K86: 2020-01-30 | L86: 32036 | M86: INE437A01024
A87: APOLLOPIPE | B87: EQ | C87: 406 | D87: 410 | E87: 390.55 | F87: 402.05 | G87: 404 | H87: 406 | I87: 17906 | J87: 7191900.85 | K87: 2020-01-30 | L87: 1481 | M87: INE126J01016
A88: APOLLOTYRE | B88: EQ | C88: 175 | D88: 175.5 | E88: 170.1 | F88: 171.45 | G88: 170.9 | H88: 174.2 | I88: 1195534 | J88: 205221808.6 | K88: 2020-01-30 | L88: 27461 | M88: INE438A01022
A89: APOLSINHOT | B89: EQ | C89: 765 | D89: 765 | E89: 743.15 | F89: 743.15 | G89: 743.15 | H89: 757.15 | I89: 1006 | J89: 751698.35 | K89: 2020-01-30 | L89: 276 | M89: INE451F01024
A90: APTECHT | B90: EQ | C90: 169.95 | D90: 174.45 | E90: 167 | F90: 168.9 | G90: 167.5 | H90: 180 | I90: 671278 | J90: 114533138.2 | K90: 2020-01-30 | L90: 10122 | M90: INE266F01018
A91: ARCHIDPLY | B91: EQ | C91: 30.3 | D91: 31.5 | E91: 30.1 | F91: 31.3 | G91: 31.5 | H91: 30.75 | I91: 9384 | J91: 291593.15 | K91: 2020-01-30 | L91: 181 | M91: INE877I01016
A92: ARCHIES | B92: EQ | C92: 17.5 | D92: 17.7 | E92: 17 | F92: 17.3 | G92: 17.25 | H92: 17.55 | I92: 46867 | J92: 808338.45 | K92: 2020-01-30 | L92: 154 | M92: INE731A01020
A93: ARENTERP | B93: EQ | C93: 9.9 | D93: 10.35 | E93: 9.9 | F93: 10.35 | G93: 10.35 | H93: 9.9 | I93: 1002 | J93: 10369.8 | K93: 2020-01-30 | L93: 3 | M93: INE610C01014
A94: ARIES | B94: EQ | C94: 74.25 | D94: 74.55 | E94: 72.1 | F94: 72.55 | G94: 72.45 | H94: 74.15 | I94: 12373 | J94: 900943.95 | K94: 2020-01-30 | L94: 374 | M94: INE298I01015
A95: ARIHANT | B95: EQ | C95: 23.3 | D95: 23.55 | E95: 22.4 | F95: 23.05 | G95: 23.05 | H95: 23.55 | I95: 1942 | J95: 44431.4 | K95: 2020-01-30 | L95: 35 | M95: INE413D01011
A96: ARIHANTSUP | B96: EQ | C96: 31 | D96: 31.95 | E96: 31 | F96: 31.25 | G96: 31.5 | H96: 31 | I96: 3517 | J96: 110481.85 | K96: 2020-01-30 | L96: 36 | M96: INE643K01018
A97: ARMANFIN | B97: EQ | C97: 758.6 | D97: 758.6 | E97: 711 | F97: 727.9 | G97: 726 | H97: 742.9 | I97: 8911 | J97: 6484733.35 | K97: 2020-01-30 | L97: 595 | M97: INE109C01017
A98: AROGRANITE | B98: EQ | C98: 36 | D98: 37.95 | E98: 35.8 | F98: 36.4 | G98: 36.4 | H98: 36.65 | I98: 2091 | J98: 76611.15 | K98: 2020-01-30 | L98: 41 | M98: INE210C01013
A99: ARROWGREEN | B99: EQ | C99: 51.25 | D99: 51.25 | E99: 49.15 | F99: 49.85 | G99: 50 | H99: 50.5 | I99: 729 | J99: 36555.95 | K99: 2020-01-30 | L99: 38 | M99: INE570D01018
A100: ARSHIYA | B100: EQ | C100: 17 | D100: 17.5 | E100: 17 | F100: 17 | G100: 17 | H100: 17.4 | I100: 9000 | J100: 153746.45 | K100: 2020-01-30 | L100: 76 | M100: INE968D01022
A101: ARSSINFRA | B101: EQ | C101: 20.4 | D101: 20.45 | E101: 19.6 | F101: 20 | G101: 20 | H101: 20.7 | I101: 13673 | J101: 273374.9 | K101: 2020-01-30 | L101: 75 | M101: INE267I01010
A102: ARVIND | B102: EQ | C102: 42.95 | D102: 43.5 | E102: 42.05 | F102: 42.6 | G102: 42.05 | H102: 42.95 | I102: 1401190 | J102: 59723354.45 | K102: 2020-01-30 | L102: 5468 | M102: INE034A01011
A103: ARVINDFASN | B103: EQ | C103: 390 | D103: 396.45 | E103: 385 | F103: 388.7 | G103: 387.25 | H103: 393.2 | I103: 15288 | J103: 5934518.1 | K103: 2020-01-30 | L103: 1405 | M103: INE955V01021
A104: ARVSMART | B104: EQ | C104: 93.75 | D104: 105 | E104: 89.95 | F104: 95.95 | G104: 96.5 | H104: 92.55 | I104: 367662 | J104: 37143415.5 | K104: 2020-01-30 | L104: 8721 | M104: INE034S01021
A105: ASAHIINDIA | B105: EQ | C105: 244.15 | D105: 249 | E105: 243.35 | F105: 247.75 | G105: 246.5 | H105: 246.85 | I105: 77573 | J105: 19200399.15 | K105: 2020-01-30 | L105: 389 | M105: INE439A01020
A106: ASAHISONG | B106: EQ | C106: 156 | D106: 156 | E106: 137.1 | F106: 139.75 | G106: 142 | H106: 154 | I106: 35622 | J106: 5082365.5 | K106: 2020-01-30 | L106: 1213 | M106: INE228I01012
A107: ASAL | B107: EQ | C107: 32.5 | D107: 33.2 | E107: 32.1 | F107: 32.35 | G107: 32.2 | H107: 32.65 | I107: 2427 | J107: 78599.85 | K107: 2020-01-30 | L107: 90 | M107: INE900C01027
A108: ASHAPURMIN | B108: EQ | C108: 33.75 | D108: 34.9 | E108: 33.55 | F108: 34.15 | G108: 34 | H108: 34.05 | I108: 37924 | J108: 1292415.6 | K108: 2020-01-30 | L108: 462 | M108: INE348A01023
A109: ASHIANA | B109: EQ | C109: 114 | D109: 114 | E109: 111.2 | F109: 111.4 | G109: 111.4 | H109: 114.7 | I109: 37343 | J109: 4185524.2 | K109: 2020-01-30 | L109: 373 | M109: INE365D01021
A110: ASHIMASYN | B110: EQ | C110: 7.9 | D110: 7.9 | E110: 7.6 | F110: 7.7 | G110: 7.7 | H110: 7.9 | I110: 4152 | J110: 32140.5 | K110: 2020-01-30 | L110: 34 | M110: INE440A01010
A111: ASHOKA | B111: EQ | C111: 115.4 | D111: 116.75 | E111: 114 | F111: 114.5 | G111: 114.2 | H111: 114.95 | I111: 832030 | J111: 95702713.85 | K111: 2020-01-30 | L111: 5250 | M111: INE442H01029
A112: ASHOKLEY | B112: EQ | C112: 84.55 | D112: 84.95 | E112: 82.25 | F112: 83.4 | G112: 83.25 | H112: 84.6 | I112: 12926430 | J112: 1080587034 | K112: 2020-01-30 | L112: 39983 | M112: INE208A01029
A113: ASIANHOTNR | B113: EQ | C113: 86 | D113: 90.9 | E113: 85 | F113: 90.35 | G113: 90 | H113: 86.45 | I113: 2693 | J113: 239651.5 | K113: 2020-01-30 | L113: 162 | M113: INE363A01022
A114: ASIANPAINT | B114: EQ | C114: 1800 | D114: 1808.9 | E114: 1786 | F114: 1805 | G114: 1795.55 | H114: 1796.95 | I114: 1005975 | J114: 1806986276 | K114: 2020-01-30 | L114: 56855 | M114: INE021A01026
A115: ASIANTILES | B115: EQ | C115: 210.2 | D115: 218.85 | E115: 206.1 | F115: 214.7 | G115: 213 | H115: 211.4 | I115: 18887 | J115: 4048669.1 | K115: 2020-01-30 | L115: 1710 | M115: INE022I01019
A116: ASPINWALL | B116: EQ | C116: 152 | D116: 157.95 | E116: 150.5 | F116: 154.9 | G116: 154.9 | H116: 155.2 | I116: 718 | J116: 111231.45 | K116: 2020-01-30 | L116: 35 | M116: INE991I01015
A117: ASTEC | B117: EQ | C117: 495 | D117: 495 | E117: 477.15 | F117: 480.55 | G117: 481.25 | H117: 492.7 | I117: 6219 | J117: 3017130.35 | K117: 2020-01-30 | L117: 443 | M117: INE563J01010
A118: ASTERDM | B118: EQ | C118: 166.5 | D118: 169 | E118: 165 | F118: 167.5 | G118: 167.5 | H118: 165 | I118: 82622 | J118: 13823516.05 | K118: 2020-01-30 | L118: 1908 | M118: INE914M01019
A119: ASTRAL | B119: EQ | C119: 1196.3 | D119: 1206 | E119: 1186 | F119: 1202.9 | G119: 1197.2 | H119: 1187.85 | I119: 79324 | J119: 95067403.9 | K119: 2020-01-30 | L119: 7595 | M119: INE006I01046
A120: ASTRAMICRO | B120: EQ | C120: 100.2 | D120: 100.9 | E120: 93.65 | F120: 95.9 | G120: 95.6 | H120: 99.65 | I120: 765660 | J120: 74768796.75 | K120: 2020-01-30 | L120: 9192 | M120: INE386C01029
A121: ASTRAZEN | B121: EQ | C121: 2735 | D121: 2761.2 | E121: 2704 | F121: 2730.95 | G121: 2722 | H121: 2702.3 | I121: 24794 | J121: 67822262.6 | K121: 2020-01-30 | L121: 3422 | M121: INE203A01020
A122: ASTRON | B122: EQ | C122: 39.1 | D122: 39.45 | E122: 38.45 | F122: 38.95 | G122: 39.35 | H122: 38.95 | I122: 42462 | J122: 1641785.65 | K122: 2020-01-30 | L122: 250 | M122: INE646X01014
A123: ATFL | B123: EQ | C123: 724.95 | D123: 724.95 | E123: 691 | F123: 692.6 | G123: 692.1 | H123: 712.8 | I123: 25043 | J123: 17726539.85 | K123: 2020-01-30 | L123: 549 | M123: INE209A01019
A124: ATLANTA | B124: EQ | C124: 6.15 | D124: 6.2 | E124: 5.85 | F124: 5.85 | G124: 5.85 | H124: 6.15 | I124: 24782 | J124: 145792.95 | K124: 2020-01-30 | L124: 123 | M124: INE285H01022
A125: ATUL | B125: EQ | C125: 4998.4 | D125: 4998.4 | E125: 4920 | F125: 4940 | G125: 4930 | H125: 4915.7 | I125: 25714 | J125: 127055096.5 | K125: 2020-01-30 | L125: 2552 | M125: INE100A01010
A126: ATULAUTO | B126: EQ | C126: 257 | D126: 264 | E126: 255.15 | F126: 258.05 | G126: 257.1 | H126: 258 | I126: 30277 | J126: 7860142.9 | K126: 2020-01-30 | L126: 1778 | M126: INE951D01028
A127: AUBANK | B127: EQ | C127: 1047.95 | D127: 1076.85 | E127: 1024 | F127: 1047.65 | G127: 1049 | H127: 1046.65 | I127: 602135 | J127: 632075743.5 | K127: 2020-01-30 | L127: 27951 | M127: INE949L01017
A128: AURIONPRO | B128: EQ | C128: 58.3 | D128: 59.8 | E128: 57.95 | F128: 58.1 | G128: 58.1 | H128: 58.3 | I128: 2130 | J128: 123964.8 | K128: 2020-01-30 | L128: 89 | M128: INE132H01018
A129: AUROPHARMA | B129: EQ | C129: 508.1 | D129: 509.65 | E129: 465.85 | F129: 480.25 | G129: 478 | H129: 507.35 | I129: 12708850 | J129: 6091742143 | K129: 2020-01-30 | L129: 151640 | M129: INE406A01037
A130: AUTOAXLES | B130: EQ | C130: 850.05 | D130: 890 | E130: 850 | F130: 855.05 | G130: 855 | H130: 874.85 | I130: 14046 | J130: 12054138.05 | K130: 2020-01-30 | L130: 2637 | M130: INE449A01011
A131: AUTOLITIND | B131: EQ | C131: 24.3 | D131: 26 | E131: 23.25 | F131: 24.9 | G131: 24.4 | H131: 24.8 | I131: 9010 | J131: 227943.3 | K131: 2020-01-30 | L131: 257 | M131: INE448A01013
A132: AVADHSUGAR | B132: EQ | C132: 304 | D132: 305.05 | E132: 293.95 | F132: 296.5 | G132: 298 | H132: 306.8 | I132: 104026 | J132: 31070482.55 | K132: 2020-01-30 | L132: 3912 | M132: INE349W01017
A133: AVANTIFEED | B133: EQ | C133: 671 | D133: 673.45 | E133: 647.45 | F133: 658.75 | G133: 656 | H133: 670.05 | I133: 473648 | J133: 310895873.1 | K133: 2020-01-30 | L133: 16216 | M133: INE871C01038
A134: AVTNPL | B134: EQ | C134: 37 | D134: 37 | E134: 34.8 | F134: 35.65 | G134: 35.9 | H134: 36.75 | I134: 82616 | J134: 2923801.7 | K134: 2020-01-30 | L134: 982 | M134: INE488D01021
A135: AXISBANK | B135: EQ | C135: 735.75 | D135: 736.4 | E135: 727.3 | F135: 730.9 | G135: 730.9 | H135: 735.25 | I135: 6041343 | J135: 4416442666 | K135: 2020-01-30 | L135: 97869 | M135: INE238A01034
A136: AXISGOLD | B136: EQ | C136: 3536.05 | D136: 3573 | E136: 3536 | F136: 3568.55 | G136: 3573 | H136: 3531.9 | I136: 1144 | J136: 4072173.25 | K136: 2020-01-30 | L136: 103 | M136: INF846K01347
A137: AXISNIFTY | B137: EQ | C137: 1244.93 | D137: 1251.43 | E137: 1240 | F137: 1245.6 | G137: 1245.6 | H137: 1244.93 | I137: 124 | J137: 154631.21 | K137: 2020-01-30 | L137: 10 | M137: INF846K01ZL0
A138: AYMSYNTEX | B138: EQ | C138: 34.95 | D138: 35.4 | E138: 33.7 | F138: 35 | G138: 34.55 | H138: 34.05 | I138: 5700 | J138: 196893.2 | K138: 2020-01-30 | L138: 150 | M138: INE193B01039
A139: BAJAJ-AUTO | B139: EQ | C139: 3108.5 | D139: 3185 | E139: 3041.1 | F139: 3145.5 | G139: 3142 | H139: 3091.85 | I139: 2400831 | J139: 7510931523 | K139: 2020-01-30 | L139: 119163 | M139: INE917I01010
A140: BAJAJCON | B140: EQ | C140: 229 | D140: 230 | E140: 227 | F140: 227.5 | G140: 227.7 | H140: 227.8 | I140: 98282 | J140: 22420208.45 | K140: 2020-01-30 | L140: 3355 | M140: INE933K01021
A141: BAJAJELEC | B141: EQ | C141: 383.1 | D141: 383.7 | E141: 376 | F141: 378.95 | G141: 377.4 | H141: 383.1 | I141: 39576 | J141: 14999850 | K141: 2020-01-30 | L141: 2075 | M141: INE193E01025
A142: BAJAJFINSV | B142: EQ | C142: 9924 | D142: 9950 | E142: 9603.35 | F142: 9639.65 | G142: 9621.65 | H142: 9894.25 | I142: 412825 | J142: 4018470103 | K142: 2020-01-30 | L142: 48856 | M142: INE918I01018
A143: BAJAJHIND | B143: EQ | C143: 6.5 | D143: 6.5 | E143: 6.3 | F143: 6.4 | G143: 6.45 | H143: 6.45 | I143: 967662 | J143: 6185230.6 | K143: 2020-01-30 | L143: 896 | M143: INE306A01021
A144: BAJAJHLDNG | B144: EQ | C144: 3435 | D144: 3482.8 | E144: 3356.5 | F144: 3393.85 | G144: 3391.25 | H144: 3417.3 | I144: 48165 | J144: 164936754.9 | K144: 2020-01-30 | L144: 7330 | M144: INE118A01012
A145: BAJFINANCE | B145: EQ | C145: 4464 | D145: 4485 | E145: 4344.85 | F145: 4364.3 | G145: 4358 | H145: 4419 | I145: 3577774 | J145: 1.578557027e+10 | K145: 2020-01-30 | L145: 232582 | M145: INE296A01024
A146: BALAJITELE | B146: EQ | C146: 55.4 | D146: 56.3 | E146: 53.25 | F146: 55 | G146: 54.55 | H146: 55.25 | I146: 134577 | J146: 7370355.7 | K146: 2020-01-30 | L146: 688 | M146: INE794B01026
A147: BALAMINES | B147: EQ | C147: 472.15 | D147: 477.5 | E147: 431.2 | F147: 436.4 | G147: 433.05 | H147: 471.85 | I147: 105075 | J147: 46742793.25 | K147: 2020-01-30 | L147: 4525 | M147: INE050E01027
A148: BALAXI | B148: EQ | C148: 73.05 | D148: 80.35 | E148: 72.1 | F148: 80.35 | G148: 80.35 | H148: 73.05 | I148: 4914 | J148: 381988.1 | K148: 2020-01-30 | L148: 176 | M148: INE618N01014
A149: BALKRISIND | B149: EQ | C149: 1085 | D149: 1094.95 | E149: 1075 | F149: 1086.6 | G149: 1085.85 | H149: 1084.25 | I149: 433616 | J149: 470969537.6 | K149: 2020-01-30 | L149: 8231 | M149: INE787D01026
A150: BALMLAWRIE | B150: EQ | C150: 121.1 | D150: 122 | E150: 120.5 | F150: 120.9 | G150: 121 | H150: 121.35 | I150: 55731 | J150: 6765511.25 | K150: 2020-01-30 | L150: 1306 | M150: INE164A01016
A151: BALPHARMA | B151: EQ | C151: 48.9 | D151: 48.95 | E151: 46.2 | F151: 47.05 | G151: 47.4 | H151: 48.7 | I151: 7315 | J151: 345934.1 | K151: 2020-01-30 | L151: 160 | M151: INE083D01012
A152: BALRAMCHIN | B152: EQ | C152: 175 | D152: 175.25 | E152: 167.6 | F152: 170.45 | G152: 169.45 | H152: 174.5 | I152: 576228 | J152: 98392804.6 | K152: 2020-01-30 | L152: 5243 | M152: INE119A01028
A153: BANARBEADS | B153: EQ | C153: 35.8 | D153: 35.8 | E153: 32 | F153: 33.8 | G153: 34.8 | H153: 33.5 | I153: 1185 | J153: 38228.35 | K153: 2020-01-30 | L153: 168 | M153: INE655B01011
A154: BANARISUG | B154: EQ | C154: 1548 | D154: 1548 | E154: 1460 | F154: 1481.65 | G154: 1480 | H154: 1512.7 | I154: 435 | J154: 650327 | K154: 2020-01-30 | L154: 198 | M154: INE459A01010
A155: BANCOINDIA | B155: EQ | C155: 103 | D155: 104.3 | E155: 102 | F155: 102.8 | G155: 102.95 | H155: 103.1 | I155: 18268 | J155: 1877818.25 | K155: 2020-01-30 | L155: 715 | M155: INE213C01025
A156: BANDHANBNK | B156: EQ | C156: 451 | D156: 451.1 | E156: 435 | F156: 437.7 | G156: 436.8 | H156: 451.15 | I156: 1803225 | J156: 797909310.1 | K156: 2020-01-30 | L156: 63935 | M156: INE545U01014
A157: BANG | B157: EQ | C157: 22.35 | D157: 22.85 | E157: 21.4 | F157: 22.35 | G157: 22.45 | H157: 22.6 | I157: 3143 | J157: 69590.8 | K157: 2020-01-30 | L157: 27 | M157: INE863I01016
A158: BANKBARODA | B158: EQ | C158: 93.5 | D158: 93.55 | E158: 92 | F158: 93.1 | G158: 93 | H158: 93.7 | I158: 18403471 | J158: 1706524914 | K158: 2020-01-30 | L158: 36972 | M158: INE028A01039
A159: BANKBEES | B159: EQ | C159: 315.6 | D159: 315.6 | E159: 312 | F159: 312.71 | G159: 312.1 | H159: 315.53 | I159: 199110 | J159: 62302384.97 | K159: 2020-01-30 | L159: 4054 | M159: INF204KB15I9
A160: BANKINDIA | B160: EQ | C160: 67 | D160: 67 | E160: 65.8 | F160: 66.1 | G160: 65.85 | H160: 66.45 | I160: 728343 | J160: 48218096.05 | K160: 2020-01-30 | L160: 3875 | M160: INE084A01016
A161: BASF | B161: EQ | C161: 1003.95 | D161: 1010 | E161: 984.05 | F161: 989.1 | G161: 986.2 | H161: 1001.9 | I161: 15063 | J161: 14968942.2 | K161: 2020-01-30 | L161: 2609 | M161: INE373A01013
A162: BASML | B162: EQ | C162: 135 | D162: 137.05 | E162: 132.6 | F162: 132.8 | G162: 132.6 | H162: 138.05 | I162: 1290 | J162: 173561.4 | K162: 2020-01-30 | L162: 40 | M162: INE186H01014
A163: BATAINDIA | B163: EQ | C163: 1855 | D163: 1855 | E163: 1820 | F163: 1826.95 | G163: 1835 | H163: 1856.35 | I163: 349924 | J163: 641865994 | K163: 2020-01-30 | L163: 17986 | M163: INE176A01028
A164: BAYERCROP | B164: EQ | C164: 4168.9 | D164: 4168.9 | E164: 4120 | F164: 4131.6 | G164: 4130 | H164: 4122.2 | I164: 5243 | J164: 21703174.65 | K164: 2020-01-30 | L164: 1031 | M164: INE462A01022
A165: BBL | B165: EQ | C165: 862.3 | D165: 865.05 | E165: 842 | F165: 854.3 | G165: 857 | H165: 854.7 | I165: 6427 | J165: 5498080.9 | K165: 2020-01-30 | L165: 475 | M165: INE464A01028
A166: BBTC | B166: EQ | C166: 1191.95 | D166: 1196.7 | E166: 1140.15 | F166: 1149.5 | G166: 1145 | H166: 1188.75 | I166: 88218 | J166: 103058892 | K166: 2020-01-30 | L166: 5800 | M166: INE050A01025
A167: BDL | B167: EQ | C167: 302 | D167: 306.5 | E167: 294.6 | F167: 298.45 | G167: 298.5 | H167: 303.2 | I167: 60075 | J167: 18124307.55 | K167: 2020-01-30 | L167: 2508 | M167: INE171Z01018
A168: BEL | B168: EQ | C168: 101.25 | D168: 103.45 | E168: 100.3 | F168: 100.75 | G168: 100.65 | H168: 100.55 | I168: 11213059 | J168: 1143054179 | K168: 2020-01-30 | L168: 34617 | M168: INE263A01024
A169: BEML | B169: EQ | C169: 993.7 | D169: 993.7 | E169: 976.9 | F169: 982.05 | G169: 981.9 | H169: 988.75 | I169: 136679 | J169: 134499777.3 | K169: 2020-01-30 | L169: 4998 | M169: INE258A01016
A170: BEPL | B170: EQ | C170: 52.5 | D170: 52.85 | E170: 50.5 | F170: 50.65 | G170: 50.5 | H170: 52.5 | I170: 289370 | J170: 14803066.75 | K170: 2020-01-30 | L170: 5078 | M170: INE922A01025
A171: BERGEPAINT | B171: EQ | C171: 576 | D171: 579.9 | E171: 563.65 | F171: 569.95 | G171: 568 | H171: 572.95 | I171: 1779645 | J171: 1017701806 | K171: 2020-01-30 | L171: 32511 | M171: INE463A01038
A172: BFINVEST | B172: EQ | C172: 320.65 | D172: 324.8 | E172: 313 | F172: 320.65 | G172: 320.5 | H172: 319.25 | I172: 30519 | J172: 9760317.45 | K172: 2020-01-30 | L172: 1415 | M172: INE878K01010
A173: BFUTILITIE | B173: EQ | C173: 310 | D173: 314 | E173: 301.1 | F173: 307.65 | G173: 307 | H173: 308.95 | I173: 211502 | J173: 64938004.15 | K173: 2020-01-30 | L173: 5914 | M173: INE243D01012
A174: BGRENERGY | B174: EQ | C174: 39.65 | D174: 40.3 | E174: 38.6 | F174: 38.9 | G174: 39.1 | H174: 39.75 | I174: 215187 | J174: 8467576.15 | K174: 2020-01-30 | L174: 1491 | M174: INE661I01014
A175: BHAGERIA | B175: EQ | C175: 116.4 | D175: 122 | E175: 113.6 | F175: 114.6 | G175: 114.5 | H175: 114.5 | I175: 22285 | J175: 2568725.55 | K175: 2020-01-30 | L175: 529 | M175: INE354C01027
A176: BHAGYANGR | B176: EQ | C176: 21.5 | D176: 21.55 | E176: 20.65 | F176: 21.3 | G176: 21.4 | H176: 21.5 | I176: 4949 | J176: 104101.3 | K176: 2020-01-30 | L176: 80 | M176: INE458B01036
A177: BHAGYAPROP | B177: EQ | C177: 24.75 | D177: 24.75 | E177: 21.25 | F177: 23.5 | G177: 23.5 | H177: 23.75 | I177: 1193 | J177: 27900.2 | K177: 2020-01-30 | L177: 24 | M177: INE363W01018
A178: BHANDARI | B178: EQ | C178: 1.2 | D178: 1.25 | E178: 1.15 | F178: 1.25 | G178: 1.25 | H178: 1.2 | I178: 99421 | J178: 117825.7 | K178: 2020-01-30 | L178: 86 | M178: INE474E01029
A179: BHARATFORG | B179: EQ | C179: 505 | D179: 508.9 | E179: 492.1 | F179: 499.2 | G179: 498 | H179: 505 | I179: 809937 | J179: 403539375.1 | K179: 2020-01-30 | L179: 12834 | M179: INE465A01025
A180: BHARATRAS | B180: EQ | C180: 6444 | D180: 6500 | E180: 6442 | F180: 6447.1 | G180: 6450 | H180: 6486 | I180: 463 | J180: 2995559.75 | K180: 2020-01-30 | L180: 182 | M180: INE838B01013
A181: BHARATWIRE | B181: EQ | C181: 27.75 | D181: 28.35 | E181: 27.1 | F181: 27.4 | G181: 27.3 | H181: 27.9 | I181: 3270 | J181: 90176.2 | K181: 2020-01-30 | L181: 120 | M181: INE316L01019
A182: BHARTIARTL | B182: EQ | C182: 492 | D182: 492.9 | E182: 480.1 | F182: 489.8 | G182: 487.05 | H182: 490.25 | I182: 15055241 | J182: 7336027610 | K182: 2020-01-30 | L182: 87295 | M182: INE397D01024
A183: BHEL | B183: EQ | C183: 44.65 | D183: 44.65 | E183: 43.2 | F183: 44.05 | G183: 44.15 | H183: 44.55 | I183: 14992301 | J183: 656633483 | K183: 2020-01-30 | L183: 20703 | M183: INE257A01026
A184: BIL | B184: EQ | C184: 183 | D184: 183 | E184: 172.7 | F184: 173.35 | G184: 173 | H184: 179.6 | I184: 714 | J184: 125081.1 | K184: 2020-01-30 | L184: 121 | M184: INE828A01016
A185: BILENERGY | B185: EQ | C185: 0.9 | D185: 0.95 | E185: 0.9 | F185: 0.9 | G185: 0.9 | H185: 0.95 | I185: 175393 | J185: 159220.75 | K185: 2020-01-30 | L185: 69 | M185: INE607L01029
A186: BINDALAGRO | B186: EQ | C186: 15 | D186: 15.15 | E186: 14.3 | F186: 14.35 | G186: 14.3 | H186: 14.85 | I186: 30541 | J186: 440117.55 | K186: 2020-01-30 | L186: 86 | M186: INE143A01010
A187: BIOCON | B187: EQ | C187: 296.85 | D187: 299.8 | E187: 293 | F187: 295.35 | G187: 294.5 | H187: 297.45 | I187: 3150843 | J187: 934396070.9 | K187: 2020-01-30 | L187: 50526 | M187: INE376G01013
A188: BIRLACABLE | B188: EQ | C188: 58.35 | D188: 58.35 | E188: 56.5 | F188: 57.45 | G188: 57.6 | H188: 58.55 | I188: 35091 | J188: 2011653.55 | K188: 2020-01-30 | L188: 582 | M188: INE800A01015
A189: BIRLACORPN | B189: EQ | C189: 756.2 | D189: 767 | E189: 741.25 | F189: 763.6 | G189: 761 | H189: 751.25 | I189: 305321 | J189: 231483304.2 | K189: 2020-01-30 | L189: 12328 | M189: INE340A01012
A190: BIRLAMONEY | B190: EQ | C190: 35.4 | D190: 35.4 | E190: 34.15 | F190: 34.4 | G190: 34.4 | H190: 34.85 | I190: 59813 | J190: 2063677.35 | K190: 2020-01-30 | L190: 723 | M190: INE865C01022
A191: BKMINDST | B191: EQ | C191: 0.5 | D191: 0.55 | E191: 0.5 | F191: 0.55 | G191: 0.55 | H191: 0.55 | I191: 41936 | J191: 20983 | K191: 2020-01-30 | L191: 5 | M191: INE831Q01016
A192: BLBLIMITED | B192: EQ | C192: 4.8 | D192: 5.1 | E192: 4.8 | F192: 4.95 | G192: 5 | H192: 5.05 | I192: 34007 | J192: 169373.2 | K192: 2020-01-30 | L192: 84 | M192: INE791A01024
A193: BLISSGVS | B193: EQ | C193: 144.35 | D193: 144.4 | E193: 142.3 | F193: 142.9 | G193: 142.85 | H193: 143.75 | I193: 315258 | J193: 45059477.2 | K193: 2020-01-30 | L193: 1350 | M193: INE416D01022
A194: BLKASHYAP | B194: EQ | C194: 9.15 | D194: 9.35 | E194: 8.9 | F194: 9 | G194: 9 | H194: 9.05 | I194: 41743 | J194: 380006.7 | K194: 2020-01-30 | L194: 109 | M194: INE350H01032
A195: BLS | B195: EQ | C195: 67.1 | D195: 67.1 | E195: 64.9 | F195: 66 | G195: 66.05 | H195: 67.1 | I195: 19410 | J195: 1275604.75 | K195: 2020-01-30 | L195: 479 | M195: INE153T01027
A196: BLUEDART | B196: EQ | C196: 2705 | D196: 2750 | E196: 2652 | F196: 2694.3 | G196: 2685.6 | H196: 2733.85 | I196: 3157 | J196: 8538795.35 | K196: 2020-01-30 | L196: 971 | M196: INE233B01017
A197: BLUESTARCO | B197: EQ | C197: 853 | D197: 853 | E197: 831.1 | F197: 836.3 | G197: 837 | H197: 842.65 | I197: 112035 | J197: 93943068.55 | K197: 2020-01-30 | L197: 5376 | M197: INE472A01039
A198: BODALCHEM | B198: EQ | C198: 73.5 | D198: 74.15 | E198: 72.4 | F198: 72.85 | G198: 72.5 | H198: 73.85 | I198: 99714 | J198: 7317348.55 | K198: 2020-01-30 | L198: 1512 | M198: INE338D01028
A199: BOMDYEING | B199: EQ | C199: 97.85 | D199: 101.75 | E199: 96.2 | F199: 97.95 | G199: 97.25 | H199: 97.45 | I199: 9984830 | J199: 991876399.9 | K199: 2020-01-30 | L199: 54146 | M199: INE032A01023
A200: BOROSIL | B200: EQ | C200: 178.4 | D200: 179.6 | E200: 173.25 | F200: 174.35 | G200: 174.75 | H200: 178.4 | I200: 37142 | J200: 6526384.9 | K200: 2020-01-30 | L200: 1732 | M200: INE666D01022
... 1483 more rows

Sheet Sheet1 (hidden)

Sheet Sheet3 (hidden)

Sheet Sheet4 (hidden)

Sheet Sheet5 (hidden)
